{"text_format":"1","workbook":"xlsx","n_sheets":24,"sheets":["Instructions","CONTENTS","Business & other details","CPI series","E1. Expenditure Summary","E2. Repex","E3. Expansion","E6. Non-network","E10. Overheads","E11. Labour","E13. Other capex","E17. Step changes","E20. Opex","N1. Demand","N2. Network characteristics","S1. User Numbers","S10. Supply quality","F2. Capex","F3. Revenue","Additional disclosures","AER CF","AER NRs","AER lookups","AER ETL"],"not_rendered":{"charts":0,"images":5,"macros":1,"external_links":0,"defined_names":551,"comments":1,"pivot_tables":0},"unopened":[],"bounds":{"document_bytes":16777216,"sheet_cells":100000,"rows_first":2000,"rows_last":500,"rows_between":2000,"halvings":0,"cell_chars":16384,"cell_head_chars":4096},"cells_cut":0,"cells_raw":0,"read":"whole","date_system":"1900"}

{"sheet":"Instructions","index":0,"n_rows":24,"n_cols":4,"rows_kept":24,"cut":false,"hidden":false,"merged":[[16,1,21,1],[16,2,16,4],[23,2,23,4],[10,1,12,1],[10,2,10,4],[11,2,11,3],[12,2,12,4],[14,2,14,4],[7,1,8,1],[7,2,7,3],[8,2,8,4],[1,1,1,4],[2,1,2,4],[3,1,3,4],[4,1,4,4],[5,2,5,4]]}
[]
[null,{"$f":"CONCATENATE(dms_Sector,\" \",dms_Segment,\" \", \"Network Service Provider\")","v":"Gas Transmission Network Service Provider"}]
[null,{"$f":"IF(dms_Model=\"Reset\",\"Regulatory Proposal RIN Template\",\"Annual Reporting RIN\")","v":"Regulatory Proposal RIN Template"}]
[null,{"$f":"CONCATENATE(\"This template is to be used by \",dms_TradingNameFull,\" to fulfil its reporting obligations to the AER.\")","v":"This template is to be used by APA VTS Australia (Operations) Pty Ltd to fulfil its reporting obligations to the AER."}]
[null,"INSTRUCTIONS"]
[null,"GENERAL","Complete the Business & other details worksheet before entering data or values in any other worksheets. The Business & other details worksheet is linked to other worksheets within the workbook and automatically generates certain column headings and conditional formatting."]
[]
[null,"CONFIDENTIAL INFORMATION","\nPlease use the button at the top of each \nworksheet to identify confidential information\nin the confidential workbook. \n\n"]
[null,null,"- Do this by selecting the cell or cells that contain confidential information and then click the Mark selection as CONFIDENTIAL button. This will format the cells a specific colour that is identified by the AER's database which in turn marks that information as confidential.\n\n- To reverse this, select the cell or cells and run the Return selection to NON-CONFIDENTIAL button."]
[]
[null,"AMENDMENTS","\nIf you wish to correct data previously submitted to the AER please contact the Director, Regulatory Information Management at the AER. \n\nThe AER prefers the entire file is resubmitted with revised data marked accordingly. The most recently submitted version of the file should be used as the starting point. Data that is not being amended should be left unchanged. \n\nYou must identify the reason for the amendments in the Amendment Reason box on the  Business and other details worksheet. "]
[null,null,"You may use the Amended Data button \nto highlight cells that contain amended data.\nNB: if data is also CONFIDENTIAL, re-apply \nthe Confidentiality button after applying the \nAmended button."]
[null,null,"Please resubmit two (2) files - a confidential version and a public version of the amended submission to the AER"]
[]
[null,"NUMERICAL VALUES","\nDO NOT ROUND values. Report values on a one for one basis: that is 1000 is to be entered as '1000'. Applicable units of measure may be identified in the table column headings or row descriptors.\n\n"]
[]
[null,"INPUT / NON-INPUT CELLS"]
[null,null,null,"Yellow = Input cell (mandatory)"]
[null,null,null,"Darker yellow = input cell (mandatory)"]
[null,null,null,"Grey = Not applicable/No inputs required"]
[null,null,null," \nPLEASE DO NOT ENTER TEXT into cells that are to contain numeric data."]
[]
[]
[null,"NAVIGATION","\nMany tables in the worksheets have been \"grouped\" to allow for easy navigation. To ungroup or group data use the outline symbols in the left margin (for Row groupings) or above the columns (for column groupings). \n\n\n\n"]

{"sheet":"CONTENTS","index":1,"n_rows":32,"n_cols":4,"rows_kept":32,"cut":false,"hidden":false,"merged":[[6,2,6,3]]}
[null,{"$f":"INDEX(dms_Worksheet_List,MATCH(dms_Model,dms_Model_List))","v":"REGULATORY REPORTING STATEMENT"}]
[null,{"$f":"INDEX(dms_TradingNameFull_List,MATCH(dms_TradingName,dms_TradingName_List))","v":"APA VTS Australia (Operations) Pty Ltd"}]
[null,{"$f":"dms_Header_Span","v":"Data Span 2021 - 2027"}]
[]
[]
[]
[null,null,"CONTENTS","CONTENTS"]
[]
[null,null,"TEMPLATE DATE","SEPTEMBER 2021"]
[]
[null,null,"SUBMISSION","Business & other details"]
[null,null,null,"CPI series"]
[]
[null,null,"EXPENDITURE","E1. Expenditure Summary"]
[null,null,null,"E2. Repex"]
[null,null,null,"E3. Expansion"]
[null,null,null,"E6. Non-network"]
[null,null,null,"E10. Overheads"]
[null,null,null,"E13. Other capex"]
[null,null,null,"E17. Step changes"]
[null,null,null,"E20. Opex"]
[]
[null,null,"NETWORK","N1. Demand"]
[null,null,null,"N2. Network Characteristics"]
[]
[null,null,"SERVICES","S1. User Numbers"]
[null,null,null,"S10. Supply Quality"]
[]
[null,null,"FINANCIAL","F2. Capex"]
[null,null,null,"F3. Revenue"]
[]
[null,null,"ADMIN","Additional disclosures"]

{"sheet":"Business & other details","index":2,"n_rows":74,"n_cols":81,"rows_kept":74,"cut":false,"hidden":false,"merged":[[0,7,2,15],[6,21,6,75],[24,21,24,35],[42,37,42,44],[42,46,42,53],[42,55,42,62],[42,64,42,71],[3,21,3,57],[8,16,8,93],[22,68,22,89],[23,68,23,89],[25,68,25,71],[25,80,25,82],[24,68,24,82],[25,37,25,40],[22,37,22,58],[23,37,23,58],[31,21,31,35],[22,21,22,35],[16,21,16,35],[16,37,16,48],[15,21,15,35],[15,37,15,58],[24,37,24,51],[25,21,25,35],[23,21,23,35],[45,73,45,80],[45,64,45,71],[46,73,46,80],[45,55,45,62],[50,46,50,53],[46,46,46,53],[46,37,46,44],[50,37,50,44],[31,68,31,89],[32,68,32,89],[33,68,33,89],[43,64,43,71],[43,73,43,80],[41,73,41,80],[25,49,25,51],[24,60,24,66],[25,60,25,66],[42,73,42,80],[32,21,32,35],[33,21,33,35],[33,60,33,66],[32,60,32,66],[50,73,50,80],[50,64,50,71],[46,64,46,71],[46,55,46,62],[50,55,50,62],[47,73,47,80],[51,73,51,80],[51,64,51,71],[22,60,22,66],[23,60,23,66],[31,60,31,66],[49,25,49,34],[53,25,53,34],[45,46,45,53],[45,37,45,44],[49,37,49,44],[41,46,41,53],[49,55,49,62],[49,64,49,71],[41,55,41,62],[41,64,41,71],[47,46,47,53],[47,55,47,62],[47,64,47,71],[51,55,51,62],[53,37,53,44],[49,46,49,53],[51,46,51,53],[51,37,51,44],[47,37,47,44],[73,25,73,34],[73,37,73,52],[55,25,55,34],[63,25,63,34],[65,25,65,34],[55,37,55,44],[61,25,61,34],[61,37,61,52],[31,37,31,58],[32,37,32,58],[33,37,33,58],[43,37,43,44],[43,46,43,53],[43,55,43,62],[63,37,63,52],[65,37,65,52],[67,37,67,52],[69,37,71,81],[67,25,67,34],[69,25,71,34],[49,73,49,80],[41,25,41,34],[45,25,45,34],[41,37,41,44]]}
[null,null,null,null,null,null,null,null,null,null,null,null,null,null,null,null,null,null,null,null,null,{"$f":"INDEX(dms_Worksheet_List,MATCH(dms_Model,dms_Model_List))","v":"REGULATORY REPORTING STATEMENT"}]
[null,null,null,null,null,null,null,null,null,null,null,null,null,null,null,null,null,null,null,null,null,{"$f":"INDEX(dms_TradingNameFull_List,MATCH(dms_TradingName,dms_TradingName_List))","v":"APA VTS Australia (Operations) Pty Ltd"}]
[null,null,null,null,null,null,null,null,null,null,null,null,null,null,null,null,null,null,null,null,null,{"$f":"dms_Header_Span","v":"Data Span 2021 - 2027"}]
[null,null,null,null,null,null,null,null,null,null,null,null,null,null,null,null,null,null,null,null,null,"BUSINESS & OTHER DETAILS"]
[]
[null,null,null,null,null,null,null,null,null,null,null,null,null,null,null,null,null,null,null,null,null,"INSTRUCTIONS"]
[null,null,null,null,null,null,null,null,null,null,null,null,null,null,null,null,null,null,null,null,null,"Complete the following business details regulatory template before entering data or values in any other regulatory template. This regulatory template is linked to other cells within the spreadsheet and automatically generates column headings and conditional formatting to distinguish business specific input and non-input cells. "]
[]
[null,null,null,null,null,null,null,null,null,null,null,null,null,null,null,null,"SUBMISSION PARTICULARS INPUT SHEET"]
[]
[]
[null,null,null,null,null,null,null,null,null,null,null,null,null,null,null,null,null,null,null,null,null,"ENTITY DETAILS"]
[]
[null,null,null,null,null,null,null,null,null,null,null,null,null,null,null,null,null,null,null,null,null,"Business Name"]
[]
[null,null,null,null,null,null,null,null,null,null,null,null,null,null,null,null,null,null,null,null,null,"Short name",null,null,null,null,null,null,null,null,null,null,null,null,null,null,null,"APA VTS"]
[null,null,null,null,null,null,null,null,null,null,null,null,null,null,null,null,null,null,null,null,null,"ACN/ABN",null,null,null,null,null,null,null,null,null,null,null,null,null,null,null,"65 083 009 278"]
[]
[]
[]
[null,null,null,null,null,null,null,null,null,null,null,null,null,null,null,null,null,null,null,null,null,"Business Address",null,null,null,null,null,null,null,null,null,null,null,null,null,null,null,null,null,null,null,null,null,null,null,null,null,null,null,null,null,null,null,null,null,null,null,null,null,null,null,null,null,null,null,null,null,null,"Postal Address"]
[]
[null,null,null,null,null,null,null,null,null,null,null,null,null,null,null,null,null,null,null,null,null,"Address 1",null,null,null,null,null,null,null,null,null,null,null,null,null,null,null,"Level 25",null,null,null,null,null,null,null,null,null,null,null,null,null,null,null,null,null,null,null,null,null,null,"Address 1",null,null,null,null,null,null,null,{"$f":"INDEX(dms_PAddr1_List,MATCH(dms_TradingName,dms_TradingName_List))","v":"PO Box R41"}]
[null,null,null,null,null,null,null,null,null,null,null,null,null,null,null,null,null,null,null,null,null,"Address 2",null,null,null,null,null,null,null,null,null,null,null,null,null,null,null,{"$f":"IF(ISBLANK(INDEX(dms_Addr2_List,MATCH(dms_TradingName,dms_TradingName_List))),\"\",(INDEX(dms_Addr2_List,MATCH(dms_TradingName,dms_TradingName_List))))","v":"580 George Street"},null,null,null,null,null,null,null,null,null,null,null,null,null,null,null,null,null,null,null,null,null,null,"Address 2",null,null,null,null,null,null,null,{"$f":"IF(ISBLANK(INDEX(dms_PAddr2_List,MATCH(dms_TradingName,dms_TradingName_List))),\"\",(INDEX(dms_PAddr2_List,MATCH(dms_TradingName,dms_TradingName_List))))","v":""}]
[null,null,null,null,null,null,null,null,null,null,null,null,null,null,null,null,null,null,null,null,null,"Suburb",null,null,null,null,null,null,null,null,null,null,null,null,null,null,null,{"$f":"INDEX(dms_Suburb_List,MATCH(dms_TradingName,dms_TradingName_List))","v":"SYDNEY"},null,null,null,null,null,null,null,null,null,null,null,null,null,null,null,null,null,null,null,null,null,null,"Suburb",null,null,null,null,null,null,null,{"$f":"INDEX(dms_PSuburb_List,MATCH(dms_TradingName,dms_TradingName_List))","v":"ROYAL EXCHANGE"}]
[null,null,null,null,null,null,null,null,null,null,null,null,null,null,null,null,null,null,null,null,null,"State",null,null,null,null,null,null,null,null,null,null,null,null,null,null,null,{"$f":"INDEX(dms_State_List,MATCH(dms_TradingName,dms_TradingName_List))","v":"NSW"},null,null,null,null,null,null,null,null,null,"Post code",null,2000,null,null,null,null,null,null,null,null,null,null,"State",null,null,null,null,null,null,null,{"$f":"INDEX(dms_PState_List,MATCH(dms_TradingName,dms_TradingName_List))","v":"NSW"},null,null,null,null,null,null,null,null,null,"Post code",null,1225]
[]
[null,null,null,null,null,null,null,null,null,null,null,null,null,null,null,null,null,null,null,null,null,null,null,null,null,null,null,null,null,null,null,null,null,null,null,null,null,null,null,null,null,null,null,null,null,null,null,null,null,null,null,null,"`"]
[]
[null,null,null,null,null,null,null,null,null,null,null,null,null,null,null,null,null,null,null,null,null,"Contact Names"]
[]
[null,null,null,null,null,null,null,null,null,null,null,null,null,null,null,null,null,null,null,null,null,"Name",null,null,null,null,null,null,null,null,null,null,null,null,null,null,null,null,null,null,null,null,null,null,null,null,null,null,null,null,null,null,null,null,null,null,null,null,null,null,"Name"]
[null,null,null,null,null,null,null,null,null,null,null,null,null,null,null,null,null,null,null,null,null,"Phone",null,null,null,null,null,null,null,null,null,null,null,null,null,null,null,null,null,null,null,null,null,null,null,null,null,null,null,null,null,null,null,null,null,null,null,null,null,null,"Phone"]
[null,null,null,null,null,null,null,null,null,null,null,null,null,null,null,null,null,null,null,null,null,"Email",null,null,null,null,null,null,null,null,null,null,null,null,null,null,null,null,null,null,null,null,null,null,null,null,null,null,null,null,null,null,null,null,null,null,null,null,null,null,"Email"]
[]
[]
[]
[]
[null,null,null,null,null,null,null,null,null,null,null,null,null,null,null,null,"REGULATORY CONTROL PERIODS"]
[]
[]
[null,null,null,null,null,null,null,null,null,null,null,null,null,null,null,null,null,null,null,null,null,null,null,null,null,"Forthcoming period",null,null,null,null,null,null,null,null,null,null,null,2023,null,null,null,null,null,null,null,null,{"$f":"FRCP_y2","v":2024},null,null,null,null,null,null,null,null,{"$f":"FRCP_y3","v":2025},null,null,null,null,null,null,null,null,{"$f":"FRCP_y4","v":2026},null,null,null,null,null,null,null,null,{"$f":"FRCP_y5","v":2027}]
[null,null,null,null,null,null,null,null,null,null,null,null,null,null,null,null,null,null,null,null,null,null,null,null,null,null,null,null,null,null,null,null,null,null,null,null,null,{"$f":"FRCP_y6","v":2028},null,null,null,null,null,null,null,null,{"$f":"FRCP_y7","v":2029},null,null,null,null,null,null,null,null,{"$f":"FRCP_y8","v":2030},null,null,null,null,null,null,null,null,{"$f":"FRCP_y9","v":2031},null,null,null,null,null,null,null,null,{"$f":"FRCP_y10","v":2032}]
[null,null,null,null,null,null,null,null,null,null,null,null,null,null,null,null,null,null,null,null,null,null,null,null,null,null,null,null,null,null,null,null,null,null,null,null,null,{"$f":"FRCP_y11","v":2033},null,null,null,null,null,null,null,null,{"$f":"FRCP_y12","v":2034},null,null,null,null,null,null,null,null,{"$f":"FRCP_y13","v":2035},null,null,null,null,null,null,null,null,{"$f":"FRCP_y14","v":2036},null,null,null,null,null,null,null,null,{"$f":"FRCP_y15","v":"2037"}]
[]
[null,null,null,null,null,null,null,null,null,null,null,null,null,null,null,null,null,null,null,null,null,null,null,"RESETS",null,"Current period",null,null,null,null,null,null,null,null,null,null,null,{"$f":"CRCP_y1","v":2018},null,null,null,null,null,null,null,null,{"$f":"CRCP_y2","v":2019},null,null,null,null,null,null,null,null,{"$f":"CRCP_y3","v":2020},null,null,null,null,null,null,null,null,{"$f":"CRCP_y4","v":2021},null,null,null,null,null,null,null,null,{"$f":"CRCP_y5","v":2022}]
[null,null,null,null,null,null,null,null,null,null,null,null,null,null,null,null,null,null,null,null,null,null,null,null,null,null,null,null,null,null,null,null,null,null,null,null,null,{"$f":"CRCP_y6","v":2023},null,null,null,null,null,null,null,null,{"$f":"CRCP_y7","v":2024},null,null,null,null,null,null,null,null,{"$f":"CRCP_y8","v":2025},null,null,null,null,null,null,null,null,{"$f":"CRCP_y9","v":2026},null,null,null,null,null,null,null,null,{"$f":"CRCP_y10","v":2027}]
[null,null,null,null,null,null,null,null,null,null,null,null,null,null,null,null,null,null,null,null,null,null,null,null,null,null,null,null,null,null,null,null,null,null,null,null,null,{"$f":"CRCP_y11","v":2028},null,null,null,null,null,null,null,null,{"$f":"CRCP_y12","v":2029},null,null,null,null,null,null,null,null,{"$f":"CRCP_y13","v":2030},null,null,null,null,null,null,null,null,{"$f":"CRCP_y14","v":2031},null,null,null,null,null,null,null,null,{"$f":"CRCP_y15","v":2032}]
[]
[null,null,null,null,null,null,null,null,null,null,null,null,null,null,null,null,null,null,null,null,null,null,null,null,null,"Previous period",null,null,null,null,null,null,null,null,null,null,null,{"$f":"PRCP_y1","v":2013},null,null,null,null,null,null,null,null,{"$f":"PRCP_y2","v":2014},null,null,null,null,null,null,null,null,{"$f":"PRCP_y3","v":2015},null,null,null,null,null,null,null,null,{"$f":"PRCP_y4","v":2016},null,null,null,null,null,null,null,null,{"$f":"PRCP_y5","v":2017}]
[null,null,null,null,null,null,null,null,null,null,null,null,null,null,null,null,null,null,null,null,null,null,null,null,null,null,null,null,null,null,null,null,null,null,null,null,null,{"$f":"PRCP_y6","v":2018},null,null,null,null,null,null,null,null,{"$f":"PRCP_y7","v":2019},null,null,null,null,null,null,null,null,{"$f":"PRCP_y8","v":2020},null,null,null,null,null,null,null,null,{"$f":"PRCP_y9","v":2021},null,null,null,null,null,null,null,null,{"$f":"PRCP_y10","v":2022}]
[null,null,null,null,null,null,null,null,null,null,null,null,null,null,null,null,null,null,null,null,null,null,null,null,null,null,null,null,null,null,null,null,null,null,null,null,null,{"$f":"PRCP_y11","v":2023},null,null,null,null,null,null,null,null,{"$f":"PRCP_y12","v":2024},null,null,null,null,null,null,null,null,{"$f":"PRCP_y13","v":2025},null,null,null,null,null,null,null,null,{"$f":"PRCP_y14","v":2026},null,null,null,null,null,null,null,null,{"$f":"PRCP_y15","v":2027}]
[]
[null,null,null,null,null,null,null,null,null,null,null,null,null,null,null,null,null,null,null,null,null,null,null,null,null,"Commencing year",null,null,null,null,null,null,null,null,null,null,null,"2021-22"]
[null,null,null,null,null,null,null,null,null,null,null,null,null,null,null,null,null,null,null,null,null,null,null,"ANNUAL RINS"]
[null,null,null,null,null,null,null,null,null,null,null,null,null,null,null,null,null,null,null,null,null,null,null,null,null,"Final year",null,null,null,null,null,null,null,null,null,null,null,"2025-26"]
[]
[]
[]
[null,null,null,null,null,null,null,null,null,null,null,null,null,null,null,null,"SUBMISSION DETAILS"]
[]
[null,null,null,null,null,null,null,null,null,null,null,null,null,null,null,null,null,null,null,null,null,null,null,null,null,"RIN type",null,null,null,null,null,null,null,null,null,null,null,{"$f":"INDIRECT(dms_Model)","v":"Regulatory Reporting (Reset)"}]
[]
[null,null,null,null,null,null,null,null,null,null,null,null,null,null,null,null,null,null,null,null,null,null,null,null,null,"Source",null,null,null,null,null,null,null,null,null,null,null,"Regulatory proposal"]
[]
[null,null,null,null,null,null,null,null,null,null,null,null,null,null,null,null,null,null,null,null,null,null,null,"THIS FILE",null,"Data Quality",null,null,null,null,null,null,null,null,null,null,null,"Consolidated"]
[]
[null,null,null,null,null,null,null,null,null,null,null,null,null,null,null,null,null,null,null,null,null,null,null,null,null,"Confidentiality Status",null,null,null,null,null,null,null,null,null,null,null,"Public"]
[]
[null,null,null,null,null,null,null,null,null,null,null,null,null,null,null,null,null,null,null,null,null,null,null,null,null,"Amended RIN \nAmendment Reason"]
[]
[]
[]
[null,null,null,null,null,null,null,null,null,null,null,null,null,null,null,null,null,null,null,null,null,null,null,null,null,"Submission Date",null,null,null,null,null,null,null,null,null,null,null,"2021-12-01"]

{"sheet":"CPI series","index":3,"n_rows":10,"n_cols":12,"rows_kept":10,"cut":false,"hidden":false,"merged":[[6,2,6,8]]}
[null,{"$f":"IF(dms_MultiYear_ResponseFlag=\"Yes\",\"REGULATORY REPORTING STATEMENT - HISTORICAL INFORMATION\",INDEX(dms_Worksheet_List,MATCH(dms_Model,dms_Model_List)))","v":"REGULATORY REPORTING STATEMENT"}]
[null,{"$f":"INDEX(dms_TradingNameFull_List,MATCH(dms_TradingName,dms_TradingName_List))","v":"APA VTS Australia (Operations) Pty Ltd"}]
[]
[null,"CPI SERIES"]
[]
[]
[null,"Name of CPI series","All Groups CPI Average of Eight Capital Cities - ABS Series A2325846C"]
[]
[null,null,{"$f":"CRCP_y1","v":2018},{"$f":"CRCP_y2","v":2019},{"$f":"CRCP_y3","v":2020},{"$f":"CRCP_y4","v":2021},{"$f":"CRCP_y5","v":2022},{"$f":"FRCP_y1","v":2023},{"$f":"FRCP_y2","v":2024},{"$f":"FRCP_y3","v":2025},{"$f":"FRCP_y4","v":2026},{"$f":"FRCP_y5","v":2027}]
[null,"Series data",114.1,116.2,117.2,{"$f":"+E10*(1+0.02)","v":119.54400000000001},{"$f":"+F10*(1+0.02)","v":121.93488000000001},124.3728304446139,126.85952495959054,129.39593812765813,131.98306401722769,134.62191657198727]

{"sheet":"E1. Expenditure Summary","index":4,"n_rows":136,"n_cols":9,"rows_kept":136,"cut":false,"hidden":false,"merged":[[128,2,128,8],[129,2,129,8],[70,2,70,8],[8,2,8,8],[9,2,9,8],[43,2,43,8],[44,2,44,8],[69,2,69,8],[118,2,118,8],[119,2,119,8],[81,2,81,8],[82,2,82,8],[107,2,107,8],[108,2,108,8],[93,2,93,8],[94,2,94,8]]}
[null,{"$f":"INDEX(dms_Worksheet_List,MATCH(dms_Model,dms_Model_List))","v":"REGULATORY REPORTING STATEMENT"}]
[null,{"$f":"INDEX(dms_TradingNameFull_List,MATCH(dms_TradingName,dms_TradingName_List))","v":"APA VTS Australia (Operations) Pty Ltd"}]
[null,{"$f":"dms_Header_Span","v":"Data Span 2021 - 2027"}]
[null,"E1. EXPENDITURE SUMMARY"]
[]
[]
[null,"E1.1 - CAPEX"]
[null,"E1.1.1 - REFERENCE SERVICES"]
[null,null,"EXPENDITURE"]
[null,null,{"$f":"CONCATENATE(\"$0's, real \",dms_DollarReal)","v":"$0's, real December 2022"}]
[null,null,{"$f":"CRCP_y4","v":2021},{"$f":"CRCP_y5","v":2022},{"$f":"FRCP_y1","v":2023},{"$f":"FRCP_y2","v":2024},{"$f":"FRCP_y3","v":2025},{"$f":"FRCP_y4","v":2026},{"$f":"FRCP_y5","v":2027}]
[null,"Replacement",28892065.658659507,19706535.725308143,26903877.039454002,35886583.740136504,25976959.740136508,18107319.740136508,16060075.740136499]
[null,"Expansion",30098684.669387922,97330625.518066928,80722170.900000006,52419233.43333333,6823007.666666666,0,0]
[null,"Non-network",5248754.4871523231,3484369.5996349701,3127996.4746291586,3853489.7744111572,2045934.4746291589,1329627.4746291589,2984457.2377992389]
[null,"Capitalised network overheads",0,3715093.280308872,11426221.000000002,11603801,11512003,10672152,7996187.0000000009]
[null,"Capitalised corporate overheads",0,0,8436330.5899229553,7106272.9341295017,3193537.2868665047,2070001.5787533117,1738322.7351802732]
[null,"Other capex",0,0,0,0,0,0,0]
[null,"Capital contributions included in the above"]
[null,"Total (less capital contributions)",{"$f":"SUM(C12:C17)-C18","v":64239504.815199748},124236624.12331891,130616596.00400612,110869380.8820105,49551442.168298841,32179100.793518979,28779042.713116013]
[]
[null,"E1.1.3 - OTHER SERVICES PROVIDED AS A COVERED PIPELINE"]
[null,"Replacement"]
[null,"Expansion"]
[null,"Non-network"]
[null,"Capitalised network overheads"]
[null,"Capitalised corporate overheads"]
[null,"Other capex"]
[null,"Capital contributions included in the above"]
[null,"Total (less capital contributions)",{"$f":"SUM(C22:C27)-C28","v":0},0,0,0,0,0,0]
[]
[null,"E1.1.5 - ALL CAPEX"]
[null,"Replacement",{"$f":"C12+C22","v":28892065.658659507},{"$f":"D12+D22","v":19706535.725308143},26903877.039454002,35886583.740136504,25976959.740136508,18107319.740136508,16060075.740136499]
[null,"Expansion",{"$f":"C13+C23","v":30098684.669387922},97330625.518066928,80722170.900000006,52419233.43333333,6823007.666666666,0,0]
[null,"Non-network",5248754.4871523231,3484369.5996349701,3127996.4746291586,3853489.7744111572,2045934.4746291589,1329627.4746291589,2984457.2377992389]
[null,"Capitalised network overheads",0,3715093.280308872,11426221.000000002,11603801,11512003,10672152,7996187.0000000009]
[null,"Capitalised corporate overheads",0,0,8436330.5899229553,7106272.9341295017,3193537.2868665047,2070001.5787533117,1738322.7351802732]
[null,"Other capex",0,0,0,0,0,0,0]
[null,"Capital contributions included in the above"]
[null,"Total (less capital contributions)",{"$f":"SUM(C32:C37)-C38","v":64239504.815199748},124236624.12331891,130616596.00400612,110869380.8820105,49551442.168298841,32179100.793518979,28779042.713116013]
[]
[]
[null,"E1.2 - OPEX"]
[null,"E1.2.1 - REFERENCE SERVICES"]
[null,null,"EXPENDITURE"]
[null,null,{"$f":"CONCATENATE(\"$0's, real \",dms_DollarReal)","v":"$0's, real December 2022"}]
[null,null,{"$f":"CRCP_y4","v":2021},{"$f":"CRCP_y5","v":2022},{"$f":"FRCP_y1","v":2023},{"$f":"FRCP_y2","v":2024},{"$f":"FRCP_y3","v":2025},{"$f":"FRCP_y4","v":2026},{"$f":"FRCP_y5","v":2027}]
[null,"Repairs and maintenance",21521504.162990697,21627001.732417122,24882574.7963425,25720647.311393529,25237847.89351536,25542558.554926738,25558560.355333488]
[null,"Other operating",8304381.7220429312,8345089.4755823575,9856766.5062149856,10202216.818571027,10021007.717337672,10137950.497978691,10144404.027986148]
[null,"Debt raising",62256.857145362228,61036.134456237472,552671.30143014167,594090.79534815694,619922.12807345716,611484.98031026893,592471.61104646279]
[null,"Equity raising"]
[null,"Total",{"$f":"SUM(C47:C50)","v":29888142.742178991},30033127.342455715,35292012.603987627,36516954.92531272,35878777.738926485,36291994.033215694,36295435.994366102]
[]
[null,"E1.2.3 - OTHER SERVICES PROVIDED AS A COVERED PIPELINE"]
[null,"Repairs and maintenance"]
[null,"Other operating"]
[null,"Debt raising"]
[null,"Equity raising"]
[null,"Total",{"$f":"SUM(C54:C57)","v":0},0,0,0,0,0,0]
[]
[null,"E1.2.5 - ALL OPEX"]
[null,"Repairs and maintenance",{"$f":"+C47","v":21521504.162990697},21627001.732417122,24882574.7963425,25720647.311393529,25237847.89351536,25542558.554926738,25558560.355333488]
[null,"Other operating",8304381.7220429312,8345089.4755823575,9856766.5062149856,10202216.818571027,10021007.717337672,10137950.497978691,10144404.027986148]
[null,"Debt raising",62256.857145362228,61036.134456237472,552671.30143014167,594090.79534815694,619922.12807345716,611484.98031026893,592471.61104646279]
[null,"Equity raising"]
[null,"Total",{"$f":"SUM(C61:C64)","v":29888142.742178991},30033127.342455715,35292012.603987627,36516954.92531272,35878777.738926485,36291994.033215694,36295435.994366102]
[]
[]
[null,"E1.3 - CAPCONS"]
[null,"E1.3.1 - REFERENCE SERVICES"]
[null,null,"EXPENDITURE"]
[null,null,{"$f":"CONCATENATE(\"$0's, real \",dms_DollarReal)","v":"$0's, real December 2022"}]
[null,null,{"$f":"CRCP_y4","v":2021},{"$f":"CRCP_y5","v":2022},{"$f":"FRCP_y1","v":2023},{"$f":"FRCP_y2","v":2024},{"$f":"FRCP_y3","v":2025},{"$f":"FRCP_y4","v":2026},{"$f":"FRCP_y5","v":2027}]
[null,"Replacement"]
[null,"Expansion"]
[null,"Non-network"]
[null,"Capitalised network overheads"]
[null,"Capitalised corporate overheads"]
[null,"Other capex"]
[null,"Total",{"$f":"SUM(C73:C78)","v":0},0,0,0,0,0,0]
[]
[null,"E1.3.3 - OTHER SERVICES PROVIDED AS A COVERED PIPELINE"]
[null,null,"EXPENDITURE"]
[null,null,{"$f":"CONCATENATE(\"$0's, real \",dms_DollarReal)","v":"$0's, real December 2022"}]
[null,null,{"$f":"CRCP_y4","v":2021},{"$f":"CRCP_y5","v":2022},{"$f":"FRCP_y1","v":2023},{"$f":"FRCP_y2","v":2024},{"$f":"FRCP_y3","v":2025},{"$f":"FRCP_y4","v":2026},{"$f":"FRCP_y5","v":2027}]
[null,"Replacement"]
[null,"Expansion"]
[null,"Non-network"]
[null,"Capitalised network overheads"]
[null,"Capitalised corporate overheads"]
[null,"Other capex"]
[null,"Total",{"$f":"SUM(C85:C90)","v":0},0,0,0,0,0,0]
[]
[null,"E1.3.5 - ALL CAPCONS"]
[null,null,"EXPENDITURE"]
[null,null,{"$f":"CONCATENATE(\"$0's, real \",dms_DollarReal)","v":"$0's, real December 2022"}]
[null,null,{"$f":"CRCP_y4","v":2021},{"$f":"CRCP_y5","v":2022},{"$f":"FRCP_y1","v":2023},{"$f":"FRCP_y2","v":2024},{"$f":"FRCP_y3","v":2025},{"$f":"FRCP_y4","v":2026},{"$f":"FRCP_y5","v":2027}]
[null,"Replacement"]
[null,"Expansion"]
[null,"Non-network"]
[null,"Capitalised network overheads"]
[null,"Capitalised corporate overheads"]
[null,"Other capex"]
[null,"Total",{"$f":"SUM(C97:C102)","v":0},0,0,0,0,0,0]
[]
[]
[null,"E1.4 - CAPITALISED OVERHEADS"]
[null,"E1.4.1 - REFERENCE SERVICES"]
[null,null,"EXPENDITURE"]
[null,null,{"$f":"CONCATENATE(\"$0's, real \",dms_DollarReal)","v":"$0's, real December 2022"}]
[null,null,{"$f":"CRCP_y4","v":2021},{"$f":"CRCP_y5","v":2022},{"$f":"FRCP_y1","v":2023},{"$f":"FRCP_y2","v":2024},{"$f":"FRCP_y3","v":2025},{"$f":"FRCP_y4","v":2026},{"$f":"FRCP_y5","v":2027}]
[null,"Replacement",0,0,1860288.5135442817,2481404.4245080212,1796196.1300414456,1252044.0408737899,1110485.8374952429]
[null,"Expansion",0,0,5581594.3216441348,3624566.7381627825,471781.920929496,0,0]
[null,"Non-network",0,0,204373.23691144324,197948.35294962541,129553.25811839401,80023.67982314594,74934.622431619733]
[null,"Other capex",0,0,790074.51782309497,802353.41850907204,796005.97777716909,737933.85805637576,552902.27525341057]
[null,"Total",{"$f":"SUM(C111:C114)","v":0},{"$f":"SUM(D111:D114)","v":0},8436330.5899229553,7106272.9341295017,3193537.2868665047,2070001.5787533117,1738322.7351802732]
[]
[]
[null,"E1.4.3 - OTHER SERVICES PROVIDED AS A COVERED PIPELINE"]
[null,null,"EXPENDITURE"]
[null,null,{"$f":"CONCATENATE(\"$0's, real \",dms_DollarReal)","v":"$0's, real December 2022"}]
[null,null,{"$f":"CRCP_y4","v":2021},{"$f":"CRCP_y5","v":2022},{"$f":"FRCP_y1","v":2023},{"$f":"FRCP_y2","v":2024},{"$f":"FRCP_y3","v":2025},{"$f":"FRCP_y4","v":2026},{"$f":"FRCP_y5","v":2027}]
[null,"Replacement",0,0,0,0,0,0,0]
[null,"Expansion",0,0,0,0,0,0,0]
[null,"Non-network",0,0,0,0,0,0,0]
[null,"Other capex",0,0,0,0,0,0,0]
[null,"Total ",{"$f":"SUM(C122:C125)","v":0},0,0,0,0,0,0]
[]
[null,"E1.4.5 - ALL CAPITALISED OVERHEADS"]
[null,null,"EXPENDITURE"]
[null,null,{"$f":"CONCATENATE(\"$0's, real \",dms_DollarReal)","v":"$0's, real December 2022"}]
[null,null,{"$f":"CRCP_y4","v":2021},{"$f":"CRCP_y5","v":2022},{"$f":"FRCP_y1","v":2023},{"$f":"FRCP_y2","v":2024},{"$f":"FRCP_y3","v":2025},{"$f":"FRCP_y4","v":2026},{"$f":"FRCP_y5","v":2027}]
[null,"Replacement",{"$f":"C111+C122","v":0},{"$f":"D111+D122","v":0},1860288.5135442817,2481404.4245080212,1796196.1300414456,1252044.0408737899,1110485.8374952429]
[null,"Expansion",{"$f":"C112+C123","v":0},0,5581594.3216441348,3624566.7381627825,471781.920929496,0,0]
[null,"Non-network",0,0,204373.23691144324,197948.35294962541,129553.25811839401,80023.67982314594,74934.622431619733]
[null,"Other capex",0,0,790074.51782309497,802353.41850907204,796005.97777716909,737933.85805637576,552902.27525341057]
[null,"Total ",{"$f":"SUM(C132:C135)","v":0},0,8436330.5899229553,7106272.9341295017,3193537.2868665047,2070001.5787533117,1738322.7351802732]

{"sheet":"E2. Repex","index":5,"n_rows":152,"n_cols":10,"rows_kept":152,"cut":false,"hidden":false,"merged":[[76,3,76,9],[7,3,7,9],[19,3,19,9],[75,3,75,9],[34,1,34,2],[35,1,35,2],[36,1,36,2],[37,1,37,2],[39,1,39,2],[38,1,38,2],[40,1,40,2],[41,1,41,2],[42,1,42,2],[43,1,43,2],[44,1,44,2],[45,1,45,2],[129,1,129,2],[72,1,72,2],[20,1,20,2],[22,1,22,2],[21,1,21,2],[23,1,23,2],[24,1,24,2],[25,1,25,2],[26,1,26,2],[27,1,27,2],[28,1,28,2],[29,1,29,2],[30,1,30,2],[31,1,31,2],[32,1,32,2],[33,1,33,2],[47,1,47,2],[48,1,48,2],[49,1,49,2],[50,1,50,2],[46,1,46,2],[51,1,51,2],[52,1,52,2],[53,1,53,2],[54,1,54,2],[63,1,63,2],[65,1,65,2],[64,1,64,2],[55,1,55,2],[56,1,56,2],[57,1,57,2],[58,1,58,2],[59,1,59,2],[71,1,71,2],[10,1,10,2],[9,1,9,2],[11,1,11,2],[12,1,12,2],[13,1,13,2],[14,1,14,2],[15,1,15,2],[66,1,66,2],[67,1,67,2],[68,1,68,2],[69,1,69,2],[70,1,70,2],[60,1,60,2],[61,1,61,2],[62,1,62,2]]}
[null,"REGULATORY REPORTING STATEMENT"]
[null,{"$f":"INDEX(dms_TradingNameFull_List,MATCH(dms_TradingName,dms_TradingName_List))","v":"APA VTS Australia (Operations) Pty Ltd"}]
[null,{"$f":"dms_Header_Span","v":"Data Span 2021 - 2027"}]
[null,"E2. REPLACMENT CAPITAL EXPENDITURE"]
[]
[]
[null,"E2.1 - CAPEX - BY DRIVER"]
[null,null,null,{"$f":"CONCATENATE(\"EXPENDITURE\nForecast ($0's real, \",dms_DollarReal,\")\")","v":"EXPENDITURE\nForecast ($0's real, December 2022)"}]
[null,null,null,{"$f":"CRCP_y4","v":2021},{"$f":"CRCP_y5","v":2022},{"$f":"FRCP_y1","v":2023},{"$f":"FRCP_y2","v":2024},{"$f":"FRCP_y3","v":2025},{"$f":"FRCP_y4","v":2026},{"$f":"FRCP_y5","v":2027}]
[null,"Direct labour",null,8826588.9978501163,2867720.2975808685,3503748.1406281227,5186144.5646061711,2760603.6321156966,1511821.0877450397,1756203.5749049699]
[null,"Direct materials",null,3972301.2167096068,4001771.4412189308,6440458.9318209831,9943013.6215983722,9876374.1376162637,7491482.3628107319,7909145.9461536491]
[null,"Direct contractor",null,11561165.974400891,10700192.327433623,16120904.74967299,19847814.541617129,12296805.071745053,7722527.8271113122,5372767.8098535193]
[null,"Other direct expenditure",null,2891274.0092213866,862354.68178557476,838765.21733190166,909611.01231483102,1043176.8986594902,1381488.4624694157,1021958.4092243616]
[null,"Overheads",null,1640735.46047751,1274496.9772891419,1860288.5135442817,2481404.4245080212,1796196.1300414456,1252044.0408737899,1110485.8374952429]
[null,"Capital contributions included in the above",null,0,0,0,0,0,0,0]
[null,"Total (less capital contributions)",null,{"$f":"SUM(D10:D14)-D15","v":28892065.658659507},{"$f":"SUM(E10:E14)-E15","v":19706535.725308139},28764165.552998278,38367988.164644524,27773155.870177951,19359363.781010285,17170561.577631742]
[]
[null,"E2.2 - CAPEX - BY PROJECT"]
[null,"E2.2.1 - EXPENDITURE"]
[null,null,null,{"$f":"CONCATENATE(\"EXPENDITURE\nForecast ($0's real, \",dms_DollarReal,\")\")","v":"EXPENDITURE\nForecast ($0's real, December 2022)"}]
[null,"Project Name",null,{"$f":"CRCP_y4","v":2021},{"$f":"CRCP_y5","v":2022},{"$f":"FRCP_y1","v":2023},{"$f":"FRCP_y2","v":2024},{"$f":"FRCP_y3","v":2025},{"$f":"FRCP_y4","v":2026},{"$f":"FRCP_y5","v":2027}]
[null,"Actuate MLV's in T1 areas",null,858422.69265882438,1411272.3781140314,0,0,0,0,0]
[null,"Arc Flash Risk Mitigation",null,0,0,267286.43524886959,267286.43524886959,267286.43524886959,267286.43524886959,267286.43524886959]
[null,"Battery Charger Upgrades",null,0,0,213829.14819909565,213829.14819909565,213829.14819909565,213829.14819909565,213829.14819909565]
[null,"Bay St Unichema",null,127679.01611005269,1247096.7850875978,0,0,0,0,0]
[null,"BCS MCC Room Fire Suppression System",null,1744481.0831869959,0,0,0,0,0,0]
[null,"BCS Unit 12 Inlet Filter Upgrade",null,0,0,0,0,0,0,679676.26131990447]
[null,"Brooklyn Compressor Station",null,878294.71114932175,609413.07236742263,0,0,0,0,0]
[null,"Brooklyn CS upgrade",null,0,0,2672864.3524886961,2672864.3524886961,2672864.3524886961,2993608.0747873392,0]
[null,"Compressor Station Vent Stack Upgrade (BCS, WCS, GCS, SCS)",null,0,727019.10387692531,0,0,0,0,0]
[null,"Compressor Station Vent Upgrade",null,0,0,0,507844.22697285225,534572.87049773918,534572.87049773918,534572.87049773918]
[null,"Control Valve Positioner Replacement",null,0,0,106914.57409954783,106914.57409954783,106914.57409954783,106914.57409954783,114906.43851348903]
[null,"Coogee Unpiggable",null,173746.17265577847,277713.94195828744,0,0,0,0,0]
[null,"CP - Cathodic Protection Replacement",null,198626.34000000003,513189.95567782957,0,0,0,0,0]
[null,"CP Replacement",null,0,0,248469.47020734916,248469.47020734916,248469.47020734916,248469.47020734916,248813.73513594971]
[null,"Critical Spares",null,0,0,0,0,0,0,2245206.0560905044]
[null,"Culcairn Injection Gas Quality equipment",null,922821.21775635728,483235.43216592405,0,0,0,0,0]
[null,"Dandenong City Gate Gas Quality",null,0,0,0,0,534572.87049773918,534572.87049773918,405462.8308151252]
[null,"Emergency Response Equipment",null,0,0,0,2672864.3524886956,2138291.4819909567,2138291.4819909567,1197443.2299149358]
[null,"Encroachment High Consequence",null,0,0,470424.12603801046,470424.12603801046,470424.12603801046,470424.12603801046,470424.12603801046]
[null,"Hazardous Area Rectification",null,102305.39500687791,591237.59477049951,213829.14819909565,213829.14819909565,213829.14819909565,310052.26488868869,0]
[null,"HMI ClearSCADA Upgrade",null,0,0,192446.2333791861,384892.4667583722,192446.2333791861,0,0]
[null,"Iona CG Review",null,1279668.6974112601,183946.5247382721,0,0,0,0,0]
[null,"Iona CS Aftercooler Upgrade",null,0,0,213829.14819909565,1603718.6114932175,1603718.6114932175,0,0]
[null,"L'ford Upg Flare",null,-832.01999999998952,0,0,0,0,0,0]
[null,"Liquids Management ",null,0,0,267286.43524886965,0,374201.0093484174,0,0]
[null,"Low Value Preventative & Reactive Maintenance",null,0,0,534572.87049773918,534572.87049773918,534572.87049773918,534572.87049773918,534572.87049773918]
[null,"Pakenham Unpiggables",null,627710.52505761897,1290192.1361362492,0,0,0,0,0]
[null,"Pig Trap Installation James Street to Laverton Pipeline (253)",null,5304126.5696896678,0,0,0,0,0,0]
[null,"Pig Trap Installation Tyers to Maryvale Pipeline (67)",null,273449.65964313166,2401301.3342758445,0,0,0,0,0]
[null,"Pigging Program T1 Morwell - Dandenong Pigging and Repair Program",null,2795621.9996852935,1408856.9640559745,0,0,0,0,0]
[null,"Pigging Program T108 Newport",null,1001608.8157409955,0,0,0,0,0,0]
[null,"Pigging Program T61 Packenham - Wollert",null,646293.96,0,0,0,0,0,0]
[null,"Pigging Program T63 Tyers - Morwell",null,1035241.2164194884,21382.914819909565,0,0,0,0,0]
[null,"Pigging Program T66-70 Mt Franklin -Kyneton - Bendigo",null,4347.1999999999971,0,0,0,0,0,0]
[null,"Pigging Program T75  Wandong - Kyneton",null,457466.33400287351,1899584.5953737854,0,0,0,0,0]
[null,"Pipe Support Replacement",null,0,0,0,0,267286.43524886959,267286.43524886959,374201.00934841734]
[null,"Pipeline Integrity",null,0,0,7475181.5591275394,6895990.029420835,7377105.6128687998,5559557.8531764857,2245206.0560905044]
[null,"Regulator Upgrade - Lara pneumatic control system upgrade",null,-18.739999999999782,21382.914819909565,0,0,0,0,0]
[null,"Reliability Centred Maintenance ",null,0,0,534572.87049773918,1871005.046742087,0,0,0]
[null,"Remote CP/critical drainage bond monitoring",null,97094,0,0,0,0,0,0]
[null,"Somerton Pig Trap",null,110484.24583447966,0,0,0,0,0,0]
[null,"Station Control Logic Review & Rectification",null,0,0,85531.70146171021,520588.16637356509,520588.16637356509,520588.16637356509,520588.16637356509]
[null,"T015 Oakleigh PigT",null,256880.42464804856,930796.27211667039,0,0,0,0,0]
[null,"T110 Snowy Unpiggable ",null,1396200.9398531655,2941233.199461367,0,0,0,0,0]
[null,"T33 non-piggable and encased sections (unknown technical solution)",null,2260395.1974099544,0,0,0,0,0,0]
[null,"T99 B'wartha-C ILI",null,992904.16081602266,13651.708137623064,0,0,0,0,0]
[null,"Turbine Overhaul and Minor Upgrades",null,0,0,1817547.7596923131,0,0,0,3528180.9452850781]
[null,"Turbine Overhauls",null,3036462.5923659047,0,0,0,0,0,0]
[null,"Type B Compliance ",null,0,0,0,491807.04085792002,534572.87049773918,534572.87049773918,534572.87049773918]
[null,"See continuation of list on \"Additional disclosures\" tab",null,305842.88,0,13095842.160547661,18691088.098558582,8753780.4348042179,4124764.268760555,3055618.5277650766]
[null,"Aggregate of other projects with total expenditure of less than $500,000",null,2004740.3715573952,2734028.8973540198,353737.55986576393,0,213829.14819909565,0,0]
[null,"Total",null,{"$f":"SUM(D22:D72)","v":28892065.65865951},19706535.725308143,28764165.552998282,38367988.164644524,27773155.870177947,19359363.781010289,17170561.577631742]
[]
[null,"E2.2.2 - VOLUMES"]
[null,null,null,"VOLUMES"]
[null,null,null,"0's"]
[null,null,"Units",{"$f":"CRCP_y4","v":2021},{"$f":"CRCP_y5","v":2022},{"$f":"FRCP_y1","v":2023},{"$f":"FRCP_y2","v":2024},{"$f":"FRCP_y3","v":2025},{"$f":"FRCP_y4","v":2026},{"$f":"FRCP_y5","v":2027}]
[null,{"$f":"IF(ISBLANK(B22),\"\",B22)","v":"Actuate MLV's in T1 areas"}]
[null,"Arc Flash Risk Mitigation"]
[null,"Battery Charger Upgrades"]
[null,"Bay St Unichema"]
[null,"BCS MCC Room Fire Suppression System"]
[null,"BCS Unit 12 Inlet Filter Upgrade"]
[null,"Brooklyn Compressor Station"]
[null,"Brooklyn CS upgrade"]
[null,"Compressor Station Vent Stack Upgrade (BCS, WCS, GCS, SCS)"]
[null,"Compressor Station Vent Upgrade"]
[null,"Control Valve Positioner Replacement"]
[null,"Coogee Unpiggable"]
[null,"CP - Cathodic Protection Replacement"]
[null,"CP Replacement"]
[null,"Critical Spares"]
[null,"Culcairn Injection Gas Quality equipment"]
[null,"Dandenong City Gate Gas Quality"]
[null,"Emergency Response Equipment"]
[null,"Encroachment High Consequence"]
[null,"Hazardous Area Rectification"]
[null,"HMI ClearSCADA Upgrade"]
[null,"Iona CG Review"]
[null,"Iona CS Aftercooler Upgrade"]
[null,"L'ford Upg Flare"]
[null,"Liquids Management "]
[null,"Low Value Preventative & Reactive Maintenance"]
[null,"Pakenham Unpiggables"]
[null,"Pig Trap Installation James Street to Laverton Pipeline (253)"]
[null,"Pig Trap Installation Tyers to Maryvale Pipeline (67)"]
[null,"Pigging Program T1 Morwell - Dandenong Pigging and Repair Program"]
[null,"Pigging Program T108 Newport"]
[null,"Pigging Program T61 Packenham - Wollert"]
[null,{"$f":"IF(ISBLANK(B54),\"\",B54)","v":"Pigging Program T63 Tyers - Morwell"}]
[null,"Pigging Program T66-70 Mt Franklin -Kyneton - Bendigo"]
[null,"Pigging Program T75  Wandong - Kyneton"]
[null,"Pipe Support Replacement"]
[null,"Pipeline Integrity"]
[null,"Regulator Upgrade - Lara pneumatic control system upgrade"]
[null,"Reliability Centred Maintenance "]
[null,"Remote CP/critical drainage bond monitoring"]
[null,"Somerton Pig Trap"]
[null,"Station Control Logic Review & Rectification"]
[null,"T015 Oakleigh PigT"]
[null,"T110 Snowy Unpiggable "]
[null,"T33 non-piggable and encased sections (unknown technical solution)"]
[null,"T99 B'wartha-C ILI"]
[null,"Turbine Overhaul and Minor Upgrades"]
[null,"Turbine Overhauls"]
[null,"Type B Compliance "]
[null,"See continuation of list on \"Additional disclosures\" tab"]
[null,"Aggregate of other projects with total expenditure of less than $500,000"]
[null,"Total",null,{"$f":"SUM(D79:D129)","v":0},0,0,0,0,0,0]
[]
[]
[]
[]
[]
[]
[]
[]
[]
[]
[]
[]
[]
[]
[]
[]
[]
[]
[]
[]
[]
[" "]

{"sheet":"E3. Expansion","index":6,"n_rows":68,"n_cols":10,"rows_kept":68,"cut":false,"hidden":false,"merged":[[9,1,9,2],[8,1,8,2],[19,1,19,2],[14,1,14,2],[13,1,13,2],[12,1,12,2],[11,1,11,2],[23,1,23,2],[21,1,21,2],[20,1,20,2],[22,1,22,2],[10,1,10,2],[28,1,28,2],[27,1,27,2],[26,1,26,2],[25,1,25,2],[24,1,24,2],[6,3,6,9],[44,3,44,9],[18,3,18,9],[67,1,67,2],[40,1,40,2],[39,1,39,2],[38,1,38,2],[37,1,37,2],[36,1,36,2],[35,1,35,2],[34,1,34,2],[33,1,33,2],[31,1,31,2],[32,1,32,2],[30,1,30,2],[29,1,29,2]]}
[null,{"$f":"IF(dms_MultiYear_ResponseFlag=\"Yes\",\"REGULATORY REPORTING STATEMENT - HISTORICAL INFORMATION\",INDEX(dms_Worksheet_List,MATCH(dms_Model,dms_Model_List)))","v":"REGULATORY REPORTING STATEMENT"}]
[null,{"$f":"INDEX(dms_TradingNameFull_List,MATCH(dms_TradingName,dms_TradingName_List))","v":"APA VTS Australia (Operations) Pty Ltd"}]
[null,{"$f":"dms_Header_Span","v":"Data Span 2021 - 2027"}]
[null,"E3. EXPANSION CAPITAL EXPENDITURE"]
[]
[null,"E3.1 - CAPEX - BY DRIVER"]
[null,null,null,{"$f":"CONCATENATE(\"EXPENDITURE\nForecast ($0's real, \",dms_DollarReal,\")\")","v":"EXPENDITURE\nForecast ($0's real, December 2022)"}]
[null,null,null,{"$f":"CRCP_y4","v":2021},{"$f":"CRCP_y5","v":2022},{"$f":"FRCP_y1","v":2023},{"$f":"FRCP_y2","v":2024},{"$f":"FRCP_y3","v":2025},{"$f":"FRCP_y4","v":2026},{"$f":"FRCP_y5","v":2027}]
[null,"Direct labour",null,6445047.3845519107,8036519.147352431,15528756.450781424,8456725.0159453172,3150109.8695652173,0,0]
[null,"Direct materials",null,8363881.5399583569,20384495.799896147,31086250.52006188,17405155.405197158,164253.55555555556,0,0]
[null,"Direct contractor",null,5375698.6898747375,37988713.404695503,19346983.867178261,24327523.185615037,3229535.111111111,0,0]
[null,"Other direct expenditure",null,7892982.1756149996,24626153.648055915,14760180.061978435,2229829.8265758166,279109.13043478259,0,0]
[null,"Overheads",null,2021075.1375536853,6294743.5180669241,5581594.3216441348,3624566.7381627825,471781.920929496,0,0]
[null,"Capital contributions included in the above",null,0,0,0,0,0,0,0]
[null,"Total (less capital contributions)",null,{"$f":"SUM(D9:D13)-D14","v":30098684.927553691},{"$f":"SUM(E9:E13)-E14","v":97330625.518066928},86303765.221644133,56043800.171496108,7294789.5875961622,0,0]
[]
[null,"E3.2 - CAPEX - BY PROJECT"]
[null,"E3.2.1 - EXPENDITURE"]
[null,null,null,{"$f":"CONCATENATE(\"EXPENDITURE\nForecast ($0's real, \",dms_DollarReal,\")\")","v":"EXPENDITURE\nForecast ($0's real, December 2022)"}]
[null,"Project Name",null,{"$f":"CRCP_y4","v":2021},{"$f":"CRCP_y5","v":2022},{"$f":"FRCP_y1","v":2023},{"$f":"FRCP_y2","v":2024},{"$f":"FRCP_y3","v":2025},{"$f":"FRCP_y4","v":2026},{"$f":"FRCP_y5","v":2027}]
[null,"Stonehaven CS - now Winchelsea",null,1318.63,0,0,0,0,0,0]
[null,"SWP_570",null,0,0,36851060.837031215,53073985.935174629,7294789.5875961622,0,0]
[null,"VNIE Looping 6 to 8",null,178167.79183410411,0,0,0,0,0,0]
[null,"Warragul Looping 6\" (Southern Route)",null,3489.5399999999995,0,0,0,0,0,0]
[null,"WORM (Pipeline)",null,29972800.447553821,97330625.518066928,49452704.384612918,2969814.2363214847,0,0,0]
[]
[]
[]
[]
[]
[]
[]
[]
[]
[]
[]
[]
[]
[]
[]
[null,"Aggregate of other projects with total expenditure of less than $500,000",null,-57091.74,0,0,0,0,0,0]
[null,"Total",null,{"$f":"SUM(D21:D41)","v":30098684.669387925},97330625.518066928,86303765.221644133,56043800.171496116,7294789.5875961622,0,0]
[]
[null,"E3.2.2 - VOLUMES"]
[null,null,null,"VOLUMES"]
[null,null,"Units",{"$f":"CRCP_y4","v":2021},{"$f":"CRCP_y5","v":2022},{"$f":"FRCP_y1","v":2023},{"$f":"FRCP_y2","v":2024},{"$f":"FRCP_y3","v":2025},{"$f":"FRCP_y4","v":2026},{"$f":"FRCP_y5","v":2027}]
[null,{"$f":"IF(ISBLANK(B21),\"\",B21)","v":"Stonehaven CS - now Winchelsea"}]
[null,"SWP_570"]
[null,"VNIE Looping 6 to 8"]
[null,"Warragul Looping 6\" (Southern Route)"]
[null,"WORM (Pipeline)"]
[null,""]
[null,""]
[null,""]
[null,""]
[null,""]
[null,""]
[null,""]
[null,""]
[null,""]
[null,""]
[null,""]
[null,""]
[null,""]
[null,""]
[null,""]
[null,"Aggregate of other projects with total expenditure of less than $500,000"]
[null,"Total",null,{"$f":"SUM(D47:D67)","v":0},0,0,0,0,0,0]

{"sheet":"E6. Non-network","index":7,"n_rows":38,"n_cols":9,"rows_kept":38,"cut":false,"hidden":false,"merged":[[19,2,19,8],[7,2,7,8]]}
[null,{"$f":"IF(dms_MultiYear_ResponseFlag=\"Yes\",\"REGULATORY REPORTING STATEMENT - HISTORICAL INFORMATION\",INDEX(dms_Worksheet_List,MATCH(dms_Model,dms_Model_List)))","v":"REGULATORY REPORTING STATEMENT"}]
[null,{"$f":"INDEX(dms_TradingNameFull_List,MATCH(dms_TradingName,dms_TradingName_List))","v":"APA VTS Australia (Operations) Pty Ltd"}]
[null,{"$f":"dms_Header_Span","v":"Data Span 2021 - 2027"}]
[null,"E6. NON-NETWORK "]
[]
[null,"E6.1 - NON-NETWORK"]
[null,"E6.1.1 - CAPEX - BY DRIVER"]
[null,null,{"$f":"CONCATENATE(\"EXPENDITURE\nForecast ($0's real, \",dms_DollarReal,\")\")","v":"EXPENDITURE\nForecast ($0's real, December 2022)"}]
[null,null,{"$f":"CRCP_y4","v":2021},{"$f":"CRCP_y5","v":2022},{"$f":"FRCP_y1","v":2023},{"$f":"FRCP_y2","v":2024},{"$f":"FRCP_y3","v":2025},{"$f":"FRCP_y4","v":2026},{"$f":"FRCP_y5","v":2027}]
[null,"Direct labour",2472604.6359279146,561576.40907982504,886706.4,1031139.4746291587,562087.80000000005,347195.7,325116]
[null,"Direct materials",171592.30645354468,210656.28733684969,172308.47462915877,0,172308.47462915877,172308.47462915877,172308.47462915877]
[null,"Direct contractor",204884.7219092123,1412450.6418525423,1773412.8,2536073.2997819986,1124175.6000000001,694391.4,650232]
[null,"Other direct expenditure",2192374.2188251778,1147595.5712815518,295568.8,286277,187362.59999999998,115731.9,1836800.7631700803]
[null,"Overheads",207298.6040364721,152090.6900842012,204373.23691144324,197948.35294962541,129553.25811839401,80023.67982314594,74934.622431619733]
[null,"Capital contributions included in the above",0,0,0,0,0,0,0]
[null,"Total (less capital contributions)",{"$f":"SUM(C10:C14)-C15","v":5248754.4871523213},{"$f":"SUM(D10:D14)-D15","v":3484369.5996349701},3332369.7115406017,4051438.1273607826,2175487.7327475529,1409651.1544523046,3059391.8602308584]
[]
[]
[null,"E6.1.2 - CAPEX BY PROJECT"]
[null,null,{"$f":"CONCATENATE(\"EXPENDITURE\nForecast ($0's real, \",dms_DollarReal,\")\")","v":"EXPENDITURE\nForecast ($0's real, December 2022)"}]
[null,null,{"$f":"CRCP_y4","v":2021},{"$f":"CRCP_y5","v":2022},{"$f":"FRCP_y1","v":2023},{"$f":"FRCP_y2","v":2024},{"$f":"FRCP_y3","v":2025},{"$f":"FRCP_y4","v":2026},{"$f":"FRCP_y5","v":2027}]
[null,"Dandenong refurbishment",1006895.6655799998,0,0,0,0,0,0]
[null,"Information Technology",0,229905.89270644466,118592.85302844146,34610.385927505624,4060.6155243008266,100632.27372545839,0]
[null,"Operational Technology",0,377440.52094363369,847046.75048978266,831686.33362890058,682465.66255816165,697826.07941904373,719770.29575297586]
[null,"Share of corporate leased assets",802007.54530505079,960403.43492161017,0,818411.2997819985,0,0,1728428.7631700803]
[null,"Share of corporate motor vehicles",164759.72240730992,172308.47462915877,172308.47462915877,172308.47462915877,172308.47462915877,172308.47462915877,172308.47462915877]
[null,"Transformation Office ",0,1316652.9800359316,2194421.6333932192,2194421.6333932192,1316652.9800359316,438884.32667864382,438884.32667864382]
[]
[]
[]
[]
[]
[]
[]
[]
[]
[null,"Aggregate of other projects with total expenditure of less than $500,000",3275091.5538599603,427658.29639819131]
[null,"Total",{"$f":"SUM(C22:C37)","v":5248754.4871523213},{"$f":"SUM(D22:D37)","v":3484369.5996349701},3332369.7115406021,4051438.1273607826,2175487.7327475529,1409651.1544523048,3059391.8602308589]

{"sheet":"E10. Overheads","index":8,"n_rows":30,"n_cols":9,"rows_kept":30,"cut":false,"hidden":false,"merged":[[6,2,6,8],[20,2,20,8]]}
[null,{"$f":"IF(dms_MultiYear_ResponseFlag=\"Yes\",\"REGULATORY REPORTING STATEMENT - HISTORICAL INFORMATION\",INDEX(dms_Worksheet_List,MATCH(dms_Model,dms_Model_List)))","v":"REGULATORY REPORTING STATEMENT"}]
[null,{"$f":"INDEX(dms_TradingNameFull_List,MATCH(dms_TradingName,dms_TradingName_List))","v":"APA VTS Australia (Operations) Pty Ltd"}]
[null,{"$f":"dms_Header_Span","v":"Data Span 2021 - 2027"}]
[null,"E10. OVERHEADS"]
[]
[null,"E10.1 - NETWORK"]
[null,null,{"$f":"CONCATENATE(\"EXPENDITURE\nForecast ($0's real, \",dms_DollarReal,\")\")","v":"EXPENDITURE\nForecast ($0's real, December 2022)"}]
[null,null,{"$f":"CRCP_y4","v":2021},{"$f":"CRCP_y5","v":2022},{"$f":"FRCP_y1","v":2023},{"$f":"FRCP_y2","v":2024},{"$f":"FRCP_y3","v":2025},{"$f":"FRCP_y4","v":2026},{"$f":"FRCP_y5","v":2027}]
[null,"E10.1.1 - OPEX"]
[null,"Reference services"]
[null,"Other services provided as a covered pipeline"]
[null,"All opex"]
[null,"E10.1.2 - CAPEX"]
[null,"Reference services",null,null,8436330.5899229553,7106272.9341295017,3193537.2868665047,2070001.5787533117,3193537.2868665047]
[null,"Other services provided as a covered pipeline",null,null,0,null,0,0,0]
[null,"All capex",null,null,{"$f":"E14+E15","v":8436330.5899229553},{"$f":"F14+F15","v":7106272.9341295017},{"$f":"G14+G15","v":3193537.2868665047},{"$f":"H14+H15","v":2070001.5787533117},{"$f":"I14+I15","v":3193537.2868665047}]
[]
[]
[]
[null,"E10.2 - CORPORATE"]
[null,null,{"$f":"CONCATENATE(\"EXPENDITURE\nForecast ($0's real, \",dms_DollarReal,\")\")","v":"EXPENDITURE\nForecast ($0's real, December 2022)"}]
[null,null,{"$f":"CRCP_y4","v":2021},{"$f":"CRCP_y5","v":2022},{"$f":"FRCP_y1","v":2023},{"$f":"FRCP_y2","v":2024},{"$f":"FRCP_y3","v":2025},{"$f":"FRCP_y4","v":2026},{"$f":"FRCP_y5","v":2027}]
[null,"E10.2.1 - OPEX"]
[null,"Reference services"]
[null,"Other services provided as a covered pipeline"]
[null,"All opex"]
[null,"E10.2.2 - CAPEX"]
[null,"Reference services",0,0,0,0,0,0,0]
[null,"Other services provided as a covered pipeline",0,0,0,0,0,0,0]
[null,"All capex",{"$f":"C28+C29","v":0},0,0,0,0,0,0]

{"sheet":"E11. Labour","index":9,"n_rows":23,"n_cols":9,"rows_kept":23,"cut":false,"hidden":false,"merged":[[8,2,8,8]]}
[null,{"$f":"IF(dms_MultiYear_ResponseFlag=\"Yes\",\"REGULATORY REPORTING STATEMENT - HISTORICAL INFORMATION\",INDEX(dms_Worksheet_List,MATCH(dms_Model,dms_Model_List)))","v":"REGULATORY REPORTING STATEMENT"}]
[null,{"$f":"INDEX(dms_TradingNameFull_List,MATCH(dms_TradingName,dms_TradingName_List))","v":"APA VTS Australia (Operations) Pty Ltd"}]
[null,{"$f":"dms_Header_Span","v":"Data Span 2021 - 2027"}]
[null,"E11. LABOUR "]
[]
[null,"Tables E11.1 and E11.2 intentionlly omitted."]
[]
[null,"E11.3 - LABOUR / NON-LABOUR EXPENDITURE SPLIT"]
[null,null,"EXPENDITURE\r\nForecast ($0's real, June 2022)"]
[null,null,{"$f":"CRCP_y4","v":2021},{"$f":"CRCP_y5","v":2022},{"$f":"FRCP_y1","v":2023},{"$f":"FRCP_y2","v":2024},{"$f":"FRCP_y3","v":2025},{"$f":"FRCP_y4","v":2026},{"$f":"FRCP_y5","v":2027}]
[null,"E11.3.1 - OPEX"]
[null,"In-house labour expenditure",15414879.904874766,15489656.053416375,18201938.493958559,18833705.376782548,18504563.992152721,18717681.267660659,18719456.467218172]
[null,"Labour expenditure outsourced to related parties"]
[null,"Labour expenditure outsourced to unrelated parties"]
[null,"Non-labour expenditure",14473262.837304225,14543471.28903934,17090074.110029068,17683249.548530173,17374213.746773764,17574312.765555035,17575979.52714793]
[null,"Total",{"$f":"SUM(C12:C15)","v":29888142.742178991},{"$f":"SUM(D12:D15)","v":30033127.342455715},35292012.603987627,36516954.92531272,35878777.738926485,36291994.033215694,36295435.994366102]
[]
[null,"E11.3.2 - CAPEX"]
[null,"In-house labour expenditure",{"$f":"'E2. Repex'!D10+'E3. Expansion'!D9+'E6. Non-network'!C10+'E13. Other capex'!C10","v":17744241.018329941},{"$f":"'E2. Repex'!E10+'E3. Expansion'!E9+'E6. Non-network'!D10+'E13. Other capex'!D10","v":12508263.054013124},{"$f":"'E2. Repex'!F10+'E3. Expansion'!F9+'E6. Non-network'!E10+'E13. Other capex'!E10","v":21075385.191409543},{"$f":"'E2. Repex'!G10+'E3. Expansion'!G9+'E6. Non-network'!F10+'E13. Other capex'!F10","v":15883457.255180646},{"$f":"'E2. Repex'!H10+'E3. Expansion'!H9+'E6. Non-network'!G10+'E13. Other capex'!G10","v":7627146.9016809147},{"$f":"'E2. Repex'!I10+'E3. Expansion'!I9+'E6. Non-network'!H10+'E13. Other capex'!H10","v":2788970.2877450399},{"$f":"'E2. Repex'!J10+'E3. Expansion'!J9+'E6. Non-network'!I10+'E13. Other capex'!I10","v":2208483.5749049699}]
[null,"Labour expenditure outsourced to related parties",0,0,0,0,0,0,0]
[null,"Labour expenditure outsourced to unrelated parties",0,0,0,0,0,0,0]
[null,"Non-labour expenditure",{"$f":"'E2. Repex'!D16+'E3. Expansion'!D15+'E6. Non-network'!C16+'E13. Other capex'!C16-C19","v":46495264.055035584},{"$f":"'E2. Repex'!E16+'E3. Expansion'!E15+'E6. Non-network'!D16+'E13. Other capex'!D16-D19","v":111728361.06930579},{"$f":"'E2. Repex'!F16+'E3. Expansion'!F15+'E6. Non-network'!E16+'E13. Other capex'!E16-E19","v":109541210.81259656},{"$f":"'E2. Repex'!G16+'E3. Expansion'!G15+'E6. Non-network'!F16+'E13. Other capex'!F16-F19","v":94985923.626829833},{"$f":"'E2. Repex'!H16+'E3. Expansion'!H15+'E6. Non-network'!G16+'E13. Other capex'!G16-G19","v":41924295.266617917},{"$f":"'E2. Repex'!I16+'E3. Expansion'!I15+'E6. Non-network'!H16+'E13. Other capex'!H16-H19","v":29390130.505773928},{"$f":"'E2. Repex'!J16+'E3. Expansion'!J15+'E6. Non-network'!I16+'E13. Other capex'!I16-I19","v":26570559.138211042}]
[null,"Total",{"$f":"SUM(C19:C22)","v":64239505.073365524},{"$f":"SUM(D19:D22)","v":124236624.12331891},130616596.0040061,110869380.88201047,49551442.168298833,32179100.793518968,28779042.713116013]

{"sheet":"E13. Other capex","index":10,"n_rows":33,"n_cols":9,"rows_kept":33,"cut":false,"hidden":false,"merged":[[19,2,19,8],[7,2,7,8]]}
[null,{"$f":"IF(dms_MultiYear_ResponseFlag=\"Yes\",\"REGULATORY REPORTING STATEMENT - HISTORICAL INFORMATION\",INDEX(dms_Worksheet_List,MATCH(dms_Model,dms_Model_List)))","v":"REGULATORY REPORTING STATEMENT"}]
[null,{"$f":"INDEX(dms_TradingNameFull_List,MATCH(dms_TradingName,dms_TradingName_List))","v":"APA VTS Australia (Operations) Pty Ltd"}]
[null,{"$f":"dms_Header_Span","v":"Data Span 2021 - 2027"}]
[null,"E13. OTHER CAPITAL EXPENDITURE"]
[]
[null,"E13.1 - OTHER CAPEX"]
[null,"E13.1.1 - CAPEX - BY DRIVER"]
[null,null,{"$f":"CONCATENATE(\"EXPENDITURE\nForecast ($0's real, \",dms_DollarReal,\")\")","v":"EXPENDITURE\nForecast ($0's real, December 2022)"}]
[null,null,{"$f":"CRCP_y4","v":2021},{"$f":"CRCP_y5","v":2022},{"$f":"FRCP_y1","v":2023},{"$f":"FRCP_y2","v":2024},{"$f":"FRCP_y3","v":2025},{"$f":"FRCP_y4","v":2026},{"$f":"FRCP_y5","v":2027}]
[null,"Direct labour",0,1042447.2,1156174.2,1209448.2,1154345.6000000001,929953.5,127164]
[null,"Direct materials",0,0,0,0,32000,0,0]
[null,"Direct contractor",0,2084894.4,9884655.4000000004,9991203.4000000004,9965838.1999999993,9432214,7826635]
[null,"Other direct expenditure",0,347482.4,385391.4,403149.4,359819.2,309984.5,42388]
[null,"Overheads",0,240269.28030887188,790074.51782309497,802353.41850907204,796005.97777716909,737933.85805637576,552902.27525341057]
[null,"Capital contributions included in the above",0,0,0,0,0,0,0]
[null,"Total (less capital contributions)",{"$f":"SUM(C10:C14)-C15","v":0},{"$f":"SUM(D10:D14)-D15","v":3715093.2803088715},12216295.517823095,12406154.418509072,12308008.977777168,11410085.858056376,8549089.2752534114]
[]
[]
[null,"E13.1.2 - CAPEX BY PROJECT"]
[null,null,{"$f":"CONCATENATE(\"EXPENDITURE\nForecast ($0's real, \",dms_DollarReal,\")\")","v":"EXPENDITURE\nForecast ($0's real, December 2022)"}]
[null,null,{"$f":"CRCP_y4","v":2021},{"$f":"CRCP_y5","v":2022},{"$f":"FRCP_y1","v":2023},{"$f":"FRCP_y2","v":2024},{"$f":"FRCP_y3","v":2025},{"$f":"FRCP_y4","v":2026},{"$f":"FRCP_y5","v":2027}]
[]
[]
[]
[]
[]
[]
[]
[]
[]
[]
[null,"Aggregate of other projects with total expenditure of less than $500,000"]
[null,"Total",{"$f":"SUM(C22:C32)","v":0},{"$f":"SUM(D22:D32)","v":0},0,0,0,0,0]

{"sheet":"E17. Step changes","index":11,"n_rows":70,"n_cols":10,"rows_kept":70,"cut":false,"hidden":false,"merged":[[41,3,41,9],[42,3,42,9],[69,1,69,2],[7,3,7,9],[8,3,8,9],[20,1,20,2],[23,3,23,9],[24,3,24,9],[36,1,36,2],[44,1,44,2],[56,1,56,2],[45,1,45,2],[46,1,46,2],[47,1,47,2],[48,1,48,2],[49,1,49,2],[50,1,50,2],[51,1,51,2],[52,1,52,2],[53,1,53,2],[54,1,54,2],[55,1,55,2],[68,1,68,2],[57,1,57,2],[58,1,58,2],[59,1,59,2],[60,1,60,2],[61,1,61,2],[62,1,62,2],[63,1,63,2],[64,1,64,2],[65,1,65,2],[66,1,66,2],[67,1,67,2]]}
[null,{"$f":"INDEX(dms_Worksheet_List,MATCH(dms_Model,dms_Model_List))","v":"REGULATORY REPORTING STATEMENT"}]
[null,{"$f":"INDEX(dms_TradingNameFull_List,MATCH(dms_TradingName,dms_TradingName_List))","v":"APA VTS Australia (Operations) Pty Ltd"}]
[null,{"$f":"dms_Header_Span","v":"Data Span 2021 - 2027"}]
[null,"E17. STEP CHANGES"]
[]
[null,"E17.1 - STEP CHANGES FOR REFERENCE SERVICES"]
[null,"E17.1.1 - FORECAST OPEX"]
[null,null,null,"EXPENDITURE"]
[null,null,null,{"$f":"CONCATENATE(\"$0's, real \",dms_DollarReal)","v":"$0's, real December 2022"}]
[null,"Step change","Description",{"$f":"CRCP_y4","v":2021},{"$f":"CRCP_y5","v":2022},{"$f":"FRCP_y1","v":2023},{"$f":"FRCP_y2","v":2024},{"$f":"FRCP_y3","v":2025},{"$f":"FRCP_y4","v":2026},{"$f":"FRCP_y5","v":2027}]
[null,"Acquisition of carbon offset certificates",null,null,null,271596.48174399999,283860.199532,296123.91731999995,326633.65425599995,357143.39119199995]
[null,"Opex from Capex - WORM",null,null,null,605679.59593220346,605679.59593220346,605679.59593220346,605679.59593220346,605679.59593220346]
[null,"Opex from Capex - SWP compressors",null,null,null,0,562520.64746440679,1125041.2949288136,1125041.2949288136,1125041.2949288136]
[null,"Transformation and Technology",null,null,null,2396909.5,2992134.5,1748319.5000000002,1140779.5,1132569.5]
[null,"Security of Critical Infrastructure",null,null,null,1313392.6500000001,1313392.6500000001,1313392.6500000001,1313392.6500000001,1313392.6500000001]
[null,"Increase in VTS property taxes",null,null,null,626534.83679999993,626534.83679999993,626534.83679999993,626534.83679999993,626534.83679999993]
[]
[]
[]
[]
[null,"Total",null,{"$f":"SUM(D11:D20)","v":0},0,5214113.0644762032,6384122.4297286104,5715091.7949810168,5138061.531917017,5160361.2688530171]
[]
[null,"E17.1.2 - FORECAST CAPEX"]
[null,null,null,"EXPENDITURE"]
[null,null,null,{"$f":"CONCATENATE(\"$0's, real \", dms_DollarReal)","v":"$0's, real December 2022"}]
[null,"Step change","Description",{"$f":"CRCP_y4","v":2021},{"$f":"CRCP_y5","v":2022},{"$f":"FRCP_y1","v":2023},{"$f":"FRCP_y2","v":2024},{"$f":"FRCP_y3","v":2025},{"$f":"FRCP_y4","v":2026},{"$f":"FRCP_y5","v":2027}]
[]
[]
[]
[]
[]
[]
[]
[]
[]
[]
[null,"Total",null,{"$f":"SUM(D27:D36)","v":0},0,0,0,0,0,0]
[]
[]
[]
[null,"E17.2 - CATEGORY SPECIFIC FORECASTS"]
[null,null,null,"EXPENDITURE"]
[null,null,null,{"$f":"CONCATENATE(\"$0's, real \",dms_DollarReal)","v":"$0's, real December 2022"}]
[null,"Category desription",null,{"$f":"CRCP_y4","v":2021},{"$f":"CRCP_y5","v":2022},{"$f":"FRCP_y1","v":2023},{"$f":"FRCP_y2","v":2024},{"$f":"FRCP_y3","v":2025},{"$f":"FRCP_y4","v":2026},{"$f":"FRCP_y5","v":2027}]
[]
[]
[]
[]
[]
[]
[]
[]
[]
[]
[]
[]
[]
[]
[]
[]
[]
[]
[]
[]
[]
[]
[]
[]
[]
[null,"Total",null,{"$f":"SUM(D45:D69)","v":0},0,0,0,0,0,0]

{"sheet":"E20. Opex","index":12,"n_rows":103,"n_cols":12,"rows_kept":103,"cut":false,"hidden":false,"merged":[[12,2,12,11],[13,2,13,11],[49,2,49,11],[58,2,58,11],[36,2,36,11],[37,2,37,11],[5,1,5,3],[6,1,6,2],[6,3,7,3],[7,1,7,2],[8,1,8,2],[96,2,96,11],[67,2,67,11],[78,2,78,11],[87,2,87,11],[24,2,24,11],[25,2,25,11]]}
[null,{"$f":"IF(dms_MultiYear_ResponseFlag=\"Yes\",\"REGULATORY REPORTING STATEMENT - HISTORICAL INFORMATION\",INDEX(dms_Worksheet_List,MATCH(dms_Model,dms_Model_List)))","v":"REGULATORY REPORTING STATEMENT"}]
[null,{"$f":"INDEX(dms_TradingNameFull_List,MATCH(dms_TradingName,dms_TradingName_List))","v":"APA VTS Australia (Operations) Pty Ltd"}]
[null,{"$f":"dms_Header_Span","v":"Data Span 2021 - 2027"}]
[null,"E20. OPERATING EXPENDITURE"]
[]
[null,"IMPORTANT!"]
[null,{"$f":"CONCATENATE(\"Has \",dms_TradingName,\" used a base-step-trend model to derive its opex forecast? \")","v":"Has APA VTS used a base-step-trend model to derive its opex forecast? "},null,"Yes"]
[null,"Yes /  No"]
[null,"Please nominate the base year",null,2020]
[]
[null,"E20.1 - OPEX - BY DRIVER"]
[null,"E20.1.1 - REFERENCE SERVICES  "]
[null,null,"EXPENDITURE"]
[null,null,{"$f":"CONCATENATE(\"$0's, real \",dms_DollarReal)","v":"$0's, real December 2022"}]
[null,null,{"$f":"CRCP_y1","v":2018},{"$f":"CRCP_y2","v":2019},{"$f":"CRCP_y3","v":2020},{"$f":"CRCP_y4","v":2021},{"$f":"CRCP_y5","v":2022},{"$f":"FRCP_y1","v":2023},{"$f":"FRCP_y2","v":2024},{"$f":"FRCP_y3","v":2025},{"$f":"FRCP_y4","v":2026},{"$f":"FRCP_y5","v":2027}]
[null,"Base year total opex, excluding category specific",null,null,29411634.624699332,29888142.742178991,30033127.342455715,{"$f":"+G16","v":30033127.342455715},{"$f":"+H16","v":30033127.342455715},{"$f":"+I16","v":30033127.342455715},{"$f":"+J16","v":30033127.342455715},{"$f":"+K16","v":30033127.342455715}]
[null,"Increment from base year to final year"]
[null,"Price growth"]
[null,"Output growth"]
[null,"Productivity growth"]
[null,"Step changes",null,null,null,null,null,{"$f":"+'E17. Step changes'!F21","v":5214113.0644762032},{"$f":"+'E17. Step changes'!G21","v":6384122.4297286104},{"$f":"+'E17. Step changes'!H21","v":5715091.7949810168},{"$f":"+'E17. Step changes'!I21","v":5138061.531917017},{"$f":"+'E17. Step changes'!J21","v":5160361.2688530171}]
[null,"Category specific",null,null,null,{"$f":"IF(ISBLANK('E17. Step changes'!D70),\"\",'E17. Step changes'!D70)","v":0},{"$f":"IF(ISBLANK('E17. Step changes'!E70),\"\",'E17. Step changes'!E70)","v":0},{"$f":"IF(ISBLANK('E17. Step changes'!F70),\"\",'E17. Step changes'!F70)","v":0},{"$f":"IF(ISBLANK('E17. Step changes'!G70),\"\",'E17. Step changes'!G70)","v":0},{"$f":"IF(ISBLANK('E17. Step changes'!H70),\"\",'E17. Step changes'!H70)","v":0},{"$f":"IF(ISBLANK('E17. Step changes'!I70),\"\",'E17. Step changes'!I70)","v":0},{"$f":"IF(ISBLANK('E17. Step changes'!J70),\"\",'E17. Step changes'!J70)","v":0}]
[]
[null,"E20.1.3 - OTHER SERVICES PROVIDED AS A COVERED PIPELINE"]
[null,null,"EXPENDITURE"]
[null,null,{"$f":"CONCATENATE(\"$0's, real \",dms_DollarReal)","v":"$0's, real December 2022"}]
[null,null,{"$f":"CRCP_y1","v":2018},{"$f":"CRCP_y2","v":2019},{"$f":"CRCP_y3","v":2020},{"$f":"CRCP_y4","v":2021},{"$f":"CRCP_y5","v":2022},{"$f":"FRCP_y1","v":2023},{"$f":"FRCP_y2","v":2024},{"$f":"FRCP_y3","v":2025},{"$f":"FRCP_y4","v":2026},{"$f":"FRCP_y5","v":2027}]
[null,"Base year total opex, excluding category specific"]
[null,"Increment from base year to final year"]
[null,"Price growth"]
[null,"Output growth"]
[null,"Productivity growth"]
[null,"Step changes"]
[null,"Category specific"]
[]
[null,"E20.1.5 - ALL OPEX"]
[null,null,"EXPENDITURE"]
[null,null,{"$f":"CONCATENATE(\"$0's, real \",dms_DollarReal)","v":"$0's, real December 2022"}]
[null,null,{"$f":"CRCP_y1","v":2018},{"$f":"CRCP_y2","v":2019},{"$f":"CRCP_y3","v":2020},{"$f":"CRCP_y4","v":2021},{"$f":"CRCP_y5","v":2022},{"$f":"FRCP_y1","v":2023},{"$f":"FRCP_y2","v":2024},{"$f":"FRCP_y3","v":2025},{"$f":"FRCP_y4","v":2026},{"$f":"FRCP_y5","v":2027}]
[null,"Base year total opex, excluding category specific",null,null,{"$f":"+E16","v":29411634.624699332},29888142.742178991,30033127.342455715,30033127.342455715,30033127.342455715,30033127.342455715,30033127.342455715,30033127.342455715]
[null,"Increment from base year to final year"]
[null,"Price growth"]
[null,"Output growth"]
[null,"Productivity growth"]
[null,"Step changes",null,null,null,null,null,{"$f":"+H21","v":5214113.0644762032},{"$f":"+I21","v":6384122.4297286104},{"$f":"+J21","v":5715091.7949810168},{"$f":"+K21","v":5138061.531917017},{"$f":"+L21","v":5160361.2688530171}]
[null,"Category specific"]
[]
[null,"E20.2 - OPEX - BY CATEGORY"]
[null,"E20.2.1 - REFERENCE SERVICES"]
[null,null,{"$f":"CONCATENATE(\"EXPENDITURE\nForecast ($0's real, \",dms_DollarReal,\")\")","v":"EXPENDITURE\nForecast ($0's real, December 2022)"}]
[null,null,{"$f":"CRCP_y1","v":2018},{"$f":"CRCP_y2","v":2019},{"$f":"CRCP_y3","v":2020},{"$f":"CRCP_y4","v":2021},{"$f":"CRCP_y5","v":2022},{"$f":"FRCP_y1","v":2023},{"$f":"FRCP_y2","v":2024},{"$f":"FRCP_y3","v":2025},{"$f":"FRCP_y4","v":2026},{"$f":"FRCP_y5","v":2027}]
[null,"Repairs and maintenance"]
[null,"Other operating"]
[null,"Debt raising"]
[null,"Equity raising"]
[null,"Total",null,null,null,{"$f":"SUM(F52:F55)","v":0},0,0,0,0,0,0]
[]
[null,"E20.2.3 - OTHER SERVICES PROVIDED AS A COVERED PIPELINE"]
[null,null,{"$f":"CONCATENATE(\"EXPENDITURE\nForecast ($0's real, \",dms_DollarReal,\")\")","v":"EXPENDITURE\nForecast ($0's real, December 2022)"}]
[null,null,{"$f":"CRCP_y1","v":2018},{"$f":"CRCP_y2","v":2019},{"$f":"CRCP_y3","v":2020},{"$f":"CRCP_y4","v":2021},{"$f":"CRCP_y5","v":2022},{"$f":"FRCP_y1","v":2023},{"$f":"FRCP_y2","v":2024},{"$f":"FRCP_y3","v":2025},{"$f":"FRCP_y4","v":2026},{"$f":"FRCP_y5","v":2027}]
[null,"Repairs and maintenance"]
[null,"Other operating"]
[null,"Debt raising"]
[null,"Equity raising"]
[null,"Total",null,null,null,{"$f":"SUM(F61:F64)","v":0},0,0,0,0,0,0]
[]
[null,"E20.2.5 - ALL OPEX - BY CATEGORY"]
[null,null,{"$f":"CONCATENATE(\"EXPENDITURE\nForecast ($0's real, \",dms_DollarReal,\")\")","v":"EXPENDITURE\nForecast ($0's real, December 2022)"}]
[null,null,{"$f":"CRCP_y1","v":2018},{"$f":"CRCP_y2","v":2019},{"$f":"CRCP_y3","v":2020},{"$f":"CRCP_y4","v":2021},{"$f":"CRCP_y5","v":2022},{"$f":"FRCP_y1","v":2023},{"$f":"FRCP_y2","v":2024},{"$f":"FRCP_y3","v":2025},{"$f":"FRCP_y4","v":2026},{"$f":"FRCP_y5","v":2027}]
[null,"Repairs and maintenance"]
[null,"Other operating"]
[null,"Debt raising"]
[null,"Equity raising"]
[null,"Total",null,null,null,{"$f":"SUM(F70:F73)","v":0},0,0,0,0,0,0]
[]
[]
[null,"E20.3 - OPEX - BY CATEGORY - RELATED PARTY MARGIN EXPENDITURE"]
[null,"E20.3.1 - REFERENCE SERVICES"]
[null,null,{"$f":"CONCATENATE(\"EXPENDITURE\nForecast ($0's real, \",dms_DollarReal,\")\")","v":"EXPENDITURE\nForecast ($0's real, December 2022)"}]
[null,null,{"$f":"CRCP_y1","v":2018},{"$f":"CRCP_y2","v":2019},{"$f":"CRCP_y3","v":2020},{"$f":"CRCP_y4","v":2021},{"$f":"CRCP_y5","v":2022},{"$f":"FRCP_y1","v":2023},{"$f":"FRCP_y2","v":2024},{"$f":"FRCP_y3","v":2025},{"$f":"FRCP_y4","v":2026},{"$f":"FRCP_y5","v":2027}]
[null,"Repairs and maintenance"]
[null,"Other operating"]
[null,"Debt raising"]
[null,"Equity raising"]
[null,"Total",null,null,null,{"$f":"SUM(F81:F84)","v":0},0,0,0,0,0,0]
[]
[null,"E20.3.3 - OTHER SERVICES PROVIDED AS A COVERED PIPELINE"]
[null,null,{"$f":"CONCATENATE(\"EXPENDITURE\nForecast ($0's real, \",dms_DollarReal,\")\")","v":"EXPENDITURE\nForecast ($0's real, December 2022)"}]
[null,null,{"$f":"CRCP_y1","v":2018},{"$f":"CRCP_y2","v":2019},{"$f":"CRCP_y3","v":2020},{"$f":"CRCP_y4","v":2021},{"$f":"CRCP_y5","v":2022},{"$f":"FRCP_y1","v":2023},{"$f":"FRCP_y2","v":2024},{"$f":"FRCP_y3","v":2025},{"$f":"FRCP_y4","v":2026},{"$f":"FRCP_y5","v":2027}]
[null,"Repairs and maintenance"]
[null,"Other operating"]
[null,"Debt raising"]
[null,"Equity raising"]
[null,"Total",null,null,null,{"$f":"SUM(F90:F93)","v":0},0,0,0,0,0,0]
[]
[null,"E20.3.5 - ALL OPEX - BY CATEGORY - RELATED PARTY MARGIN EXPENDITURE"]
[null,null,{"$f":"CONCATENATE(\"EXPENDITURE\nForecast ($0's real, \",dms_DollarReal,\")\")","v":"EXPENDITURE\nForecast ($0's real, December 2022)"}]
[null,null,{"$f":"CRCP_y1","v":2018},{"$f":"CRCP_y2","v":2019},{"$f":"CRCP_y3","v":2020},{"$f":"CRCP_y4","v":2021},{"$f":"CRCP_y5","v":2022},{"$f":"FRCP_y1","v":2023},{"$f":"FRCP_y2","v":2024},{"$f":"FRCP_y3","v":2025},{"$f":"FRCP_y4","v":2026},{"$f":"FRCP_y5","v":2027}]
[null,"Repairs and maintenance"]
[null,"Other operating"]
[null,"Debt raising"]
[null,"Equity raising"]
[null,"Total",null,null,null,{"$f":"SUM(F99:F102)","v":0},0,0,0,0,0,0]

{"sheet":"N1. Demand","index":13,"n_rows":472,"n_cols":9,"rows_kept":472,"cut":false,"hidden":false,"merged":[[420,2,420,8],[42,2,42,8],[43,2,43,8],[201,2,201,8],[202,2,202,8],[260,2,260,8],[261,2,261,8],[6,2,6,8],[7,2,7,8],[14,2,14,8],[15,2,15,8],[419,2,419,8]]}
[null,{"$f":"IF(dms_MultiYear_ResponseFlag=\"Yes\",\"REGULATORY REPORTING STATEMENT - HISTORICAL INFORMATION\",INDEX(dms_Worksheet_List,MATCH(dms_Model,dms_Model_List)))","v":"REGULATORY REPORTING STATEMENT"}]
[null,{"$f":"INDEX(dms_TradingNameFull_List,MATCH(dms_TradingName,dms_TradingName_List))","v":"APA VTS Australia (Operations) Pty Ltd"}]
[null,{"$f":"dms_Header_Span","v":"Data Span 2021 - 2027"}]
[null,"N1. DEMAND"]
[]
[null,"N1.1 - DEMAND - BY USER TYPE"]
[null,null,"VOLUMES"]
[null,null,"GJ"]
[null,null,{"$f":"CRCP_y4","v":2021},{"$f":"CRCP_y5","v":2022},{"$f":"FRCP_y1","v":2023},{"$f":"FRCP_y2","v":2024},{"$f":"FRCP_y3","v":2025},{"$f":"FRCP_y4","v":2026},{"$f":"FRCP_y5","v":2027}]
[null,"Electricity generation customers",3190000,2190000,1900000,1770000,920000,915501.61358182481,931686.20668929094]
[null,"Total",{"$f":"SUM(C10:C10)","v":3190000},2190000,1900000,1770000,920000,915501.61358182481,931686.20668929094]
[]
[]
[null,"N1.2 - DEMAND - BY REFERENCE SERVICES"]
[null,null,"VOLUMES"]
[null,null,"GJ"]
[null,"Reference service",{"$f":"CRCP_y4","v":2021},{"$f":"CRCP_y5","v":2022},{"$f":"FRCP_y1","v":2023},{"$f":"FRCP_y2","v":2024},{"$f":"FRCP_y3","v":2025},{"$f":"FRCP_y4","v":2026},{"$f":"FRCP_y5","v":2027}]
[null,"Tariffed Transmission Service"]
[null,"Ballarat SWZ",10600000,10600000,10600000,10600000,10700000,10042894.898287492,10144006.96333354]
[null,"Geelong SWZ",20600000,20600000,20400000,20300000,20300000,19608644.815218169,19716458.857401188]
[null,"Gippsland SWZ",14000000,13800000,13600000,13400000,13200000,13067734.367519779,13112894.718479585]
[null,"Melbourne SWZ",127700000,125800000,123400000,121200000,119500000,117306130.17211112,118238865.0443303]
[null,"Northern SWZ",20000000,20100000,20000000,19900000,19800000,19071340.656319771,19176764.72396829]
[null,"Western SWZ",4000000,4000000,4000000,4000000,4000000,3869270.3315843577,3875803.2581990073]
[null,"Culcairn export",18934171.732971512,11358769.291814014,13896057.478468323,13896057.478468323,13896057.478468323,13896057.478468323,13896057.478468323]
[]
[]
[]
[]
[]
[]
[]
[]
[]
[]
[]
[]
[null,"Total",{"$f":"SUM(C18:C37)","v":215834171.73297152},{"$f":"SUM(D18:D37)","v":206258769.29181403},205896057.47846833,203296057.47846833,201396057.47846833,196862072.71950904,198160851.04418024]
[]
[]
[null,"N1.3 - WITHDRAWALS"]
[null,"N1.3.1 - PEAK VOLUME - BY LOCATION"]
[null,null,"VOLUMES"]
[null,null,"GJ"]
[null,"Withdrawal Point",{"$f":"CRCP_y4","v":2021},{"$f":"CRCP_y5","v":2022},{"$f":"FRCP_y1","v":2023},{"$f":"FRCP_y2","v":2024},{"$f":"FRCP_y3","v":2025},{"$f":"FRCP_y4","v":2026},{"$f":"FRCP_y5","v":2027}]
[null,"A. MINIMUM"]
[null,"Ballarat SWZ"]
[null,"Geelong SWZ"]
[null,"Gippsland SWZ"]
[null,"Melbourne SWZ"]
[null,"Northern SWZ"]
[null,"Western SWZ"]
[]
[]
[]
[]
[]
[]
[]
[]
[]
[]
[]
[]
[]
[]
[]
[]
[]
[]
[]
[]
[]
[]
[]
[]
[]
[]
[]
[]
[]
[]
[]
[]
[]
[]
[]
[]
[]
[]
[]
[]
[]
[]
[]
[]
[null,"B. MAXIMUM"]
[null,{"$f":"IF(ISBLANK(B47),\"\",B47)","v":"Ballarat SWZ"},64599.999999999993,64800,64800,65099.999999999993,66000,68156.22689188087,66553.489105279048]
[null,{"$f":"IF(ISBLANK(B48),\"\",B48)","v":"Geelong SWZ"},115700,116200,115000,115000,115700,121017.63496080661,118171.82695115026]
[null,{"$f":"IF(ISBLANK(B49),\"\",B49)","v":"Gippsland SWZ"},68400,68100,67300,66800,66600,70649.491878088622,68988.123351675677]
[null,"Melbourne SWZ",787000,775000,757100,743700,735400,795791.51853901614,777077.96593812155]
[null,"Northern SWZ",101800,102300,101800,101600,101900,106728.5028549773,104218.71303482677]
[null,"Western SWZ",17100,17200,17200,17200,17200,17997.601875230765,17574.376618947037]
[null,""]
[null,""]
[null,""]
[null,""]
[null,""]
[null,""]
[null,""]
[null,""]
[null,""]
[null,""]
[null,""]
[null,""]
[null,""]
[null,""]
[null,""]
[null,""]
[null,""]
[null,""]
[null,""]
[null,""]
[null,""]
[null,""]
[null,""]
[null,""]
[null,""]
[null,""]
[null,""]
[null,""]
[null,""]
[null,""]
[null,""]
[null,""]
[null,""]
[null,""]
[null,""]
[null,""]
[null,""]
[null,""]
[null,""]
[null,""]
[null,""]
[null,""]
[null,""]
[null,""]
[null,"C. AVERAGE"]
[null,{"$f":"IF(ISBLANK(B47),\"\",B47)","v":"Ballarat SWZ"},{"$f":"+C19/365","v":29041.095890410958},{"$f":"+D19/365","v":29041.095890410958},{"$f":"+E19/365","v":29041.095890410958},{"$f":"+F19/366","v":28961.748633879783},{"$f":"+G19/365","v":29315.068493150684},27514.780543253404,27791.799899543945]
[null,{"$f":"IF(ISBLANK(B48),\"\",B48)","v":"Geelong SWZ"},{"$f":"+C20/365","v":56438.356164383564},{"$f":"+D20/365","v":56438.356164383564},55890.410958904111,{"$f":"+F20/366","v":55464.480874316941},{"$f":"+G20/365","v":55616.438356164384},53722.314562241561,54017.695499729285]
[null,{"$f":"IF(ISBLANK(B49),\"\",B49)","v":"Gippsland SWZ"},38356.164383561641,{"$f":"+D21/365","v":37808.219178082189},37260.273972602743,36612.021857923501,{"$f":"+G21/365","v":36164.383561643837},35802.011965807615,35925.73895473859]
[null,"Melbourne SWZ",349863.01369863015,{"$f":"+D22/365","v":344657.53424657532},338082.19178082194,331147.54098360654,{"$f":"+G22/365","v":327397.26027397258},321386.65800578392,323942.09601186385]
[null,"Northern SWZ",54794.520547945205,{"$f":"+D23/365","v":55068.493150684932},54794.520547945205,54371.584699453553,{"$f":"+G23/365","v":54246.575342465752},52250.248373478826,52539.081435529559]
[null,"Western SWZ",10958.904109589041,{"$f":"+D24/365","v":10958.904109589041},10958.904109589041,10928.961748633879,{"$f":"+G24/365","v":10958.904109589041},10600.740634477692,10618.639063558923]
[null,""]
[null,""]
[null,""]
[null,""]
[null,""]
[null,""]
[null,""]
[null,""]
[null,""]
[null,""]
[null,""]
[null,""]
[null,""]
[null,""]
[null,""]
[null,""]
[null,""]
[null,""]
[null,""]
[null,""]
[null,""]
[null,""]
[null,""]
[null,""]
[null,""]
[null,""]
[null,""]
[null,""]
[null,""]
[null,""]
[null,""]
[null,""]
[null,""]
[null,""]
[null,""]
[null,""]
[null,""]
[null,""]
[null,""]
[null,""]
[null,""]
[null,""]
[null,""]
[null,""]
[]
[]
[null,"N1.3.2 - ANNUAL VOLUME - BY LOCATION"]
[null,null,"VOLUMES"]
[null,null,"GJ"]
[null,"Withdrawal Point",{"$f":"CRCP_y4","v":2021},{"$f":"CRCP_y5","v":2022},{"$f":"FRCP_y1","v":2023},{"$f":"FRCP_y2","v":2024},{"$f":"FRCP_y3","v":2025},{"$f":"FRCP_y4","v":2026},{"$f":"FRCP_y5","v":2027}]
[null,{"$f":"IF(ISBLANK(B47),\"\",B47)","v":"Ballarat SWZ"},{"$f":"+C19","v":10600000},{"$f":"+D19","v":10600000},{"$f":"+E19","v":10600000},{"$f":"+F19","v":10600000},10700000,10042894.898287492,10144006.96333354]
[null,"Geelong SWZ",{"$f":"+C20","v":20600000},20600000,{"$f":"+E20","v":20400000},20300000,20300000,19608644.815218169,19716458.857401188]
[null,"Gippsland SWZ",{"$f":"+C21","v":14000000},13800000,13600000,13400000,13200000,13067734.367519779,13112894.718479585]
[null,"Melbourne SWZ",{"$f":"+C22","v":127700000},125800000,123400000,121200000,119500000,117306130.17211112,118238865.0443303]
[null,"Northern SWZ",{"$f":"+C23","v":20000000},20100000,20000000,19900000,19800000,19071340.656319771,19176764.72396829]
[null,"Western SWZ",{"$f":"+C24","v":4000000},4000000,4000000,4000000,4000000,3869270.3315843577,3875803.2581990073]
[null,{"$f":"IF(ISBLANK(B53),\"\",B53)","v":""}]
[null,""]
[null,""]
[null,""]
[null,""]
[null,""]
[null,""]
[null,""]
[null,""]
[null,""]
[null,""]
[null,""]
[null,""]
[null,""]
[null,""]
[null,{"$f":"IF(ISBLANK(B68),\"\",B68)","v":""}]
[null,""]
[null,""]
[null,""]
[null,""]
[null,""]
[null,""]
[null,""]
[null,""]
[null,""]
[null,""]
[null,""]
[null,""]
[null,""]
[null,""]
[null,""]
[null,""]
[null,""]
[null,""]
[null,""]
[null,""]
[null,""]
[null,""]
[null,""]
[null,""]
[null,""]
[null,""]
[null,""]
[null,""]
[]
[]
[]
[]
[null,"N1.4 - INJECTIONS"]
[null,"N1.4.1 - PEAK VOLUME - BY LOCATION"]
[null,null,"VOLUMES"]
[null,null,"GJ"]
[null,"Injection Point",{"$f":"CRCP_y4","v":2021},{"$f":"CRCP_y5","v":2022},{"$f":"FRCP_y1","v":2023},{"$f":"FRCP_y2","v":2024},{"$f":"FRCP_y3","v":2025},{"$f":"FRCP_y4","v":2026},{"$f":"FRCP_y5","v":2027}]
[null,"A. MINIMUM"]
[null,"101. Longford"]
[null,"103. Culcairn"]
[null,"104. Dandenong"]
[null,"105. Iona"]
[null,"107. VicHub"]
[null,"108. SeaGas"]
[null,"109. Pakenham"]
[null,"111. TasHub"]
[]
[]
[]
[]
[]
[]
[]
[]
[]
[]
[]
[]
[]
[]
[]
[]
[]
[]
[]
[]
[]
[]
[]
[]
[]
[]
[]
[]
[]
[]
[]
[]
[]
[]
[]
[]
[]
[]
[]
[]
[]
[]
[null,"B. MAXIMUM"]
[null,{"$f":"IF(ISBLANK(B265),\"\",B265)","v":"101. Longford"},652838.56855267915,623875.62921453291,622778.52647533047,614914.24685450678,609167.27328544331,595453.22561582457,599381.67019685509]
[null,{"$f":"IF(ISBLANK(B266),\"\",B266)","v":"103. Culcairn"},132091.06531297238,126230.89452028731,126008.91396252046,124417.70731041244,123254.90244925658,120480.09217655951,121274.94783418663]
[null,{"$f":"IF(ISBLANK(B267),\"\",B267)","v":"104. Dandenong"},58186.204386787278,55604.79515462806,55507.01256749007,54806.084951668352,54293.868617029402,53071.562798848885,53421.69725830762]
[null,{"$f":"IF(ISBLANK(B268),\"\",B268)","v":"105. Iona"},241844.91806399854,231115.55857371085,230709.13540135071,227795.80253140861,225666.8285110663,220586.44126872296,222041.73880104334]
[null,{"$f":"IF(ISBLANK(B269),\"\",B269)","v":"107. VicHub"},88535.539663223739,84607.693503305767,84458.908508423134,83392.384142628202,82613.000952239599,80753.152790865381,81285.913840491601]
[null,"108. SeaGas",66866.796804329293,63900.276330709843,63787.90590795991,62982.409399713077,62393.777335994229,60989.120069922668,61391.489841272407]
[null,"109. Pakenham",38333.958184857933,36633.286443051242,36568.865784476613,36107.083989312407,35769.628062077027,34964.354361600352,35195.02827940305]
[null,"111. TasHub",45703.650195765673,43676.02481957744,43599.21930863391,43048.660101280941,42646.328372830685,41686.241043967959,41961.261953567264]
[null,""]
[null,""]
[null,""]
[null,""]
[null,""]
[null,""]
[null,""]
[null,""]
[null,""]
[null,""]
[null,""]
[null,""]
[null,""]
[null,""]
[null,""]
[null,""]
[null,""]
[null,""]
[null,""]
[null,""]
[null,""]
[null,""]
[null,""]
[null,""]
[null,""]
[null,""]
[null,""]
[null,""]
[null,""]
[null,""]
[null,""]
[null,""]
[null,""]
[null,""]
[null,""]
[null,""]
[null,""]
[null,""]
[null,""]
[null,""]
[null,""]
[null,""]
[null,"C. AVERAGE"]
[null,{"$f":"IF(ISBLANK(B265),\"\",B265)","v":"101. Longford"},415219.73192326305,487903.5890134814,480757.9884554657,474444.88504984026,468085.53180241544,457359.07621925831,460399.91756522894]
[null,{"$f":"IF(ISBLANK(B266),\"\",B266)","v":"103. Culcairn"},42840.472546302582,20328.471196460654,20030.750215521079,19767.715174108445,19502.753136055424,19055.83606417404,19182.532520413599]
[null,{"$f":"IF(ISBLANK(B267),\"\",B267)","v":"104. Dandenong"},1376.4408659138699,1943.1446505381045,1914.6862915265122,1889.543469487144,1864.2164509493191,1821.4968332728231,1833.6074115255985]
[null,"105. Iona",47324.208548995579,41133.249536620839,40530.83181012662,39998.598673126864,39462.466392266309,38558.160738279228,38814.522217681311]
[null,"107. VicHub",31258.465743789569]
[null,"108. SeaGas",4268.3728381103747]
[null,"109. Pakenham",26212.498199836125,26735.53869459307,26343.98289439654,25998.045245679219,25649.573255213054,25061.798180880887,25228.426451916348]
[null,"111. TasHub",5275.3615339741182]
[null,""]
[null,""]
[null,""]
[null,""]
[null,""]
[null,""]
[null,""]
[null,""]
[null,""]
[null,""]
[null,""]
[null,""]
[null,""]
[null,""]
[null,""]
[null,""]
[null,""]
[null,{"$f":"IF(ISBLANK(B290),\"\",B290)","v":""}]
[null,""]
[null,""]
[null,""]
[null,""]
[null,""]
[null,""]
[null,""]
[null,""]
[null,""]
[null,""]
[null,""]
[null,""]
[null,""]
[null,""]
[null,""]
[null,""]
[null,""]
[null,""]
[null,""]
[null,""]
[null,""]
[null,""]
[null,""]
[null,""]
[]
[]
[null,"N1.4.2 - ANNUAL VOLUME - BY LOCATION"]
[null,null,"VOLUMES"]
[null,null,"GJ"]
[null,"Injection Point",{"$f":"CRCP_y4","v":2021},{"$f":"CRCP_y5","v":2022},{"$f":"FRCP_y1","v":2023},{"$f":"FRCP_y2","v":2024},{"$f":"FRCP_y3","v":2025},{"$f":"FRCP_y4","v":2026},{"$f":"FRCP_y5","v":2027}]
[null,{"$f":"IF(ISBLANK(B265),\"\",B265)","v":"101. Longford"},151970421.88391426,178084809.98992071,175476665.78624499,173172383.0431917,170851219.10788164,166936062.82002929,168045969.91130856]
[null,{"$f":"IF(ISBLANK(B266),\"\",B266)","v":"103. Culcairn"},15679612.951946745,7419891.9867081391,7311223.8286651941,7215216.0385495825,7118504.8946602298,6955380.1634235252,7001624.3699509632]
[null,{"$f":"IF(ISBLANK(B267),\"\",B267)","v":"104. Dandenong"},503777.35692447639,709247.79744640819,698860.49640717695,689683.36636280757,680439.00459650147,664846.34414458042,669266.70520684344]
[null,"105. Iona",17320660.328932382,15013636.080866605,14793753.610696215,14599488.515691305,14403800.233177202,14073728.66947192,14167300.609453678]
[null,"107. VicHub",11440598.462226983]
[null,"108. SeaGas",1562224.4587483972]
[null,"109. Pakenham",9593774.3411400206,9758471.6235264707,9615553.7564547379,9489286.5146729145,9362094.2381527647,9147556.3360215239,9208375.6549494676]
[null,"111. TasHub",1930782.3214345269]
[null,""]
[null,""]
[null,""]
[null,""]
[null,""]
[null,""]
[null,""]
[null,""]
[null,""]
[null,""]
[null,""]
[null,""]
[null,""]
[null,""]
[null,""]
[null,""]
[null,""]
[null,""]
[null,""]
[null,""]
[null,""]
[null,""]
[null,""]
[null,""]
[null,""]
[null,""]
[null,""]
[null,""]
[null,""]
[null,""]
[null,""]
[null,""]
[null,""]
[null,""]
[null,""]
[null,""]
[null,""]
[null,""]
[null,""]
[null,""]
[null,""]
[null,""]

{"sheet":"N2. Network characteristics","index":14,"n_rows":90,"n_cols":9,"rows_kept":90,"cut":false,"hidden":false,"merged":[[72,2,72,8],[73,2,73,8],[6,2,6,8],[7,2,7,8],[28,2,28,8],[29,2,29,8],[51,2,51,8],[52,2,52,8]]}
[null,{"$f":"IF(dms_MultiYear_ResponseFlag=\"Yes\",\"REGULATORY REPORTING STATEMENT - HISTORICAL INFORMATION\",INDEX(dms_Worksheet_List,MATCH(dms_Model,dms_Model_List)))","v":"REGULATORY REPORTING STATEMENT"}]
[null,{"$f":"INDEX(dms_TradingNameFull_List,MATCH(dms_TradingName,dms_TradingName_List))","v":"APA VTS Australia (Operations) Pty Ltd"}]
[null,{"$f":"dms_Header_Span","v":"Data Span 2021 - 2027"}]
[null,"N2. NETWORK CHARACTERISTICS"]
[]
[null,"N2.1 - NETWORK LENGTH - BY PIPELINE"]
[null,null,"VOLUMES"]
[null,null,"KM"]
[null,"Pipeline name",{"$f":"CRCP_y4","v":2021},{"$f":"CRCP_y5","v":2022},{"$f":"FRCP_y1","v":2023},{"$f":"FRCP_y2","v":2024},{"$f":"FRCP_y3","v":2025},{"$f":"FRCP_y4","v":2026},{"$f":"FRCP_y5","v":2027}]
[null,"Route KMs (where applicable)"]
[null,"Longford to Melbourne",174.2,174.2,174.2,174.2,174.2,174.2,174.2]
[null,"South West Pipeline (from Iona)"]
[null,"South West Pipeline (to Iona)"]
[null,"South West Pipeline",202,202,202,202,202,202,202]
[null,"Western Transmission System",224.9,224.9,224.9,224.9,224.9,224.9,224.9]
[null,"Victorian Northern Interconnect (to Vic)"]
[null,"Victorian Northern Interconnect (from Vic)"]
[null,"Victorian Northern Interconnect (VNI)",332,332,332,332,332,332,332]
[]
[]
[]
[]
[]
[]
[null,"Total",{"$f":"SUM(C10:C24)","v":933.1},933.1,933.1,933.1,933.1,933.1,933.1]
[]
[]
[null,"N2.2 - NETWORK CAPACITY - BY PIPELINE"]
[null,null,"VOLUMES"]
[null,null,"GJ / day"]
[null,"Pipeline name",{"$f":"CRCP_y4","v":2021},{"$f":"CRCP_y5","v":2022},{"$f":"FRCP_y1","v":2023},{"$f":"FRCP_y2","v":2024},{"$f":"FRCP_y3","v":2025},{"$f":"FRCP_y4","v":2026},{"$f":"FRCP_y5","v":2027}]
[null,{"$f":"IF(ISBLANK(B10),\"\",B10)","v":"Route KMs (where applicable)"}]
[null,"Longford to Melbourne",1030,1030,1030,1030,1030,1030,1030]
[null,"South West Pipeline (from Iona)",426,426,448,497,550,550,550]
[null,"South West Pipeline (to Iona)",140,140,298,315,329,329,329]
[null,"South West Pipeline"]
[null,"Western Transmission System",28,28,28,28,28,28,28]
[null,"Victorian Northern Interconnect (to Vic)",195,195,195,195,195,195,195]
[null,"Victorian Northern Interconnect (from Vic)",193,193,193,193,193,193,193]
[null,"Victorian Northern Interconnect (VNI)"]
[null,""]
[null,""]
[null,""]
[null,""]
[null,""]
[null,""]
[null,"Total",{"$f":"SUM(C32:C46)","v":2012},2012,2192,2258,2325,2325,2325]
[]
[]
[]
[null,"N2.3 - AVERAGE UTILISATION - BY PIPELINE"]
[null,null,"VOLUMES"]
[null,null,"%"]
[null,"Pipeline name",{"$f":"CRCP_y4","v":2021},{"$f":"CRCP_y5","v":2022},{"$f":"FRCP_y1","v":2023},{"$f":"FRCP_y2","v":2024},{"$f":"FRCP_y3","v":2025},{"$f":"FRCP_y4","v":2026},{"$f":"FRCP_y5","v":2027}]
[null,{"$f":"IF(ISBLANK(B10),\"\",B10)","v":"Route KMs (where applicable)"}]
[null,"Longford to Melbourne",{"$f":"SUM('N1. Demand'!C367,'N1. Demand'!C369,'N1. Demand'!C371,'N1. Demand'!C373,'N1. Demand'!C374)/'N2. Network characteristics'!C33/1000","v":0.46538106627842396},{"$f":"SUM('N1. Demand'!D367,'N1. Demand'!D369,'N1. Demand'!D371,'N1. Demand'!D373,'N1. Demand'!D374)/'N2. Network characteristics'!D33/1000","v":0.50153618675593448},{"$f":"SUM('N1. Demand'!E367,'N1. Demand'!E369,'N1. Demand'!E371,'N1. Demand'!E373,'N1. Demand'!E374)/'N2. Network characteristics'!E33/1000","v":0.49419092974892115},{"$f":"SUM('N1. Demand'!F367,'N1. Demand'!F369,'N1. Demand'!F371,'N1. Demand'!F373,'N1. Demand'!F374)/'N2. Network characteristics'!F33/1000","v":0.48770143083981227},{"$f":"SUM('N1. Demand'!G367,'N1. Demand'!G369,'N1. Demand'!G371,'N1. Demand'!G373,'N1. Demand'!G374)/'N2. Network characteristics'!G33/1000","v":0.48116438981415321},{"$f":"SUM('N1. Demand'!H367,'N1. Demand'!H369,'N1. Demand'!H371,'N1. Demand'!H373,'N1. Demand'!H374)/'N2. Network characteristics'!H33/1000","v":0.47013822449845827},{"$f":"SUM('N1. Demand'!I367,'N1. Demand'!I369,'N1. Demand'!I371,'N1. Demand'!I373,'N1. Demand'!I374)/'N2. Network characteristics'!I33/1000","v":0.4732640305132727}]
[null,"South West Pipeline (from Iona)",{"$f":"+('N1. Demand'!C370+'N1. Demand'!C372)/'N2. Network characteristics'!C34/1000","v":0.12110934597912196},{"$f":"+('N1. Demand'!D370+'N1. Demand'!D372)/'N2. Network characteristics'!D34/1000","v":9.6556923794884592E-2},{"$f":"+('N1. Demand'!E370+'N1. Demand'!E372)/'N2. Network characteristics'!E34/1000","v":9.0470606719032634E-2},{"$f":"+('N1. Demand'!F370+'N1. Demand'!F372)/'N2. Network characteristics'!F34/1000","v":8.0480077813132531E-2},{"$f":"+('N1. Demand'!G370+'N1. Demand'!G372)/'N2. Network characteristics'!G34/1000","v":7.1749938895029661E-2},{"$f":"+('N1. Demand'!H370+'N1. Demand'!H372)/'N2. Network characteristics'!H34/1000","v":7.0105746796871329E-2},{"$f":"+('N1. Demand'!I370+'N1. Demand'!I372)/'N2. Network characteristics'!I34/1000","v":7.0571858577602384E-2}]
[null,"South West Pipeline (to Iona)"]
[null,"South West Pipeline"]
[null,"Western Transmission System"]
[null,"Victorian Northern Interconnect (to Vic)",{"$f":"+'N1. Demand'!C368/'N2. Network characteristics'!C38/1000","v":0.21969473100667991},{"$f":"+'N1. Demand'!D368/'N2. Network characteristics'!D38/1000","v":0.10424857023825976},{"$f":"+'N1. Demand'!E368/'N2. Network characteristics'!E38/1000","v":0.10272179597703118},{"$f":"+'N1. Demand'!F368/'N2. Network characteristics'!F38/1000","v":0.10137289832876126},{"$f":"+'N1. Demand'!G368/'N2. Network characteristics'!G38/1000","v":0.10001411864643808},{"$f":"+'N1. Demand'!H368/'N2. Network characteristics'!H38/1000","v":9.7722236226533546E-2},{"$f":"+'N1. Demand'!I368/'N2. Network characteristics'!I38/1000","v":9.8371961643146669E-2}]
[null,"Victorian Northern Interconnect (from Vic)"]
[null,"Victorian Northern Interconnect (VNI)"]
[null,""]
[null,""]
[null,""]
[null,""]
[null,""]
[null,""]
[]
[]
[null,"N2.4 - FIRM CONTRACTED CAPACITY - BY PIPELINE"]
[null,null,"VOLUMES"]
[null,null,"%"]
[null,"Pipeline name",{"$f":"CRCP_y4","v":2021},{"$f":"CRCP_y5","v":2022},{"$f":"FRCP_y1","v":2023},{"$f":"FRCP_y2","v":2024},{"$f":"FRCP_y3","v":2025},{"$f":"FRCP_y4","v":2026},{"$f":"FRCP_y5","v":2027}]
[null,{"$f":"IF(ISBLANK(B10),\"\",B10)","v":"Route KMs (where applicable)"}]
[null,"Longford to Melbourne"]
[null,"South West Pipeline (from Iona)"]
[null,"South West Pipeline (to Iona)"]
[null,"South West Pipeline"]
[null,"Western Transmission System"]
[null,"Victorian Northern Interconnect (to Vic)"]
[null,"Victorian Northern Interconnect (from Vic)"]
[null,"Victorian Northern Interconnect (VNI)"]
[null,""]
[null,""]
[null,""]
[null,""]
[null,""]
[null,""]

{"sheet":"S1. User Numbers","index":15,"n_rows":68,"n_cols":9,"rows_kept":68,"cut":false,"hidden":false,"merged":[[44,2,44,8],[45,2,45,8],[6,2,6,8],[7,2,7,8],[18,2,18,8],[19,2,19,8]]}
[null,{"$f":"IF(dms_MultiYear_ResponseFlag=\"Yes\",\"REGULATORY REPORTING STATEMENT - HISTORICAL INFORMATION\",INDEX(dms_Worksheet_List,MATCH(dms_Model,dms_Model_List)))","v":"REGULATORY REPORTING STATEMENT"}]
[null,{"$f":"INDEX(dms_TradingNameFull_List,MATCH(dms_TradingName,dms_TradingName_List))","v":"APA VTS Australia (Operations) Pty Ltd"}]
[null,{"$f":"dms_Header_Span","v":"Data Span 2021 - 2027"}]
[null,"S1. USER NUMBERS"]
[]
[null,"S1.1 - USER NUMBERS - BY USER TYPE"]
[null,null,"VOLUMES"]
[null,null,"0's"]
[null,null,{"$f":"CRCP_y4","v":2021},{"$f":"CRCP_y5","v":2022},{"$f":"FRCP_y1","v":2023},{"$f":"FRCP_y2","v":2024},{"$f":"FRCP_y3","v":2025},{"$f":"FRCP_y4","v":2026},{"$f":"FRCP_y5","v":2027}]
[null,"ELECTRICITY GENERATION USERS"]
[null,"User numbers as at 1 July",6,6,6,6,6,6,6]
[null,"User numbers as at 30 June",6,6,6,6,6,6,6]
[null,"Total user connections",0,0,0,0,0,0,0]
[null,"Total user disconnections",0,0,0,0,0,0,0]
[]
[]
[null,"S1.2 - USER NUMBERS - BY REFERENCE SERVICE"]
[null,"S1.2.1 - USER NUMBERS AS AT 1 JULY"]
[null,null,"VOLUMES"]
[null,null,"0's"]
[null,"Reference service",{"$f":"CRCP_y4","v":2021},{"$f":"CRCP_y5","v":2022},{"$f":"FRCP_y1","v":2023},{"$f":"FRCP_y2","v":2024},{"$f":"FRCP_y3","v":2025},{"$f":"FRCP_y4","v":2026},{"$f":"FRCP_y5","v":2027}]
[null,"Tariffed Transmission Service",53]
[]
[]
[]
[]
[]
[]
[]
[]
[]
[]
[]
[]
[]
[]
[]
[]
[]
[]
[]
[null,"Total",{"$f":"SUM(C22:C41)","v":53},0,0,0,0,0,0]
[]
[null,"S1.2.2 - USER NUMBERS AS AT 30 JUNE"]
[null,null,"VOLUMES"]
[null,null,"0's"]
[null,"Reference service",{"$f":"CRCP_y4","v":2021},{"$f":"CRCP_y5","v":2022},{"$f":"FRCP_y1","v":2023},{"$f":"FRCP_y2","v":2024},{"$f":"FRCP_y3","v":2025},{"$f":"FRCP_y4","v":2026},{"$f":"FRCP_y5","v":2027}]
[null,{"$f":"IF(ISBLANK(B22),\"\",B22)","v":"Tariffed Transmission Service"},59,59,59,59,59,59,59]
[null,{"$f":"IF(ISBLANK(B23),\"\",B23)","v":""}]
[null,{"$f":"IF(ISBLANK(B24),\"\",B24)","v":""}]
[null,""]
[null,""]
[null,""]
[null,""]
[null,""]
[null,""]
[null,""]
[null,""]
[null,""]
[null,""]
[null,""]
[null,""]
[null,""]
[null,""]
[null,""]
[null,""]
[null,""]
[null,"Total",{"$f":"SUM(C48:C67)","v":59},59,59,59,59,59,59]

{"sheet":"S10. Supply quality","index":16,"n_rows":18,"n_cols":11,"rows_kept":18,"cut":false,"hidden":false,"merged":[[7,2,7,10],[8,2,8,10]]}
[null,{"$f":"IF(dms_MultiYear_ResponseFlag=\"Yes\",\"REGULATORY REPORTING STATEMENT - HISTORICAL INFORMATION\",INDEX(dms_Worksheet_List,MATCH(dms_Model,dms_Model_List)))","v":"REGULATORY REPORTING STATEMENT"}]
[null,{"$f":"INDEX(dms_TradingNameFull_List,MATCH(dms_TradingName,dms_TradingName_List))","v":"APA VTS Australia (Operations) Pty Ltd"}]
[null,{"$f":"dms_Header_Span","v":"Data Span 2021 - 2027"}]
[null,"S10. SUPPLY QUALITY"]
[]
[]
[null,"S10.1 - PRESSURE FAULTS"]
[null,null,"VOLUMES"]
[null,null,"0's"]
[null,null,{"$f":"dms_y1","v":2021},{"$f":"dms_y2","v":2022},{"$f":"dms_y3","v":2023},{"$f":"dms_y4","v":2024},{"$f":"dms_y5","v":2025},{"$f":"dms_y6","v":2026},{"$f":"dms_y7","v":2027},{"$f":"dms_y8","v":2028},{"$f":"dms_y9","v":2029}]
[null,"USER IMPACT"]
[null,"Poor pressure events impacting users",0,0,0,0,0,0,0]
[null,"Pressure events with >12 hr resolution",0,0,0,0,0,0,0]
[]
[null,"FORCE MAJEURE "]
[null,"Poor pressure events - force majeure",0,0,0,0,0,0,0]
[null,"Poor pressure events - NOT force majeure",0,0,0,0,0,0,0]
[null,"Total",{"$f":"SUM(C16:C17)","v":0},{"$f":"SUM(D16:D17)","v":0},0,0,0,0,0,0,0]

{"sheet":"F2. Capex","index":17,"n_rows":42,"n_cols":4,"rows_kept":42,"cut":false,"hidden":false,"merged":[[8,2,8,3],[9,2,9,3]]}
[null,{"$f":"IF(dms_MultiYear_ResponseFlag=\"Yes\",\"REGULATORY REPORTING STATEMENT - HISTORICAL INFORMATION\",INDEX(dms_Worksheet_List,MATCH(dms_Model,dms_Model_List)))","v":"REGULATORY REPORTING STATEMENT"}]
[null,{"$f":"INDEX(dms_TradingNameFull_List,MATCH(dms_TradingName,dms_TradingName_List))","v":"APA VTS Australia (Operations) Pty Ltd"}]
[null,"Data span 2020-21 to 2021-22"]
[null,"F2. CAPITAL EXPENDITURE"]
[]
[]
[null,"F2.7 - IMMEDIATE EXPENSING OF CAPEX"]
[null,"F2.7.1 - ACTUAL - AS COMMISSIONED"]
[null,null,"EXPENDITURE"]
[null,null,"Forecast ($0's, real December 2022)"]
[null,"Asset class","2020-21","2021-22"]
[null,"Pipelines"]
[null,"Compressors"]
[null,"City Gates & Field Regulators"]
[null,"Odourant Plants"]
[null,"Gas Quality"]
[null,"Other",6462910.0319656236,3396420.9637346626]
[null,"General Buildings"]
[null,"General Land"]
[null,"Integrity Inspections"]
[]
[]
[]
[]
[]
[]
[]
[]
[]
[]
[]
[]
[]
[]
[]
[]
[]
[]
[]
[]
[]
[null,"Total",{"$f":"SUM(C12:C41)","v":6462910.0319656236},{"$f":"SUM(D12:D41)","v":3396420.9637346626}]

{"sheet":"F3. Revenue","index":18,"n_rows":31,"n_cols":9,"rows_kept":31,"cut":false,"hidden":false,"merged":[[7,2,7,8],[8,2,8,8]]}
[null,{"$f":"IF(dms_MultiYear_ResponseFlag=\"Yes\",\"REGULATORY REPORTING STATEMENT - HISTORICAL INFORMATION\",INDEX(dms_Worksheet_List,MATCH(dms_Model,dms_Model_List)))","v":"REGULATORY REPORTING STATEMENT"}]
[null,{"$f":"INDEX(dms_TradingNameFull_List,MATCH(dms_TradingName,dms_TradingName_List))","v":"APA VTS Australia (Operations) Pty Ltd"}]
[null,{"$f":"dms_Header_Span","v":"Data Span 2021 - 2027"}]
[null,"F3. REVENUE"]
[]
[]
[null,"F3.1 - REFERENCE SERVICES"]
[null,null,"EXPENDITURE"]
[null,null,{"$f":"CONCATENATE(\"Forecast ($0's, real \",dms_DollarReal,\")\")","v":"Forecast ($0's, real December 2022)"}]
[null,null,{"$f":"CRCP_y4","v":2021},{"$f":"CRCP_y5","v":2022},{"$f":"FRCP_y1","v":2023},{"$f":"FRCP_y2","v":2024},{"$f":"FRCP_y3","v":2025},{"$f":"FRCP_y4","v":2026},{"$f":"FRCP_y5","v":2027}]
[null,"Revenue per Price Control Model",120885307.74636084,104857647.49743699]
[null,"Smoothed revenue requirement",null,null,115451635.74363349,121793532.58364674,128483797.4244277,135541566.53813916,142987027.37532848]
[]
[]
[]
[]
[]
[]
[]
[]
[null,"F3.3 - REBATEABLE SERVICES"]
[null,"Total"]
[null,"F3.5 - OTHER SERVICES PROVIDED AS A COVERED PIPELINE"]
[]
[]
[]
[]
[]
[]
[]
[null,"Total Revenue",{"$f":"SUM(C11:C20,C22,C24:C30)","v":120885307.74636084},{"$f":"SUM(D11:D20,D22,D24:D30)","v":104857647.49743699},115451635.74363349,121793532.58364674,128483797.4244277,135541566.53813916,142987027.37532848]

{"sheet":"Additional disclosures","index":19,"n_rows":35,"n_cols":10,"rows_kept":35,"cut":false,"hidden":false,"merged":[[9,1,9,2],[10,1,10,2],[11,1,11,2],[3,3,3,9],[4,1,4,2],[5,1,5,2],[6,1,6,2],[7,1,7,2],[8,1,8,2]]}
["Continuation of table E.2.2 - Capex - By Project,  due to not being able to insert lines."]
[null,"E2.2 - CAPEX - BY PROJECT"]
[null,"E2.2.1 - EXPENDITURE"]
[null,null,null,"EXPENDITURE\nForecast ($0's real, December 2022)"]
[null,"Project Name",null,2021,2022,2023,2024,2025,2026,2027]
[null,"VTS Insulated and Unpiggable Facility Pipework ",null,0,0,1986472.7867695987,1986472.7867695987,1986472.7867695987,1986472.7867695987,1986472.7867695987]
[null,"VTS Mainline Isolation Valve Upgrade​ ",null,0,0,0,694944.73164706095,1069145.7409954781,1069145.7409954781,1069145.7409954781]
[null,"VTS Unpiggables ",null,0,0,10360967.355081227,15047439.413245987,3243403.2857135227,0,0]
[null,"Water bath inspections",null,305842.88,0,0,0,0,0,0]
[null,"WCS A Process Safety",null,0,0,0,0,1389889.4632941219,0,0]
[null,"Wollert CG & T74/T119 PRS Instrument Air",null,0,0,534572.87049773918,534572.87049773918,637210.86163330509,0,0]
[null,"VTS Waterbath Integrity",null,0,0,213829.14819909565,427658.29639819131,427658.29639819131,1069145.7409954784,0]
[null,"Total ",null,{"$f":"D6+D7+D8+D9+D10+D11+D12","v":305842.88},0,13095842.160547661,18691088.098558582,8753780.4348042179,4124764.268760555,3055618.5277650766]
[]
[]
["Note 1","The information below relates to the Table 2.2.2 - Volume, which forms part of the tab called E2. Repex."]
[]
[null,"In Table 2.2.2 the service provider must report the volume and a unit of measure, for each replacement project reported in Table E2.2.1."]
[]
[null,"In Table E2.2.2 the service provider must report the volume and a unit of measure for all replacement projects in aggregate where the total cumulative capital expenditure over the life of each project is less than $500,000."]
[]
[null,"The scales of the projects which VTS has undertaken cannot be assessed on the dimension of volume. "]
[]
[null,"Therefore the table requesting this information has been left blank."]
[]
[]
["Note 2","The information below relates to the Table 3.2.2 - Volume, which forms part of the tab called E3. Expansion."]
[]
[null,"In Table 3.2.2 the service provider must report the length of the pipeline, for each expansion projects reported in Table 3.2.1."]
[]
[null,"In Table 3.2.2 the service provider is also required to report the length of pipeline for all expansion projects in aggregate where the total cumulative capital expenditure over the life of each project is less than $500,000."]
[]
[null,"The scales of the projects which VTS has undertaken cannot be assessed on the dimension of length. "]
[]
[null,"Therefore the table requesting this information has been left blank."]

{"sheet":"AER CF","index":20,"n_rows":127,"n_cols":24,"rows_kept":127,"cut":false,"hidden":true,"merged":[[3,1,3,21],[31,37,31,58],[32,37,32,58],[33,37,33,58],[31,68,31,89],[32,68,32,89],[33,68,33,89]]}
[null,"AER CONDITIONAL FORMATTING"]
[]
[]
[null,"CONDITIONAL FORMATTING MAP"]
[null,null,null,null,null,"=INDEX(dms_CF_3.6.1, MATCH(dms_TradingName,dms_CF_TradingName))=\"Y\"","=INDEX(dms_CF_3.6.5, MATCH(dms_TradingName,dms_CF_TradingName))=\"Y\"","=INDEX(dms_CF_3.6.6, MATCH(dms_TradingName,dms_CF_TradingName))=\"Y\"","=INDEX(dms_CF_3.6.7.1, MATCH(dms_TradingName,dms_CF_TradingName))=\"Y\"","=INDEX(dms_CF_3.6.7.2, MATCH(dms_TradingName,dms_CF_TradingName))=\"Y\"","=INDEX(dms_CF_3.6.7.3, MATCH(dms_TradingName,dms_CF_TradingName))=\"Y\"","=INDEX(dms_CF_3.6.7.4, MATCH(dms_TradingName,dms_CF_TradingName))=\"Y\"","=INDEX(dms_CF_3.6.8, MATCH(dms_TradingName,dms_CF_TradingName))=\"Y\"","=INDEX(dms_CF_4.1, MATCH(dms_TradingName,dms_CF_TradingName))=\"Y\"","=INDEX(dms_CF_6.6.1, MATCH(dms_TradingName,dms_CF_TradingName))=\"Y\"","=INDEX(dms_CF_6.8, MATCH(dms_TradingName,dms_CF_TradingName))=\"Y\"","=INDEX(dms_CF_7.12, MATCH(dms_TradingName,dms_CF_TradingName))=\"Y\"","=INDEX(dms_CF_8.1_A, MATCH(dms_TradingName,dms_CF_TradingName))=\"Y\"","=INDEX(dms_CF_8.1_B, MATCH(dms_TradingName,dms_CF_TradingName))=\"Y\"","=INDEX(dms_CF_8.1_Neg, MATCH(dms_TradingName,dms_CF_TradingName))=\"Y\"","=INDEX(dms_CF_4.4.1_Neg, MATCH(dms_TradingName,dms_CF_TradingName))=\"Y\""]
[null,"dms_CF_TradingName","JurisdictionList","Sector","Segment","dms_CF_3.6.1","dms_CF_3.6.5","dms_CF_3.6.6","dms_CF_3.6.7.1","dms_CF_3.6.7.2","dms_CF_3.6.7.3","dms_CF_3.6.7.4","dms_CF_3.6.8","dms_CF_4.1","dms_CF_6.6.1","dms_CF_6.8","dms_CF_7.12","dms_CF_8.1_A","dms_CF_8.1_B","dms_CF_8.1_Neg","dms_CF_4.4.1","dms_CF_MAIFI_flag","Spare1","Spare2"]
[null,"ActewAGL Distribution","ACT","Electricity","Distribution",null,"Y",null,"Y","Y","N","Y","N","N","N","Y","Y","N","Y","Y","N","N","N","N"]
[null,"Ausgrid","NSW","Electricity","Distribution",null,"Y",null,"N","N","N","Y","N","N","N","Y","Y","N","Y","Y","N","N","N","N"]
[null,"AusNet (D)","Vic","Electricity","Distribution",null,"N",null,"N","N","N","N","N","Y","N","Y","N","N","N","Y","N","N","N","N"]
[null,"AusNet (T)","Vic","Electricity","Transmission",null,"N",null,"N","N","N","N","N","Y","N","Y","N","N","N","Y","N","N","N","N"]
[null,"CitiPower","Vic","Electricity","Distribution",null,"N",null,"N","N","N","N","N","Y","N","Y","N","N","N","Y","N","N","N","N"]
[null,"Directlink","Qld","Electricity","Transmission",null,"N",null,"N","N","N","N","N","Y","N","Y","N","N","Y","Y","N","N","N","N"]
[null,"ElectraNet","SA","Electricity","Transmission",null,"N",null,"N","N","N","N","N","Y","N","Y","N","N","Y","Y","N","N","N","N"]
[null,"Endeavour Energy","NSW","Electricity","Distribution",null,"Y",null,"N","N","N","Y","N","N","N","Y","Y","N","Y","Y","Y","N","N","N"]
[null,"Energex","Qld","Electricity","Distribution",null,"Y",null,"N","N","N","N","N","N","N","Y","Y","N","Y","Y","Y","N","N","N"]
[null,"Ergon Energy","Qld","Electricity","Distribution",null,"Y",null,"N","N","N","N","N","N","N","Y","Y","N","Y","Y","N","N","N","N"]
[null,"Essential Energy","NSW","Electricity","Distribution",null,"Y",null,"N","N","N","Y","N","N","N","Y","Y","N","Y","Y","N","N","N","N"]
[null,"Jemena Electricity","Vic","Electricity","Distribution",null,"N",null,"N","N","N","N","N","Y","N","Y","N","N","N","Y","N","N","N","N"]
[null,"Murraylink","SA","Electricity","Transmission",null,"N",null,"N","N","N","N","N","Y","N","Y","N","N","Y","Y","N","N","N","N"]
[null,"Power and Water","NT","Electricity","Distribution",null,"N",null,"N","Y","N","N","Y","Y","Y","Y","Y","N","Y","Y","N","N","N","N"]
[null,"Powercor Australia","Vic","Electricity","Distribution",null,"N",null,"N","N","N","N","N","Y","N","Y","N","N","N","Y","N","N","N","N"]
[null,"Powerlink","Qld","Electricity","Transmission",null,"N",null,"N","N","N","N","N","Y","N","Y","N","N","Y","Y","N","N","N","N"]
[null,"SA Power Networks","SA","Electricity","Distribution",null,"Y",null,"N","N","N","N","N","Y","N","Y","Y","Y","Y","N","N","N","N","N"]
[null,"TasNetworks (D)","Tas","Electricity","Distribution",null,"Y",null,"N","N","N","N","N","N","N","Y","Y","N","Y","Y","N","N","N","N"]
[null,"TasNetworks (T)","Tas","Electricity","Transmission",null,"N",null,"N","N","N","N","N","Y","N","Y","N","N","Y","Y","N","N","N","N"]
[null,"TransGrid","NSW","Electricity","Transmission",null,"N",null,"N","N","N","N","N","Y","N","Y","N","N","Y","Y","N","N","N","N"]
[null,"United Energy","Vic","Electricity","Distribution",null,"N",null,"N","N","N","N","N","Y","N","Y","N","N","N","Y","N","N","N","N"]
[]
[]
[null,"Confidential"]
[null,"Amended"]
[]
[null,"Worksheet 6.2 STPIS reliability"]
[null,"Formula",null,null,null,"Applied to:"]
[]
[null,"=INDEX(dms_CBD_flag,MATCH(dms_TradingName,dms_TradingName_List))=\"NO\"",null,null,null,"$D$11,$D$17,$D$23,$D$33,$D$39,$D$45,$D$55,$D$61,$D$67,$D$77,$D$83,$D$89"]
[null,"=INDEX(dms_Urban_flag,MATCH(dms_TradingName,dms_TradingName_List))=\"NO\"",null,null,null,"$D$12,$D$18,$D$24,$D$56,$D$62,$D$78,$D$68,$D$84"]
[null,"=INDEX(dms_ShortRural_flag,MATCH(dms_TradingName,dms_TradingName_List))=\"NO\"",null,null,null,"$D$13,$D$19,$D$25,$D$57,$D$63,$D$69,$D$79,$D$85"]
[null,"=INDEX(dms_LongRural_flag,MATCH(dms_TradingName,dms_TradingName_List))=\"NO\"",null,null,null,"$D$14,$D$20,$D$26,$D$58,$D$64,$D$65,$D$70,$D$71,$D$80,$D$86"]
[null,"=INDEX(dms_FeederType_5_flag,MATCH(dms_TradingName,dms_TradingName_List))=\"NO\"",null,null,null,"$D$87,$D$81,$D$71,$D$65,$D$59,$D$49,$D$43,$D$37,$D$21,$D$15"]
[null,"=dms_MAIFI_Flag=\"No\"",null,null,null,"$D$55:$D$72"]
[]
[]
[null,"Business & other details"]
[null,"=(INDEX(dms_Model_Span,MATCH(dms_Model,dms_Model_List))>1)"]
[null,"=(INDEX(dms_Model_Span,MATCH(dms_Model,dms_Model_List))=1)"]
[]
[]
[null,"STYLES IN USE"]
[null,null,"dms_1"]
[null,null,"dms_2"]
[null,null,"dms_3"]
[null,null,"dms_4"]
[null,null,"dms_5"]
[null,null,"dms_NUM"]
[null,null,"dms_NUM%"]
[null,null,"dms_Row_Locked"]
[null,null,"dms_Row1"]
[null,null,"dms_Row2"]
[null,null,"dms_T1"]
[null,null,"dms_T2"]
[null,null,"dms_BH"]
[null,null,"dms_BY1"]
[null,null,"dms_BY2"]
[null,null,"dms_GH"]
[null,null,"dms_GY1"]
[null,null,"dms_GY2"]
[]
[]
[]
[]
[]
[]
[]
[]
[]
[]
[]
[]
[]
[]
[]
[]
[]
[]
[]
[]
[]
[]
[]
[]
[]
[]
[]
[]
[]
[]
[]
[]
[]
[]
[]
[]
[]
[]
[]
[]
[]
[]
[]
[]
[]
[]
[]
[]
[]
[]
[]
[]
[]
[]
[]
[]
[]
[]
[null,null,"0"]
[null,null,{"$f":"IFERROR(IF(dms_Model=\"ARR\",(MAX(0,dms_0608_LastRow-dms_0608_OffsetRows)),\"not an ARR\"),\"0\")","v":"not an ARR"}]

{"sheet":"AER NRs","index":21,"n_rows":226,"n_cols":15,"rows_kept":226,"cut":false,"hidden":true,"merged":[[4,1,26,1],[174,1,175,1],[177,1,182,1],[63,1,76,1],[133,1,148,1],[82,1,95,1],[150,1,156,1],[116,1,130,1],[206,1,211,1],[197,1,198,1],[30,1,53,1],[98,1,105,1],[108,1,113,1],[189,1,190,1],[193,1,194,1],[158,1,172,1],[31,67,31,88],[32,67,32,88],[33,67,33,88],[34,10,38,10],[42,10,43,10],[31,10,33,10],[31,36,31,57],[32,36,32,57],[33,36,33,57]]}
[null,"AER NAMED RANGES"]
[]
[null,"DROP DOWN SELECTORS USED IN WORKBOOKS"]
[]
[null,"COVER SHEET","dms_DataQuality_List","dms_Confid_status_List"]
[null,null,"-- select --","-- select --"]
[null,null,"Actual","Public"]
[null,null,"Estimate","Confidential"]
[null,null,"Consolidated"]
[]
[]
[null,null,"For all files either AER or business needs to be able to specify the type of submission","For PTRM & RFM templates we must provide a choice in case they change their form of control - otherwise it is drawn from the business specific lookup table above."]
[null,null,"dms_SourceList","dms_FormControl_Choices"]
[null,null,"-- select --","Revenue cap"]
[null,null,"After appeal","Revenue yield"]
[null,null,"Draft decision","Weighted average price cap"]
[null,null,"Final decision"]
[null,null,"PTRM update 1"]
[null,null,"PTRM update 2"]
[null,null,"PTRM update 3"]
[null,null,"PTRM update 4"]
[null,null,"PTRM update 5"]
[null,null,"PTRM update 6"]
[null,null,"PTRM update 7"]
[null,null,"Regulatory proposal"]
[null,null,"Reporting"]
[null,null,"Revised regulatory proposal"]
[]
[]
[null,null,null,null,null,null,null,null,null,null,"This is used to create an image to insert on 6.3 STPIS sheet - not for dropdown lists.",null,null,"GAS"]
[null,"CA & RESET RINS \nDNSP","dms_DNSP_020301_SubstationType","dms_DNSP_020301_ProjectType","dms_DNSP_020301_ProjectTrigger","dms_DNSP_020302_ProjectType","dms_DNSP_020302_ProjectTrigger","dms_STPIS_Exclusion_List","dms_Reason_Interruption","dms_Reason_Interruption_Detailed","Reason for interruption",null,null,"dms_N0205_AssetType"]
[null,null,"Subtransmission substation","New substation establishment","Demand growth","New line on new route - single circuit","Demand growth","Weather","Animal","Animal impact","Animal","Animal impact",null,"Cast Iron"]
[null,null,"Zone substation","Substation upgrade - capacity"," Voltage issues","New line on new route - dual circuit"," Voltage issues","Equipment failure","Asset failure","Animal nesting/burrowing, etc and other",null,"Animal nesting/burrowing, etc and other",null,"PVC"]
[null,null,"Switching station","Substation upgrade - voltage"," Reactive power issue","New line on new route - other"," Reactive power issue","Operational error","Other","Other",null,"Other",null,"Polyamide"]
[null,null,"Other","Other"," Fault level issues","Line rebuild over existing route - single circuit"," Fault level issues","Vegetation","Overloads","LV","Asset failure","LV",null,"High density polyethylene (80)"]
[null,null,null,null," Safety","Line rebuild over existing route - dual circuit"," Net market benefit","Animals","Planned","Distribution substation",null,"Distribution substation",null,"High density polyethylene (100)"]
[null,null,null,null," Environment","Reconductor - Single circuit"," Safety","Third party impacts","Network business","HV",null,"HV",null,"High density polyethylene (250)"]
[null,null,null,null," Other","Reconductor - Dual circuit"," Environment","Transmission failure","Third party","Zone substation",null,"Zone substation",null,"High density polyethylene (575)"]
[null,null,null,null,null,"Reconductor - Other"," Other","Load shedding","Unknown","Subtransmission",null,"Subtransmission",null,"Medium density polyethylene"]
[null,null,null,null,null,"Line upgrade - raising/retensoring",null,"Inter-distributor connection failure","Vegetation","insert description of 'other'","Other","insert description of 'other'",null,"Unprotected steel"]
[null,null,null,null,null,"Line upgrade - voltage upgrade",null,"Other","Weather","Network error","Overloads",null,null,"Protected steel"]
[null,null,null,null,null,"Line upgrade - capacity",null,null,"2 - STPIS Exclusion (3.3)(a)","Switching and protection error","Planned",null,null,"Other"]
[null,null,null,null,null,"String spare circuit",null,null,"3 - STPIS Exclusion (3.3)(a)","Fire","Network business","Network error"]
[null,null,null,null,null,"Other",null,null,"4 - STPIS Exclusion (3.3)(a)","Other",null,"Switching and protection error"]
[null,null,null,null,null,null,null,null,"5 - STPIS Exclusion (3.3)(a)","Dig-in","Third party","Fire"]
[null,null,null,null,null,null,null,null,"6 - STPIS Exclusion (3.3)(a)","Unauthorised access",null,"Other"]
[null,null,null,null,null,null,null,null,"7 - STPIS Exclusion (3.3)(a)","Vehicle impact",null,"Dig-in"]
[null,null,null,null,null,null,null,null,null,"Unknown",null,"Unauthorised access"]
[null,null,null,null,null,null,null,null,null,"Blow-in/Fall-in - NSP responsibility",null,"Vehicle impact"]
[null,null,null,null,null,null,null,null,null,"Grow-in - NSP responsibility","Unknown","Unknown"]
[null,null,null,null,null,null,null,null,null,"Blow-in/Fall-in - Other responsible party","Vegetation","Blow-in/Fall-in - NSP responsibility"]
[null,null,null,null,null,null,null,null,null,"Grow-in - Other responsible party",null,"Grow-in - NSP responsibility"]
[null,null,null,null,null,null,null,null,null,null,null,"Blow-in/Fall-in - Other responsible party"]
[null,null,null,null,null,null,null,null,null,null,null,"Grow-in - Other responsible party"]
[null,null,null,null,null,null,null,null,null,null,"Weather"]
[null,null,null,null,null,null,null,null,null,null,"2 - STPIS Exclusion (3.3)(a)"]
[null,null,null,null,null,null,null,null,null,null,"3 - STPIS Exclusion (3.3)(a)"]
[null,null,null,null,null,null,null,null,null,null,"4 - STPIS Exclusion (3.3)(a)"]
[null,null,null,null,null,null,null,null,null,null,"5 - STPIS Exclusion (3.3)(a)"]
[null,null,null,null,null,null,null,null,null,null,"6 - STPIS Exclusion (3.3)(a)"]
[null,null,null,null,null,null,null,null,null,null,"7 - STPIS Exclusion (3.3)(a)"]
[]
[]
[null,"CA & RESET RINS \nTNSP ","dms_TNSP_0203_SubstationType","dms_TNSP_020301_ProjectType","dms_TNSP_020301_ProjectTrigger","dms_TNSP_020302_ProjectType","dms_TNSP_0203_ProjectTrigger"]
[null,null,"Terminal station","New substation establishment","Demand growth","New line on new route - single circuit","Demand growth"]
[null,null,"Switching station","Capacity upgrade"," Voltage issues","New line on new route - dual circuit"," Voltage issues"]
[null,null,"Transmission substation","Voltage upgrade"," Reactive power issue","New line on new route - other"," Reactive power issue"]
[null,null,"Other","Other"," Fault level issues","Line rebuild over existing route - single circuit"," Fault level issues"]
[null,null,null,null,"Net market benefit","Line rebuild over existing route - dual circuit"," Net market benefit"]
[null,null,null,null," Safety","Reconductor - Single circuit"," Safety"]
[null,null,null,null," Environment","Reconductor - Dual circuit"," Environment"]
[null,null,null,null," Other","Reconductor - Other"," Other"]
[null,null,null,null,null,"Line upgrade - raising/retensoring"]
[null,null,null,null,null,"Line upgrade - voltage upgrade"]
[null,null,null,null,null,"Line upgrade - capacity"]
[null,null,null,null,null,"String spare circuit"]
[null,null,null,null,null,"Other"]
[]
[]
[]
[null,"NAMED RANGES USED IN ETL PROCESS"]
[]
[null,"CA & RESET RINS \nDNSP ONLY","dms_020303_01_UOM","dms_020501_01_UOM","dms_020501_02_UOM","dms_020501_03_UOM","dms_020501_04_UOM","dms_020701_01_UOM","dms_020701_02_UOM","dms_020701_01_Rows","dms_040102_01_UOM","dms_040102_04_UOM","dms_S140101_UOM",null,"dms_S140201_UOM"]
[null,null,"Circuit line length in km","0's","0's","0's","0's","km","km","Route line length within zone","0's","days","number",null,"number per km"]
[null,null,"Circuit line length in km","0's","0's","0's","0's","0's","0's","Number of maintenance spans","0's","0's","number",null,"number"]
[null,null,"Circuit line length in km","MVA added","MVA added","MVA added","MVA added","km","km","Total length of maintenance spans","0's","$0s","number",null,"number"]
[null,null,"Circuit line length in km","0's","0's","0's","0's","km","km","Length of vegetation corridors","$0s","0's","km"]
[null,null,"Number","total spend $0s","total spend $0s","total spend $0s","total spend $0s","0's","0's","Average number of trees per maintenance span"]
[null,null,"Number","net circuit km added","net circuit km added","net circuit km added","net circuit km added","years","years","Average frequency of cutting cycle"]
[null,null,"Number","total spend $0s","total spend $0s","total spend $0s","total spend $0s"]
[null,null,null,"net circuit km added","net circuit km added","net circuit km added","net circuit km added"]
[null,null,null,"total spend $0s","total spend $0s","total spend $0s","total spend $0s"]
[null,null,null,"0's",null,"$0s"]
[null,null,null,"0's"]
[null,null,null,"0's"]
[null,null,null,"$0s"]
[]
[]
[null,"CA & RESET RINS \nTNSP ONLY","dms_020701_01_UOM"]
[null,null,"km"]
[null,null,"0's"]
[null,null,"km"]
[null,null,"0's"]
[null,null,"km"]
[null,null,"metres"]
[null,null,"years"]
[]
[]
[null,"CA & RESET RINS \nDNSP & TNSP","dms_020603_01_UOM"]
[null,null,"0's"]
[null,null,"0's"]
[null,null,"0's"]
[null,null,"0's"]
[null,null,"(per cent)"]
[]
[]
[null,"EB & RESET RINS \nDNSP ONLY","dms_030601_01_UOM","dms_030601_02_UOM","dms_030701_01_UOM","dms_030702_01_UOM","dms_030703_01_UOM"]
[null,null,"minutes/customer","minutes/customer","Customer / km","%","km"]
[null,null,"minutes/customer","minutes/customer","MWh/customer","Number of spans"]
[null,null,"interruptions/customer","interruptions/customer","kVA / customer","Number of spans"]
[null,null,"interruptions/customer","interruptions/customer",null,"Number of spans"]
[null,null,null,null,null,"Number of spans"]
[null,null,null,null,null,"Years"]
[null,null,null,null,null,"Years"]
[null,null,null,null,null,"Trees"]
[null,null,null,null,null,"Trees"]
[null,null,null,null,null,"Defects"]
[null,null,null,null,null,"Defects"]
[null,null,null,null,null,"Spans"]
[null,null,null,null,null,"km"]
[null,null,null,null,null,"Spans"]
[]
[null,null,"WHEN INSERTING COVER SHEET INTO A TNSP FILE - APPLY THESE NAMED RANGES"]
[null,"EB & RESET RINS \nTNSP ONLY","dms_030601_01_UOM",null,"dms_030701_01_UOM","dms_030702_01_UOM"]
[null,null,"%",null,"Number of spans","km"]
[null,null,"number",null,"Years","%"]
[null,null,"number",null,"Trees","km"]
[null,null,"%",null,"Defects","number"]
[null,null,"number",null,"Number of spans"]
[null,null,"number",null,"km"]
[null,null,"%",null,"km"]
[null,null,"number",null,"Number of spans"]
[null,null,"number"]
[null,null,"%"]
[null,null,"number"]
[null,null,"%"]
[null,null,"number"]
[null,null,"%"]
[null,null,"number"]
[]
[null,"EB & RESET RINS \nDNSP & TNSP","dms_EB_RAB_PIT"]
[null,null,"Beginning of year"]
[null,null,"End of year"]
[null,null,"End of year"]
[null,null,"End of year"]
[null,null,"End of year"]
[null,null,"End of year"]
[]
[null,"ARR \nDNSP ONLY","dms_030605_UOM","dms_03060703_UOM","Spare","Spare"]
[null,null,"number","number"]
[null,null,"number","number"]
[null,null,"number","number"]
[null,null,"number","number"]
[null,null,"number","(per cent)"]
[null,null,"number"]
[null,null,"number"]
[null,null,"number"]
[null,null,"number"]
[null,null,"number"]
[null,null,"number"]
[null,null,"number"]
[null,null,"(per cent)"]
[null,null,"(per cent)",""]
[]
[null,"RFM","dms_Beg","dms_Mid","dms_End"]
[null,null,"Beginning of year","Mid year","End of Year"]
[]
[null,"PTRM","dms_PTRM_RAB_PIT","dms_PTRM_TAB_PIT","DMS_Xfactor"]
[null,null,"Beginning of year","Beginning of year","x factors"]
[null,null,"End of year","End of year"]
[null,null,"End of year","End of year"]
[null,null,"End of year","End of year"]
[null,null,"End of year"]
[]
[]
[null,"STPIS & MIC NAMED RANGES "]
[]
[null,"These \"row descriptions\" are the column headings in the various templates but become row descriptions in the ETL process"]
[]
[null,"Table 6.3 sustained interruptions - row descriptions","dms_060301_CustNo_Affected_Row","dms_060301_Avg_Duration_Sustained_Int_Row","dms_060301_Effect_unplanned_SAIDI_Row","dms_060301_Effect_unplanned_SAIFI_Row"]
[null,null,"Number of customers affected by the interruption","Average duration of sustained customer interruption","Effect on unplanned SAIDI","Effect on unplanned SAIFI"]
[]
[]
[null,"Table 6.1 telephone answering - row descriptions and start date","dms_060101_Rows","dms_060102_Rows","dms_060101_StartDateTxt"]
[null,null,"Total number of calls \n(after removing excluded events)","Number of calls answered within 30 seconds \n(after excluding excluded events) ",{"$f":"dms_060701_StartDateTxt","v":"1-Jan-2016"}]
[]
[]
[null,"Table 6.8.1 - row descriptions","dms_060801_01_Rows","dms_060801_02_Rows","dms_060801_03_Rows","dms_060801_04_Rows"]
[null,null,"Number of interruptions","Duration of interruptions","Total unplanned minutes off supply","Effect on unplanned MAIFI"]
[]
[]
[null,"Table 7.9.4 - market impact component - row descriptions","dms_070904_01_Rows","without exclusions","with exclusions"]
[]
[]
[null,"These headings (Lists) are determined from the INDEX/MATCH function on the NSP selected on the Business & other details sheet"]
[]
[null,"Table 6.7.1 - daily performance data - unplanned - MAIFI  -- row descriptions and header named range values","dms_060701_Feeder_Header_Lvl4",{"$f":"INDEX(dms_FeederName_1,MATCH(dms_TradingName,dms_TradingName_List))","v":"CBD"},{"$f":"INDEX(dms_FeederName_1,MATCH(dms_TradingName,dms_TradingName_List))","v":"CBD"},{"$f":"INDEX(dms_FeederName_2,MATCH(dms_TradingName,dms_TradingName_List))","v":"Urban"},{"$f":"INDEX(dms_FeederName_2,MATCH(dms_TradingName,dms_TradingName_List))","v":"Urban"},{"$f":"INDEX(dms_FeederName_3,MATCH(dms_TradingName,dms_TradingName_List))","v":"Short rural"},{"$f":"INDEX(dms_FeederName_3,MATCH(dms_TradingName,dms_TradingName_List))","v":"Short rural"},{"$f":"INDEX(dms_FeederName_4,MATCH(dms_TradingName,dms_TradingName_List))","v":"Long rural"},{"$f":"INDEX(dms_FeederName_4,MATCH(dms_TradingName,dms_TradingName_List))","v":"Long rural"},{"$f":"IF((INDEX(dms_FeederName_5,MATCH(dms_TradingName,dms_TradingName_List))=0),\"Network\",(INDEX(dms_FeederName_5,MATCH(dms_TradingName,dms_TradingName_List))))","v":"Network"},{"$f":"IF((INDEX(dms_FeederName_5,MATCH(dms_TradingName,dms_TradingName_List))=0),\"Network\",(INDEX(dms_FeederName_5,MATCH(dms_TradingName,dms_TradingName_List))))","v":"Network"},"Network","Network"]
[]
[null,null,"dms_060701_Rows","All events","After removing excluded events","All events","After removing excluded events","All events","After removing excluded events","All events","After removing excluded events","All events","After removing excluded events","All events","After removing excluded events"]
[null,null,null,"the number of column headings changes from 10 to 12 depending on the number of feeder categories for the NSP"]
[]
[null,null,"dms_0603_FeederList",{"$f":"INDEX(dms_FeederName_1,MATCH(dms_TradingName,dms_TradingName_List))","v":"CBD"},{"$f":"INDEX(dms_FeederName_2,MATCH(dms_TradingName,dms_TradingName_List))","v":"Urban"},{"$f":"INDEX(dms_FeederName_3,MATCH(dms_TradingName,dms_TradingName_List))","v":"Short rural"},{"$f":"INDEX(dms_FeederName_4,MATCH(dms_TradingName,dms_TradingName_List))","v":"Long rural"}]
[]
[]
[null,"Use these to add to specific worksheets in existing files","Use these to add to specific worksheets in existing files"]
[]
[]
[null,"ARRs 6.7 STPIS daily performance","dms_060101_Values","dms_060102_Values","dms_060701_Values"]
[null,null,"dms_LeapYear"]
[]
[]
[null,"ARR's  6.8 STPIS exclusions","dms_060801_Event_Date","dms_060801_OutageID","dms_060801_FeederID","dms_060801_FeederClass","dms_060801_CauseID","dms_060801_01_Values","dms_060801_02_Values","dms_060801_03_Values","dms_060801_Excl_Cat","dms_060801_04_Values"]
[null,null,"dms_060801_StartCell"]
[]
[]
[null,"CA 6.3 sustained interruptions","dms_060301_Event_Date","dms_060301_Event_Time","dms_060301_AssetID","dms_060301_FeederClass","dms_060301_Reason","dms_060301_DetailedReason","dms_060301_CustNo_Affected_Values","dms_060301_Avg_Duration_Sustained_Int_Values","dms_060301_Effect_unplanned_SAIDI_Values","dms_060301_Effect_unplanned_SAIFI_Values","dms_060301_MED"]

{"sheet":"AER lookups","index":22,"n_rows":87,"n_cols":41,"rows_kept":87,"cut":false,"hidden":true,"merged":[[6,28,6,39],[21,1,21,4],[8,28,8,31],[8,34,8,38]]}
[null,"AER LOOKUP TABLES"]
[]
[null,"Data in these columns used for data validation and database purposes."]
[null,"Date last modified:","2017-01-16","added (Albury and Victora) for AGN"]
[null,null,"2016-10-17","updated TransGrid's correct legal name, corrected TasNetworks (T) to June financial year"]
[null,null,"2017-02-01","inserted Power and Water, added NRs (dms_FeederCat_1 and dms_FeederCat_2)"]
[null,null,"2017-03-03","inserted AEMO as a business",null,null,null,null,null,null,null,null,null,null,null,null,null,null,null,null,null,null,null,null,null,null,null,null,"FOR ELECTRICITY BUSINESSES ONLY"]
[null,null,"2018-03-28","major changes to accommodate STPIS"]
[null,null,"Template Version",5,null,null,null,null,null,null,null,null,null,null,null,null,null,null,null,null,null,null,null,null,null,null,null,null,"Feeder Types",null,null,null,"TasNetworks (D)","MAIFI flag","Feeder Names"]
[]
[null,null,null,null,null,null,null,null,null,null,null,null,null,null,null,null,null,null,null,null,null,null,null,null,null,null,null,null,"CBD","Urban","Short rural","long rural","EXTRA"]
[null,"dms_TradingName_List","dms_TradingNameFull_List","dms_ABN_List","dms_JurisdictionList","dms_Sector_List","dms_Segment_List","dms_FormControl_List","dms_RPT_List","dms_RPTMonth_List","dms_CRCPlength_List","dms_FRCPlength_List","dms_PRCPlength_List","dms_663_List","dms_DeterminationRef_List","dms_Addr1_List","dms_Addr2_List","dms_Suburb_List","dms_State_List","dms_PostCode_List","dms_PAddr1_List","dms_PAddr2_List","dms_PSuburb_List","dms_PState_List","dms_PPostCode_List","dms_ContactName1_List","dms_ContactPh1_List","dms_ContactEmail_List","dms_CBD_flag","dms_Urban_flag","dms_ShortRural_flag","dms_LongRural_flag","dms_FeederType_5_flag","dms_MAIFI_flag_List","dms_FeederName_1","dms_FeederName_2","dms_FeederName_3","dms_FeederName_4","dms_FeederName_5","dms_Public_Lighting_List","Column1"]
[null,"Amadeus","APT Pipelines (NT) Pty Ltd t/a Amadeus",39009737393,"NT","Gas","Transmission","Weighted average price cap","Financial","June",5,5,5,"x","n/a","Level 19, HSBC Building","580 George Street","SYDNEY","NSW",2000,"Level 19, HSBC Building","580 George Street","SYDNEY","NSW",2000,"Alexandra Curran","02 9275 0020","alexandra.curran@apa.com.au","NO","NO","NO","NO","NO","-","CBD","Urban","Short rural","Long rural",null,"NO","Amadeus"]
[null,"APA VTS","APA VTS Australia (Operations) Pty Ltd","65 083 009 278 ","Vic","Gas","Transmission","Weighted average price cap","Calendar","December",5,5,5,"x",null,"Level 19, HSBC Building","580 George Street","SYDNEY","NSW",2000,"PO Box R41",null,"ROYAL EXCHANGE","NSW",1225,"Alexandra Curran","02 9275 0020","alexandra.curran@apa.com.au","NO","NO","NO","NO","NO","-","CBD","Urban","Short rural","Long rural",null,"NO","APA GasNet"]
[null,"Australian Transmission Co. (Gas)","Australian Transmission Co. (Gas)",11222333444,"-","Gas","Transmission","Revenue cap","Financial","June",5,5,5,5,"transmission determination","123 Straight Street",null,"SYDNEY","NSW",2000,"PO Box 123",null,"SYDNEY","NSW",2000,"NO","NO","NO","NO","NO","-","CBD","Urban","Short rural","Long rural",null,"NO","Australian Transmission Co. (Gas)"]
[null,"Central Ranges Pipeline (T)","Central Ranges Pipeline Pty Ltd",108218355,"NSW","Gas","Transmission","Weighted average price cap","Financial","June",14,5,5,5,"transmission determination","Level 19","580 George Street","SYDNEY","NSW",2000,"PO Box R41",null,"ROYAL EXCHANGE","NSW",1225,"Scott Young","02 9275 0031","scott.young@apa.com.au","NO","NO","NO","NO","NO","-","CBD","Urban","Short rural","Long rural",null,"NO"]
[null,"Roma to Brisbane Pipeline","APT Petroleum Pipelines Limited t/a Roma to Brisbane Pipeline","009 737 393","Qld","Gas","Transmission","Weighted average price cap","Financial","June",5,5,5,"x","n/a","580 George Street",null,"SYDNEY","NSW",2000,"PO Box R41",null,"ROYAL EXCHANGE","NSW",1225,"Mark Allen","02 9275 0010","mark.allen@apa.com.au","NO","NO","NO","NO","NO","-","CBD","Urban","Short rural","Long rural",null,"NO","Roma to Brisbane Pipeline"]
[]
[]
[]
[]
[null,"The Reg Year Ending (dms_RYE) must be set to the last year of the regulatory period. For forecast data is is usually (FRCP_y5) for actual it is a single year (CRY). For historical actual data the RYE will need to be set manually in the business details sheet by setting the dms_Multiyear_flag to 1 and putting the correct value in 'dms_Specified_FinalYear. See cells C67:C68"]
[null,"dms_Model_List ","dms_Model_Name_Format1","dms_Worksheet_List","dms_Model_Span_List"]
[null,"ARR","Annual Reporting",{"$f":"IF(dms_MultiYear_ResponseFlag=\"yes\",\"NEW HISTORICAL ANNUAL REPORTING\",\"ANNUAL REPORTING\")","v":"ANNUAL REPORTING"},1]
[null,"CA","Category Analysis",{"$f":"IF(dms_MultiYear_ResponseFlag=\"yes\",\"NEW HISTORICAL CATEGORY ANALYSIS\",\"CATEGORY ANALYSIS\")","v":"CATEGORY ANALYSIS"},1]
[null,"CESS","Capitlal Expenditure","CAPITLAL EXPENDITURE SHARING SCHEMING",5]
[null,"CPI","CPI","CPI",5]
[null,"EB","Economic Benchmarking",{"$f":"IF(dms_MultiYear_ResponseFlag=\"yes\",\"NEW HISTORICAL ECONOMIC BENCHMARKING\",\"ECONOMIC BENCHMARKING\")","v":"ECONOMIC BENCHMARKING"},1]
[null,"Pricing","Pricing Proposal","PRICING PROPOSAL",5]
[null,"PTRM","Post Tax Revenue Model","POST TAX REVENUE MODEL",5]
[null,"Reset","Regulatory Reporting (Reset)","REGULATORY REPORTING STATEMENT",5]
[null,"RFM","Roll Forward Model","ROLL FORWARD MODEL",5]
[null,"WACC","Weighted Average Cost of Capital","WEIGHTED AVERAGE COST OF CAPITAL",1]
[]
[]
[]
[null,"Financial","Calendar",null,"PREVIOUS",null,"CURRENT",null,"FORTHCOMING"]
[null,"1987-88","1988","PRCP_y1",{"$f":"INDEX(INDIRECT(dms_RPT),dms_PRCP_start_row)","v":2013},"CRCP_y1",{"$f":"INDEX(INDIRECT(dms_RPT),dms_CRCP_start_row)","v":2018},{"$f":"FRCP_y1","v":2023},{"$f":"INDEX(INDIRECT(dms_RPT),dms_FRCP_start_row)","v":2023}]
[null,"1988-89","1989","PRCP_y2",{"$f":"INDEX(INDIRECT(dms_RPT),dms_PRCP_start_row+1)","v":2014},"CRCP_y2",{"$f":"INDEX(INDIRECT(dms_RPT),dms_CRCP_start_row+1)","v":2019},"FRCP_y2",{"$f":"INDEX(INDIRECT(dms_RPT),dms_FRCP_start_row+1)","v":2024}]
[null,"1989-90","1990","PRCP_y3",{"$f":"INDEX(INDIRECT(dms_RPT),dms_PRCP_start_row+2)","v":2015},"CRCP_y3",{"$f":"INDEX(INDIRECT(dms_RPT),dms_CRCP_start_row+2)","v":2020},"FRCP_y3",{"$f":"INDEX(INDIRECT(dms_RPT),dms_FRCP_start_row+2)","v":2025}]
[null,"1990-91","1991","PRCP_y4",{"$f":"INDEX(INDIRECT(dms_RPT),dms_PRCP_start_row+3)","v":2016},"CRCP_y4",{"$f":"INDEX(INDIRECT(dms_RPT),dms_CRCP_start_row+3)","v":2021},"FRCP_y4",{"$f":"INDEX(INDIRECT(dms_RPT),dms_FRCP_start_row+3)","v":2026}]
[null,"1991-92","1992","PRCP_y5",{"$f":"INDEX(INDIRECT(dms_RPT),dms_PRCP_start_row+4)","v":2017},"CRCP_y5",{"$f":"INDEX(INDIRECT(dms_RPT),dms_CRCP_start_row+4)","v":2022},"FRCP_y5",{"$f":"INDEX(INDIRECT(dms_RPT),dms_FRCP_start_row+4)","v":2027}]
[null,"1992-93","1993","PRCP_y6",{"$f":"INDEX(INDIRECT(dms_RPT),dms_PRCP_start_row+5)","v":2018},"CRCP_y6",{"$f":"INDEX(INDIRECT(dms_RPT),dms_CRCP_start_row+5)","v":2023},"FRCP_y6",{"$f":"INDEX(INDIRECT(dms_RPT),dms_FRCP_start_row+5)","v":2028}]
[null,"1993-94","1994","PRCP_y7",{"$f":"INDEX(INDIRECT(dms_RPT),dms_PRCP_start_row+6)","v":2019},"CRCP_y7",{"$f":"INDEX(INDIRECT(dms_RPT),dms_CRCP_start_row+6)","v":2024},"FRCP_y7",{"$f":"INDEX(INDIRECT(dms_RPT),dms_FRCP_start_row+6)","v":2029}]
[null,"1994-95","1995","PRCP_y8",{"$f":"INDEX(INDIRECT(dms_RPT),dms_PRCP_start_row+7)","v":2020},"CRCP_y8",{"$f":"INDEX(INDIRECT(dms_RPT),dms_CRCP_start_row+7)","v":2025},"FRCP_y8",{"$f":"INDEX(INDIRECT(dms_RPT),dms_FRCP_start_row+7)","v":2030}]
[null,"1995-96","1996","PRCP_y9",{"$f":"INDEX(INDIRECT(dms_RPT),dms_PRCP_start_row+8)","v":2021},"CRCP_y9",{"$f":"INDEX(INDIRECT(dms_RPT),dms_CRCP_start_row+8)","v":2026},"FRCP_y9",{"$f":"INDEX(INDIRECT(dms_RPT),dms_FRCP_start_row+8)","v":2031}]
[null,"1996-97","1997","PRCP_y10",{"$f":"INDEX(INDIRECT(dms_RPT),dms_PRCP_start_row+9)","v":2022},"CRCP_y10",{"$f":"INDEX(INDIRECT(dms_RPT),dms_CRCP_start_row+9)","v":2027},"FRCP_y10",{"$f":"INDEX(INDIRECT(dms_RPT),dms_FRCP_start_row+9)","v":2032}]
[null,"1997-98","1998","PRCP_y11",{"$f":"INDEX(INDIRECT(dms_RPT),dms_PRCP_start_row+10)","v":2023},"CRCP_y11",{"$f":"INDEX(INDIRECT(dms_RPT),dms_CRCP_start_row+10)","v":2028},"FRCP_y11",{"$f":"INDEX(INDIRECT(dms_RPT),dms_FRCP_start_row+10)","v":2033}]
[null,"1998-99","1999","PRCP_y12",{"$f":"INDEX(INDIRECT(dms_RPT),dms_PRCP_start_row+11)","v":2024},"CRCP_y12",{"$f":"INDEX(INDIRECT(dms_RPT),dms_CRCP_start_row+11)","v":2029},"FRCP_y12",{"$f":"INDEX(INDIRECT(dms_RPT),dms_FRCP_start_row+11)","v":2034}]
[null,"1999-00","2000","PRCP_y13",{"$f":"INDEX(INDIRECT(dms_RPT),dms_PRCP_start_row+12)","v":2025},"CRCP_y13",{"$f":"INDEX(INDIRECT(dms_RPT),dms_CRCP_start_row+12)","v":2030},"FRCP_y13",{"$f":"INDEX(INDIRECT(dms_RPT),dms_FRCP_start_row+12)","v":2035}]
[null,"2000-01","2001","PRCP_y14",{"$f":"INDEX(INDIRECT(dms_RPT),dms_PRCP_start_row+13)","v":2026},"CRCP_y14",{"$f":"INDEX(INDIRECT(dms_RPT),dms_CRCP_start_row+13)","v":2031},"FRCP_y14",{"$f":"INDEX(INDIRECT(dms_RPT),dms_FRCP_start_row+13)","v":2036}]
[null,"2001-02","2002","PRCP_y15",{"$f":"INDEX(INDIRECT(dms_RPT),dms_PRCP_start_row+14)","v":2027},"CRCP_y15",{"$f":"INDEX(INDIRECT(dms_RPT),dms_CRCP_start_row+14)","v":2032},"FRCP_y15",{"$f":"INDEX(INDIRECT(dms_RPT),dms_FRCP_start_row+14)","v":"2037"}]
[null,"2002-03","2003","PRCP_y16",{"$f":"INDEX(INDIRECT(dms_RPT),dms_PRCP_start_row+15)","v":2028},"CRCP_y16",{"$f":"INDEX(INDIRECT(dms_RPT),dms_CRCP_start_row+15)","v":2033},"FRCP_y16",{"$f":"INDEX(INDIRECT(dms_RPT),dms_FRCP_start_row+15)","v":{"$error":"#REF!"}}]
[null,"2003-04","2004"]
[null,"2004-05","2005"]
[null,"2005-06","2006",null,"CRY - FRY"]
[null,"2006-07","2007","dms_y1",{"$f":"IFERROR(INDEX(INDIRECT(dms_RPT),dms_CRY_start_row),0)","v":2021}]
[null,"2007-08","2008","dms_y2",{"$f":"IFERROR(INDEX(INDIRECT(dms_RPT),dms_CRY_start_row+1),0)","v":2022}]
[null,"2008-09","2009","dms_y3",{"$f":"IFERROR(INDEX(INDIRECT(dms_RPT),dms_CRY_start_row+2),0)","v":2023}]
[null,"2009-10",2010,"dms_y4",{"$f":"IFERROR(INDEX(INDIRECT(dms_RPT),dms_CRY_start_row+3),0)","v":2024}]
[null,"2010-11",2011,"dms_y5",{"$f":"IFERROR(INDEX(INDIRECT(dms_RPT),dms_CRY_start_row+4),0)","v":2025}]
[null,"2011-12",2012,"dms_y6",{"$f":"IFERROR(INDEX(INDIRECT(dms_RPT),dms_CRY_start_row+5),0)","v":2026}]
[null,"2012-13",2013,"dms_y7",{"$f":"IFERROR(INDEX(INDIRECT(dms_RPT),dms_CRY_start_row+6),0)","v":2027}]
[null,"2013-14",2014,"dms_y8",{"$f":"IFERROR(INDEX(INDIRECT(dms_RPT),dms_CRY_start_row+7),0)","v":2028}]
[null,"2014-15",2015,"dms_y9",{"$f":"IFERROR(INDEX(INDIRECT(dms_RPT),dms_CRY_start_row+8),0)","v":2029}]
[null,"2015-16",2016,"dms_y10",{"$f":"IFERROR(INDEX(INDIRECT(dms_RPT),dms_CRY_start_row+9),0)","v":2030}]
[null,"2016-17",2017,"dms_y11",{"$f":"IFERROR(INDEX(INDIRECT(dms_RPT),dms_CRY_start_row+10),0)","v":2031}]
[null,"2017-18",2018,"dms_y12",{"$f":"IFERROR(INDEX(INDIRECT(dms_RPT),dms_CRY_start_row+11),0)","v":2032}]
[null,"2018-19",2019,"dms_y13",{"$f":"IFERROR(INDEX(INDIRECT(dms_RPT),dms_CRY_start_row+12),0)","v":2033}]
[null,"2019-20",2020,"dms_y14",{"$f":"IFERROR(INDEX(INDIRECT(dms_RPT),dms_CRY_start_row+13),0)","v":2034}]
[null,"2020-21",2021,"dms_y15",{"$f":"IFERROR(INDEX(INDIRECT(dms_RPT),dms_CRY_start_row+14),0)","v":2035}]
[null,"2021-22",2022,"dms_y16",{"$f":"IFERROR(INDEX(INDIRECT(dms_RPT),dms_CRY_start_row+15),0)","v":2036}]
[null,"2022-23",2023]
[null,"2023-24",2024]
[null,"2024-25",2025]
[null,"2025-26",2026]
[null,"2026-27",2027]
[null,"2027-28",2028]
[null,"2028-29",2029]
[null,"2029-30",2030]
[null,"2030-31",2031]
[null,"2031-32",2032]
[null,"2032-33",2033]
[null,"2033-34",2034]
[null,"2034-35",2035]
[null,"2035-36",2036]
[null,"2036-37","2037"]

{"sheet":"AER ETL","index":23,"n_rows":145,"n_cols":8,"rows_kept":145,"cut":false,"hidden":true,"merged":[[12,4,12,8],[71,1,73,1],[11,0,15,0],[18,0,25,0],[26,0,31,0],[34,0,59,0],[14,2,14,4],[32,37,32,58],[33,37,33,58],[34,37,34,58],[32,68,32,89],[33,68,33,89],[34,68,34,89]]}
[null,"AER ETL INFORMATION"]
[]
[null,"USES NAMED RANGES FLAG","yes","dms_Defined_Names_Used"]
[]
[null,"IF THIS IS AN ABC RIN - make sure the the named range CRY is applied and the named range dms_dollar_nom_UOM is applied"]
[null,"IF THIS IS A RESET RIN - make sure the named ranges CRY and dms_dollar_nom_UOM are NOT present in the workbook"]
[null,"FOR ABC RINS THAT SPAN MULTIPLE YEARS - make sure MultiYear Flag is set and final year entered as required"]
[]
[null,"Full trading name",{"$f":"INDEX(dms_TradingNameFull_List,MATCH(dms_TradingName,dms_TradingName_List))","v":"APA VTS Australia (Operations) Pty Ltd"},null,"dms_TradingNameFull"]
[null,"Trading name",{"$f":"dms_TradingName","v":"APA VTS"}]
["Selected here","Model / RIN","Reset","dms_Model"]
["Read from Business & other details","Source",{"$f":"'Business & other details'!AL64","v":"Regulatory proposal"},"dms_Source"]
[null,"Data quality",{"$f":"dms_Selected_Quality","v":"Consolidated"},"dms_DQ_1"]
[null,"Data status",{"$f":"dms_Selected_Status","v":"Public"},"dms_DQ_2"]
[null,"Amendment reason",{"$f":"dms_Amendment_Text","v":0},null,null,"dms_AmendmentReason"]
[null,"Submission date",{"$f":"dms_Typed_Submission_Date","v":"2021-12-01"},"dms_SubmissionDate"]
[]
["Redundant","EBSS - First application of scheme in forthcoming period?","No"]
["Pre-populated from lookup table","Data ingestion data quality",{"$f":"dms_Selected_Quality","v":"Consolidated"},"dms_DataQuality","=IF(dms_DQ_2=\"Confidential\",\"Consolidated\",\"Public\")"]
[null,"Sector",{"$f":"INDEX(dms_Sector_List,MATCH(dms_TradingName,dms_TradingName_List))","v":"Gas"},"dms_Sector","=INDEX(dms_Sector_List,MATCH(dms_TradingName,dms_TradingName_List))"]
[null,"Segment",{"$f":"INDEX(dms_Segment_List,MATCH(dms_TradingName,dms_TradingName_List))","v":"Transmission"},"dms_Segment","=INDEX(dms_Segment_List,MATCH(dms_TradingName,dms_TradingName_List))"]
[null,"Regulatory Year Ending",{"$f":"dms_RYE_result","v":"2027"},"dms_RYE","=IF(dms_MultiYear_Flag=1,LEFT(dms_Specified_FinalYear,2)&RIGHT(dms_Specified_FinalYear,2),INDEX(dms_RYE_Formula_Result,MATCH(dms_Model,dms_Model_List)))"]
[null,"Reporting Period Type",{"$f":"INDEX(dms_RPT_List,MATCH(dms_TradingName,dms_TradingName_List))","v":"Calendar"},"dms_RPT","=INDEX(dms_RPT_List,MATCH(dms_TradingName,dms_TradingName_List))"]
[null,"EB/CA Unit of Measure for Monetary Values","$0s","dms_dollar_nom_UOM","If the cover sheet is attached to an ABC RIN apply the NAMED RANGE to the cell"]
[null,"Security Classification","Public","dms_Classification","Always Public"]
[null,"Jurisdiction",{"$f":"INDEX(dms_JurisdictionList,MATCH(dms_TradingName,dms_TradingName_List))","v":"Vic"},"dms_Jurisdiction","=INDEX(dms_JurisdictionList,MATCH(dms_TradingName,dms_TradingName_List))"]
["Relevant for PTRM, RFMs and Reset RINS","$ REAL REFERENCES"]
[null,"Does the named range CRY exist in this file? ",{"$f":"IFERROR(CRY,\"NO\")","v":"NO"}]
[null,"CRY-1  (last full calendar year before CRY)",{"$f":"IFERROR(IF(dms_RPT=\"calendar\",CRY-1,LEFT(CRY,4)),\"CRY not present\")","v":"CRY not present"},"dms_Cal_Year_B4_CRY","'=IF(dms_RPT=\"financial\",VALUE(LEFT(dms_SingleYear_FinalYear_Result,4)),VALUE(LEFT(dms_SingleYear_FinalYear_Result,4)-1))"]
[null,"Dollar $ real month",{"$f":"INDEX(dms_RPTMonth_List,MATCH(dms_TradingName,dms_TradingName_List))","v":"December"},"dms_RPTMonth","=INDEX(dms_RPTMonth_List,MATCH(dms_TradingName,dms_TradingName_List))"]
[null,"Dollar $ real  (the last month before the FRCP_y1)",{"$f":"IF(dms_SingleYearModel=\"yes\",CONCATENATE(dms_RPTMonth)&\" \"&VALUE((LEFT(CRY,2))&RIGHT(CRY,2)),CONCATENATE(dms_RPTMonth)&\" \"&dms_DollarReal_year)","v":"December 2022"},"dms_DollarReal","=IF(SUM(dms_SingleYear_Model)>0,CONCATENATE(dms_RPTMonth)&\" \"&VALUE((LEFT(CRY,2))&RIGHT(CRY,2)),CONCATENATE(dms_RPTMonth)&\" \"&VALUE((LEFT(dms_RYE,2)&RIGHT(dms_RYE,2))))"]
[null,"Dollar $ real previous year (PRCP_y5)",{"$f":"IF(dms_SingleYearModel=\"yes\",CONCATENATE(dms_RPTMonth)&\" \"&VALUE((LEFT(CRY,2))&RIGHT(CRY,2)),CONCATENATE(dms_RPTMonth)&\" \"&dms_Previous_DollarReal_year)","v":"December 2017"},"dms_DollarReal_Prev","=IF(SUM(dms_SingleYear_Model)>0,CONCATENATE(dms_RPTMonth)&\" \"&VALUE(((LEFT(CRY,2))&RIGHT(CRY,2))-1),CONCATENATE(dms_RPTMonth)&\" \"&VALUE(((LEFT(dms_CRCP_FirstYear_Result,2)&RIGHT(dms_CRCP_FirstYear_Result,2))))-1)"]
[null,"PTRM/ RFMs"]
[null,"Form of control",{"$f":"INDEX(dms_FormControl_List,MATCH(dms_TradingName,dms_TradingName_List))","v":"Weighted average price cap"},"dms_FormControl","=INDEX(dms_FormControl_List,MATCH(dms_TradingName,dms_TradingName_List))"]
["All potential values for Regulatory Years or RYEs as calculated","This block works out the various RYE's for ALL RIN types and MODELS"]
[null,"dms_start_year",{"$f":"FRCP_y1","v":2023},"FRCP_y1 from cover sheet"]
[null,"dms_CRY_start_year",{"$f":"IFERROR(CRY,CRCP_y4)","v":2021}]
[null,"dms_CRY_start_row",{"$f":"IFERROR(MATCH(dms_CRY_start_year,INDIRECT(dms_RPT),0),0)","v":34}]
[null,"dms_FRCP_start_row",{"$f":"MATCH(dms_start_year,INDIRECT(dms_RPT),0)","v":36},"Uses FRCP_y1 as a start reference"]
[null,"dms_CRCP_start_row",{"$f":"dms_FRCP_start_row-dms_CRCPlength_Num","v":31},"Uses the value in dms_CRCPlength_Num"]
[null,"dms_PRCP_start_row",{"$f":"dms_FRCP_start_row-dms_CRCPlength_Num-dms_PRCPlength_Num","v":26},"Uses the value in dms_CRCPlength_Num and dms_PRCPlength_Num"]
[null,"dms_RYE_start_row",{"$f":"dms_FRCP_start_row+(dms_FRCPlength_Num-1)","v":40},"Uses the value in dms_FRCPlength_Num-1"]
[null,"FRCP_start_year",{"$f":"INDEX(INDIRECT(dms_RPT),dms_FRCP_start_row)","v":2023},"Converts the FRCP start row to display the year"]
[null,"CRCP_start_year",{"$f":"INDEX(INDIRECT(dms_RPT),dms_CRCP_start_row)","v":2018},"Converts the CRCP start row to display the year"]
[null,"PRCP_start_year",{"$f":"INDEX(INDIRECT(dms_RPT),dms_PRCP_start_row)","v":2013},"Converts the PRCP start row to display the year"]
[null,"FRCP_final_year",{"$f":"INDEX(INDIRECT(dms_RPT),dms_FRCP_start_row+dms_FRCPlength_Num-1)","v":2027},"Finds the FRCP final year"]
[null,"CRCP_final_year",{"$f":"INDEX(INDIRECT(dms_RPT),dms_CRCP_start_row+dms_CRCPlength_Num-1)","v":2022},"Finds the CRCP final year"]
[null,"PRCP_final_year",{"$f":"INDEX(INDIRECT(dms_RPT),dms_PRCP_start_row+dms_FRCPlength_Num-1)","v":2017},"Finds the PRCP final year"]
[null,"dms_Reset_final_year",{"$f":"INDEX(INDIRECT(dms_RPT),dms_RYE_start_row)","v":2027},"For Resets and PTRM/RFMs (same as FRCP_final_year)"]
[null,"dms_SpecifiedYear_final_year",{"$f":"FRY","v":"2025-26"},"FRY from cover sheet"]
[null,"dms_DollarReal_year",{"$f":"LEFT(CRCP_final_year,2)&RIGHT(CRCP_final_year,2)","v":"2022"},"Uses the value in CRCP_final_year"]
[null,"dms_Previous_DollarReal_year",{"$f":"LEFT(PRCP_final_year,2)&RIGHT(PRCP_final_year,2)","v":"2017"},"Uses the value in PRCP_final_year"]
[null,"dms_CRY_RYE",{"$f":"IFERROR(LEFT(CRY,2)&RIGHT(CRY,2),0)","v":0},"For ABC single year RINS"]
[null,"dms_Reset_RYE",{"$f":"IF(dms_Model_Span>1,IF(dms_Model=\"RFM\",(LEFT(dms_DollarReal_year,2)&RIGHT(dms_DollarReal_year,2)),(LEFT(dms_Reset_final_year,2)&RIGHT(dms_Reset_final_year,2))),0)","v":"2027"},"If model span > 1 then uses dms_Reset_RYE otherwise it's a multi year ABC and uses dms_Specified_RYE"]
[null,"dms_Specified_RYE",{"$f":"IF(dms_MultiYear_ResponseFlag=\"Yes\",(LEFT(dms_Specified_FinalYear,2)&RIGHT(dms_Specified_FinalYear,2)),0)","v":0},"If multi year ABC - uses dms_Specified_FinalYear"]
[null,"dms_Model_Span",{"$f":"INDEX(dms_Model_Span_List,MATCH(dms_Model,dms_Model_List))","v":5},"A result of 5 is used to signify that it is more than 1 year span"]
[null,"dms_RYE_result",{"$f":"IF(dms_MultiYear_ResponseFlag=\"yes\",dms_Specified_RYE,(IF(dms_Model_Span>1,dms_Reset_RYE,dms_CRY_RYE)))","v":"2027"},"Nested IF - feeds into dms_RYE"]
[null,"dms_Reset_Span",{"$f":"IF(dms_Reset_RYE>0,CONCATENATE(FRCP_y1,\" to \",FRCP_final_year),0)","v":"2023 to 2027"},"Reset span of years as text"]
[null,"dms_SpecifiedYear_Span",{"$f":"IF(dms_Specified_RYE>0,CONCATENATE(CRY,\" to \",dms_Specified_FinalYear),0)","v":0},"Multi year ABC span of years as text"]
[null,"dms_Header_Span",{"$f":"IF(dms_MultiYear_Flag=1,CONCATENATE(\"Data Span \",dms_SpecifiedYear_Span),IF(dms_Model_Span>1,CONCATENATE(\"Data Span \",dms_y1&\" - \"&FRCP_final_year)))","v":"Data Span 2021 - 2027"},"NESTED IF - for Sheet Headers"]
[null,"ABC RINS THAT SPAN MULTIPLE YEARS"]
[null,"This is a multi year ABC RIN?","No"]
[null,null,{"$f":"IF(dms_MultiYear_ResponseFlag=\"No\",0,1)","v":0},"dms_MultiYear_Flag","This is set from the answer provided above"]
[null,null,{"$f":"IF(dms_MultiYear_Flag=1,FRY,\"not a Multiple year submission\")","v":"not a Multiple year submission"},"dms_Specified_FinalYear","The result here is returned to dms_CRCP_FinalYear_Result if response to Q in C73 is \"yes\" and dms_MultiYear_Flag is set to 1"]
[null," Start year for 5.2 in Multi year ABC RINS",{"$f":"IFERROR(IF(dms_MultiYear_Flag=1,FRY,CRY),\"not an ABC\")","v":"not an ABC"},"dms_0502_Inst_Year","=IF(dms_MultiYear_Flag=1,FRY,CRY)",null,"For single year RINS this is CRY - multi year RINS need to start a the end of the span of years (ie. FRY)"]
[null,"WHAT IS THE RYE?"]
[null,"Reg Period Lengths"]
[null,"PRCP length in years",{"$f":"INDEX(dms_PRCPlength_List,MATCH(dms_TradingName,dms_TradingName_List))","v":5},"dms_PRCPlength_Num","=INDEX(dms_PRCPlength_List,MATCH(dms_TradingName,dms_TradingName_List))"]
[null,"CRCP length in years",{"$f":"INDEX(dms_CRCPlength_List,MATCH(dms_TradingName,dms_TradingName_List))","v":5},"dms_CRCPlength_Num","=INDEX(dms_CRCPlength_List,MATCH(dms_TradingName,dms_TradingName_List))"]
[null,"FRCP length in years",{"$f":"INDEX(dms_FRCPlength_List,MATCH(dms_TradingName,dms_TradingName_List))","v":5},"dms_FRCPlength_Num","=INDEX(dms_FRCPlength_List,MATCH(dms_TradingName,dms_TradingName_List))"]
[null,"Single year RIN?"]
[null,"Single Year ABC RIN ?",{"$f":"IF(dms_Model=\"EB\",1,0)","v":0},"dms_EB"]
[null,null,{"$f":"IF(dms_Model=\"CA\",1,0)","v":0},"dms_CA","=dms_SingleYear_Model"]
[null,null,{"$f":"IF(dms_Model=\"ARR\",1,0)","v":0},"dms_ARR"]
[null,"Is this a single Year ABC RIN?",{"$f":"IF(SUM(dms_SingleYear_Model)=1,\"yes\",\"no\")","v":"no"},"dms_SingleYearModel","=IF(SUM(dms_SingleYear_Model)=1,\"yes\",\"no\")"]
[null,"Single Year Final Year Result",{"$f":"IF(AND(dms_SingleYearModel=\"yes\",dms_MultiYear_Flag=0),CRY,0)","v":0},"dms_SingleYear_FinalYear_Result","=IFERROR(IF(SUM(dms_SingleYear_Model)<>0,(INDIRECT(dms_SingleYear_FinalYear_Ref)),\"not a single year RIN\"),\"CRY not present\")"]
[null,"Multi year RIN?"]
[]
[null,"Multi Year Reset/Model?",{"$f":"IF(dms_Model_Span>1,\"yes\",\"no\")","v":"yes"}]
[null,"Final year result for Reset/Model",{"$f":"IF(dms_Model_Span>1,dms_Reset_final_year,0)","v":2027},"dms_MultiYear_FinalYear_Result"]
[]
[null,"Multi Year ABC RIN?",{"$f":"IF(dms_MultiYear_Flag=1,\"yes\",\"no\")","v":"no"},"dms_MultiYear_ABC_RIN"]
[null,"Final year result for ABC multi year",{"$f":"IF(dms_MultiYear_Flag=1,C50,0)","v":0}]
[]
[null,"EB RINS"]
[null,"Calendar Year for table 3.6 data",{"$f":"IFERROR(IF(dms_Segment=\"Transmission\",dms_Cal_Year_B4_CRY,CRY),\"CRY not present\")","v":"CRY not present"},"dms_0306_Year","=IF(dms_Segment=\"Transmission\",dms_Cal_Year_B4_CRY,CRY)"]
[null,"CA RINS"]
[null,"Find how many rows in tables 6.3 sustained interruptions?",null,null,"dms_060301_MaxRows only returns a valid value when cover sheet is attached to a CA file"]
[null,null,{"$f":"IF(dms_Model<>\"CA\",\"not a CA\",\"Is a CA\")","v":"not a CA"},null,"=IF(dms_Model<>\"CA\",\"not a CA\",\"Is a CA\")"]
[null,"dms_060301_Avg_Duration_Sustained_Int_Values present?",{"$f":"IFERROR(IF(INDEX(dms_060301_Avg_Duration_Sustained_Int_Values,1,1)<>\"\",\"yes\",\"no\"),\"no\")","v":"no"},"dms_060301_checkvalue","=IFERROR(IF(INDEX(dms_060301_Avg_Duration_Sustained_Int_Values,1,1)<>\"\",\"yes\",\"no\"),\"no\")"]
[null,null,{"$f":"IF(AND(dms_Model=\"CA\",(dms_060301_checkvalue=\"no\")),\"error - NR not present\",\"no errors\")","v":"no errors"},null,"=IF(AND(dms_Model=\"CA\",(dms_060301_checkvalue=\"no\")),\"error - NR not present\",\"no errors\")"]
[null,"Table 6.3.1 - last row reference",{"$f":"IFERROR(IF(dms_Model=\"CA\",LOOKUP(2,1/(dms_060301_Avg_Duration_Sustained_Int_Values<>\"\"),(ROW(dms_060301_Avg_Duration_Sustained_Int_Values))),\"not a CA\"),\"6.3 not present\")","v":"not a CA"},"dms_060301_LastRow","=IFERROR(IF(dms_Model=\"CA\",LOOKUP(2,1/(dms_060301_Avg_Duration_Sustained_Int_Values<>\"\"),(ROW(dms_060301_Avg_Duration_Sustained_Int_Values))),\"not a CA\"),\"6.3 not present\")"]
[null,"Table 6.3.1 - max number rows",{"$f":"IFERROR(IF(dms_Model=\"CA\",(dms_060301_LastRow-15),\"not a CA\"),\"error\")","v":"not a CA"},"dms_060301_MaxRows","=IFERROR(IF(dms_Model=\"CA\",(dms_060301_LastRow-15),\"not a CA\"),\"error\")"]
[null,"Table 6.6.3 - Public lighting repair - no. business days",{"$f":"INDEX(dms_663_List,MATCH(dms_TradingName,dms_TradingName_List))","v":"x"},"dms_663","=INDEX(dms_663_List,MATCH(dms_TradingName,dms_TradingName_List))"]
[null,"ARR or RESET RINS"]
[null,"How many rows in tables 6.1 or 6.7?  (leap year?)","insert dms_LeapYear NR if required",null,"'dms_LeapYear is used to determine dms_060701_Max_Rows BUT it is only found on worksheet 6.1 or 6.7 and the date value in the cell is used to determine whether it is a leap year"]
[null,"Is dms_LeapYear named range present?",{"$f":"IFERROR(IF(dms_LeapYear,\"yes\"),\"no\")","v":"no"}]
[null,"Table 6.7.1 - includes a leap year?",{"$f":"\nIFERROR(IF(MONTH(DATE(YEAR(dms_LeapYear),2,29))=2,\"is a leap year\",\"not a leap year\"),\n\"dms_LeapYear not present\")","v":"dms_LeapYear not present"},"dms_LeapYear_Result","=IFERROR(IF(MONTH(DATE(YEAR(dms_LeapYear),2,29))=2,\"is a leap year\",\"not a leap year\"),\"dms_LeapYear not present\")"]
[null,"MaxRows if Reset and leap year",{"$f":"IF(dms_LeapYear_Result=\"is a leap year\",1827,1826)","v":1826},"dms_060701_Reset_MaxRows","=IF(dms_LeapYear_Result=\"is a leap year\",1827,1826)",null,null,"number of days present in Reset RIN table"]
[null,"MaxRows if ARR and leap year",{"$f":"IF(dms_LeapYear_Result=\"is a leap year\",366,365)","v":365},"dms_060701_ARR_MaxRows","=IF(dms_LeapYear_Result=\"is a leap year\",366,365)",null,null,"number of days present in ARR RIN table"]
[null,"Table 6.7.1 - Max Rows (leap year/ non leap year)",{"$f":"IF(dms_Model=\"ARR\",dms_060701_ARR_MaxRows,IF(dms_Model=\"Reset\",dms_060701_Reset_MaxRows,\"not a relevant RIN type\"))","v":1826},"dms_060701_MaxRows","=IF(dms_Model=\"ARR\",dms_060701_ARR_MaxRows,IF(dms_Model=\"Reset\",dms_060701_Reset_MaxRows,\"not a relevant RIN type\"))"]
[null,"How many columns in 6.7?   (4 or 5 feeder categories)",{"$f":"IF(dms_FifthFeeder_flag_NSP=\"NO\",\"This NSP has only 4 feeder categories\",\"This NSP has 5 feeder categories\")","v":"This NSP has only 4 feeder categories"}]
[null,"Table 6.7.1 - Last column (# of feeder categories > 4)",{"$f":"IF(dms_FifthFeeder_flag_NSP=\"NO\",10,12)","v":10},"dms_060701_MaxCols","=IF(dms_FifthFeeder_flag_NSP=\"NO\",8,10)"]
[null,"Table 6.7.1 - Number of offset rows",{"$f":"IF(dms_Model=\"ARR\",15,9)","v":9},"dms_060701_OffsetRows","=IF(dms_Model=\"ARR\",15,9)"]
[null,"Start date for telephone answering in 6.1 or 6.7?",null,null,"Using 060101 as naming standard not 060701 for start dates"]
[null,"Table 6.1.1 and 6.7.1 - Start Date as Text",{"$f":"IF(dms_SingleYearModel=\"yes\",(CONCATENATE(IF(LEN(CRY)=4,\"1-Jan-\",\"1-Jul-\"),LEFT(CRY,4))),(CONCATENATE(IF(LEN(PRCP_y4)=4,\"1-Jan-\",\"1-Jul-\"),LEFT(PRCP_y4,4))))","v":"1-Jan-2016"},"dms_060101_StartDateTxt","=IF(SUM(dms_SingleYear_Model)>1,(CONCATENATE(IF(LEN(CRY)=4,\"1-Jan-\",\"1-Jul-\"),LEFT(CRY,4))),(CONCATENATE(IF(LEN(CRCP_y4)=4,\"1-Jan-\",\"1-Jul-\"),LEFT(CRCP_y4,4))))"]
[null,"Table 6.1.1 and 6.7.1 - Start Date as Date Value",{"$f":"DATEVALUE(dms_060701_StartDateTxt)","v":42370},"dms_060101_StartDateVal","=DATEVALUE(dms_060701_StartDateTxt)"]
[null,"ARRs"]
[null,"How many rows in table 6.8?","insert dms_060801_StartCell NR if required",null,"dms_060801_StartCell is only found on worksheet 6.8 and is used to determine the starting date for the date range"]
[null,"Is dms_060801_StartCell named range present?","yes",null,"=IFERROR(IF((ROW(dms_060801_StartCell)-1)=1,\"yes\",\"yes\"),\"no\")"]
[null,"Table 6.8 - Number of offset rows",12,"dms_0608_OffsetRows","=IFERROR(IF(dms_Model=\"ARR\",(ROW(dms_060801_StartCell)-1),\"not an ARR\"),\"6.8 error\")"]
[null,"Table 6.8 - Last row","0","dms_0608_LastRow","=IFERROR(IF(dms_060801_StartCell<>\"\",IF(dms_Model=\"ARR\",(LOOKUP(2,1/(dms_060801_01_Values<>\"\"),(ROW(dms_060801_01_Values)))),\"not an ARR\"),0),\"0\")"]
[null,"Table 6.8 - MaxRows",{"$f":"IFERROR(IF(dms_Model=\"ARR\",(MAX(0,dms_0608_LastRow-dms_0608_OffsetRows)),\"not an ARR\"),\"0\")","v":"not an ARR"},"dms_060801_MaxRows","=IFERROR(IF(dms_Model=\"ARR\",(MAX(0,dms_0608_LastRow-dms_0608_OffsetRows)),\"not an ARR\"),\"0\")"]
[null,"TNSP RESET RINS"]
[null,"Table 7.9.4 only appears in TNSPs Reset RIN"]
[null,"Table 7.9.4 - first year",{"$f":"LEFT(PRCP_y3,4)","v":"2015"},"dms_070904_Start_Year","=LEFT(PRCP_y3,4)"]
[]
[null,"MISC"]
[null,"Distribution Determination Reference",{"$f":"INDEX(dms_DeterminationRef_List,MATCH(dms_TradingName,dms_TradingName_List))","v":0},"dms_DeterminationRef"]
[null,"Public lighting NSP?",{"$f":"INDEX(dms_Public_Lighting_List,MATCH(dms_TradingName,dms_TradingName_List))","v":"NO"},"dms_Public_Lighting","=INDEX(dms_Public_Lighting_List,MATCH(dms_TradingName,dms_TradingName_List))"]
[null,"CBD Feeder for this business",{"$f":"INDEX(dms_CBD_flag,MATCH(dms_TradingName,dms_TradingName_List))","v":"NO"},"dms_CBD_flag_NSP"]
[null,"Urban Feeder for this business",{"$f":"INDEX(dms_Urban_flag,MATCH(dms_TradingName,dms_TradingName_List))","v":"NO"},"dms_Urban_flag_NSP"]
[null,"Short rural Feeder for this business",{"$f":"INDEX(dms_ShortRural_flag,MATCH(dms_TradingName,dms_TradingName_List))","v":"NO"},"dms_ShortRural_flag_NSP"]
[null,"Long rural Feeder for this business",{"$f":"INDEX(dms_LongRural_flag,MATCH(dms_TradingName,dms_TradingName_List))","v":"NO"},"dms_LongRural_flag_NSP"]
[null,"Fifth Feeder Category (eg. TasNetworks (D))",{"$f":"INDEX(dms_FeederType_5_flag,MATCH(dms_TradingName,dms_TradingName_List))","v":"NO"},"dms_FifthFeeder_flag_NSP","=INDEX(dms_FeederType_5_flag,MATCH(dms_TradingName,dms_TradingName_List))"]
[]
[null,"DISCARD FILES"]
[null,"discard this record?","NO","dms_DISCARD","If record is to be discarded from DB set this flag to YES"]
[]
[null,"SUBSET FILES"]
[null,"Is this Submission File a Subset File","NO","dms_Partial"]
[]
[]
[null,"REGULATORY YEARS FOR MULTI RYE SUBMISSIONS"]
[null,"Multiple RYE flag","NO","dms_Multi_RYE_flag"]
[null,null,"Manually specify RYE","Named ranges to apply"]
[null,null,2013,"dms_RYE_01"]
[null,null,2014,"dms_RYE_02"]
[null,null,2015,"dms_RYE_03"]
[null,null,2016,"dms_RYE_04"]
[null,null,2017,"dms_RYE_05"]
[null,null,2018,"dms_RYE_06"]
[null,null,2019,"dms_RYE_07"]
[null,null,2020,"dms_RYE_08"]
[null,null,2021,"dms_RYE_09"]